Transaction Number,Transaction date,Invoice Date,Beneficiary ID,Beneficiary Name,Purpose of Expenditure,Local Authority Department that incurred Expenditure,Amount,,
3151027,12/04/2017,30/03/2016,3001900,Personal detail - redacted,Adults Community Direct Payments,Adult Social Care Integrated Care,"-2,816.80",,
3181382,29/06/2017,10/06/2016,3013761,Royal Free London NHS Foundation Trust,Public Health (Hired & Contr - Healthcare),Public Health,"-47,168.00",,
3181391,29/06/2017,10/06/2016,3013761,Royal Free London NHS Foundation Trust,Public Health (Hired & Contr - Healthcare),Public Health,"-1,785.00",,
3191280,29/06/2017,06/07/2016,3013761,Royal Free London NHS Foundation Trust,Hired and Contracted Services,Public Health,"-2,165.00",,
3191281,29/06/2017,01/07/2016,3013761,Royal Free London NHS Foundation Trust,Hired and Contracted Services,Public Health,"2,165.00",,
3220361,29/06/2017,01/10/2016,3013761,Royal Free London NHS Foundation Trust,Hired and Contracted Services,Public Health,"6,769.00",,
3220671,29/06/2017,30/09/2016,3013761,Royal Free London NHS Foundation Trust,Hired and Contracted Services,Public Health,"1,817.00",,
3222591,09/06/2017,30/09/2016,3008967,Imperial College Healthcare Nhs Trust,Support & Other Accommodation (Voluntary associations),Family Services 2,-886,,
3223969,28/04/2017,12/10/2016,3019127,Pimlico Health At The Marven,Hired and Contracted Services,Public Health,"-1,860.00",,
3228905,01/06/2017,25/10/2016,3005097,London Borough Of Hammersmith & Fulham,Section 113 Shared Services Charges - Staffing,TB Information Services and Strategy,"127,505.92",,
3229629,29/06/2017,31/08/2016,3013761,Royal Free London NHS Foundation Trust,Hired and Contracted Services,Public Health,763,,
3230251,29/06/2017,01/11/2016,3013761,Royal Free London NHS Foundation Trust,Public Health (Hired & Contr - Healthcare),Public Health,"6,768.00",,
3232794,19/04/2017,27/10/2016,3001723,B Hamblett Contractors,Management (Hired & Contr - Consultancy),HRA City West Homes,"1,450.00",,
3233704,29/06/2017,31/10/2016,3013761,Royal Free London NHS Foundation Trust,Public Health (Hired & Contr - Healthcare),Public Health,-904,,
3239353,19/04/2017,24/11/2016,3002007,Amey,Building Construction Materials Reactive (R&M - React),Property Investments and Estates,"5,453.82",,
3239354,30/06/2017,24/11/2016,3002007,Amey,Hired and Contracted Services,"Policy, Performance and Communications","37,507.16",,
3241078,29/06/2017,30/11/2016,3013761,Royal Free London NHS Foundation Trust,Public Health (Hired & Contr - Healthcare),Public Health,"2,633.00",,
3245889,29/06/2017,01/12/2016,3013761,Royal Free London NHS Foundation Trust,Public Health (Hired & Contr - Healthcare),Public Health,"6,769.00",,
3247697,24/04/2017,09/12/2016,3011290,Galaxy Lettings Ltd,Temporary Accommodation,Housing Operations,792,,
3248577,17/05/2017,23/12/2016,3001867,Independent Care Solution,Adults Community Direct Payments - Managed Accounts,Adult Social Care Integrated Care,"1,302.00",,
3248577,17/05/2017,23/12/2016,3001867,Independent Care Solution,Adults Community Direct Payments - Managed Accounts,Adult Social Care Integrated Care,"1,302.00",,
3248834,19/04/2017,13/06/2016,3020788,Bunn & Co,Service Charges,Property Investments and Estates,"1,749.62",,
3248835,19/04/2017,30/09/2016,3020788,Bunn & Co,Service Charges,Property Investments and Estates,"1,749.62",,
3248836,19/04/2017,04/03/2016,3020788,Bunn & Co,Service Charges,Property Investments and Estates,"1,749.62",,
3248968,03/04/2017,22/12/2016,3018920,Calford Seaden LLP,Electricity (Energy),HRA City West Homes,"10,867.23",,
3248970,03/04/2017,22/12/2016,3018920,Calford Seaden LLP,Electricity (Energy),HRA City West Homes,"9,879.30",,
3249626,17/05/2017,22/12/2016,3023064,Gardner Stewart and Stewart Ltd,Professional Fees - Specialist support,HRA City West Homes,"4,400.00",,
3249803,17/05/2017,23/12/2016,3016235,PRCA (Public Relations Consultants Ass),Hired and Contracted Services,"Policy, Performance and Communications","1,220.00",,
3252078,03/04/2017,30/12/2016,3008818,Central & North West London Nhs Trust,Day Opportunities,ASC Procurement and Business Intelligence,"41,663.00",,
3252079,03/04/2017,30/12/2016,3008818,Central & North West London Nhs Trust,Day Opportunities,ASC Procurement and Business Intelligence,"41,663.00",,
3252080,03/04/2017,30/12/2016,3008818,Central & North West London Nhs Trust,Day Opportunities,ASC Procurement and Business Intelligence,"41,663.00",,
3252081,03/04/2017,30/12/2016,3008818,Central & North West London Nhs Trust,Day Opportunities,ASC Procurement and Business Intelligence,"41,663.00",,
3253271,07/04/2017,04/01/2017,3020405,Citrix Online UK Ltd,Software (IT Software Purch),HRA City West Homes,-842.48,,
3254678,19/04/2017,11/01/2017,3020788,Bunn & Co,Service Charges,Property Investments and Estates,"1,591.28",,
3256366,13/04/2017,01/01/2017,3013454,Ixis It Limited,Website Development (IT Software Purch) (R Code),TB Information Services and Strategy,"7,800.00",,
3258061,03/04/2017,19/01/2017,3008377,Riverside Echg,Support & Other Accommodation (Voluntary associations),Housing Operations,"127,968.00",,
3258076,03/04/2017,30/04/2016,3008377,Riverside Echg,Support & Other Accommodation (Voluntary associations),Housing Operations,"127,968.00",,
3258189,03/04/2017,31/07/2016,3008377,Riverside Echg,Support & Other Accommodation (Voluntary associations),Housing Operations,"127,968.00",,
3259329,19/04/2017,08/12/2015,3008945,Tavistock & Portman NHS,Placements (Health Authorities),Adult Social Care Integrated Care,640,,
3259768,22/05/2017,24/01/2017,3002007,Amey,Hired and Contracted Services,"Policy, Performance and Communications","34,241.42",,
3261519,07/06/2017,30/01/2017,3017039,Personal detail - redacted,Advocacy (Legal Fees),Children's Services Commissioning,"2,530.00",,
3261724,25/04/2017,30/01/2017,3000319,Posturite (Uk) Ltd,Office Furniture (Equip Furn),TB Information Services and Strategy,690.05,,
3261768,29/06/2017,01/02/2017,3013761,Royal Free London NHS Foundation Trust,Public Health (Hired & Contr - Healthcare),Public Health,"6,769.00",,
3262472,25/04/2017,20/01/2017,3015107,Gva,Inspection Fees,Highways Infrastructure & Public Realm,"3,600.00",,
3262595,20/04/2017,29/01/2017,3012201,Morgan Hunt Public Sector Ltd,Hired and Contracted Services,WAES Director (Principal),853.09,,
3263450,19/06/2017,27/01/2017,3017054,St George's University Hospitals NHS Foundation Trust,Public Health (Hired & Contr - Healthcare),Public Health,597.36,,
3263957,07/04/2017,27/09/2016,3024829,Personal detail - redacted,Advocacy (Legal Fees),Housing Operations,"1,200.00",,
3264211,25/04/2017,30/01/2017,3011300,Julius Rutherford & Co Ltd,Cleaning Contract -E14,Schools,"2,491.40",,
3265584,10/05/2017,31/01/2017,3002429,Cambridge Motor Repairs,Insurance - Loss Adjustors,Revenues and Benefits,"1,128.28",,
3265825,17/05/2017,27/01/2017,3003443,Bishop Creighton House Settlement,Hired and Contracted Services,Adult Social Care Strategic Commissioning and Enterprise,"11,500.00",,
3265938,08/06/2017,31/01/2017,3010110,Scci Alphatrack Ltd,Contractors,HRA City West Homes,"2,440.00",,
3265948,08/06/2017,31/01/2017,3010110,Scci Alphatrack Ltd,Contractors,HRA City West Homes,"1,387.70",,
3265949,08/06/2017,31/01/2017,3010110,Scci Alphatrack Ltd,Contractors,HRA City West Homes,"3,566.98",,
3266751,08/05/2017,26/01/2017,3009595,Wsp Uk Ltd,Design and development,City Management and Communities,509,,
3267158,19/06/2017,29/07/2015,3017054,St George's University Hospitals NHS Foundation Trust,Hired and Contracted Services,Public Health,"-6,248.77",,
3267159,19/06/2017,20/06/2014,3017054,St George's University Hospitals NHS Foundation Trust,Hired and Contracted Services,Public Health,"-1,355.00",,
3267346,25/04/2017,09/02/2017,3000319,Posturite (Uk) Ltd,Office Furniture (Equip Furn),TB Information Services and Strategy,"1,199.35",,
3267362,17/05/2017,30/01/2017,3026218,Red Spot Cleaning Services Ltd,Contractors - Repairs and Maintenance -E12,Schools,"1,050.00",,
3267388,05/04/2017,08/02/2017,3015793,Bay Media Ltd,Hired and Contracted Services,"Policy, Performance and Communications","2,880.00",,
3267664,31/05/2017,10/02/2017,3000004,First In Service Ltd,Repairs (Equip Catering),Children's Services Commissioning,"2,403.11",,
3267665,19/04/2017,10/02/2017,3000004,First In Service Ltd,Repairs (Equip Catering),Children's Services Commissioning,832.07,,
3267895,04/04/2017,30/01/2017,3000004,First In Service Ltd,Repairs (Equip Catering),Children's Services Commissioning,"5,282.74",,
3269094,07/04/2017,15/02/2017,3005210,Dvip,Advocacy (Legal Fees),Children's Services Commissioning,"2,790.00",,
3269392,02/05/2017,31/01/2017,3002085,Personal detail - redacted,Architect (Hired & Contr - Works),Housing Operations,"52,462.50",,
3269750,07/06/2017,16/02/2017,3019390,British Telecom (Openreach),Design and development,City Management and Communities,"2,875.20",,
3269765,08/05/2017,28/07/2016,3013347,Clyde & Co,Insurance - Loss Adjustors,Revenues and Benefits,"1,063.00",,
3269809,03/04/2017,11/02/2017,3008818,Central & North West London Nhs Trust,Day Opportunities,ASC Procurement and Business Intelligence,"83,326.00",,
3269952,20/04/2017,14/02/2017,3010901,Dorothy Gardner Nursery School,Other Payments,Community Education,"-122,575.90",,
3269954,20/04/2017,14/02/2017,3010897,Mary Paterson Nursery,Other Payments,Community Education,"-105,477.85",,
3270123,17/05/2017,16/02/2017,3010620,Colt Technology Services,Telecommunications (IT Hardware Purch),HRA City West Homes,"1,549.25",,
3270971,03/04/2017,22/02/2017,3000022,Penna Plc,Recruitment & Promotional,Place Shaping,920.5,,
3270981,10/04/2017,22/02/2017,3000022,Penna Plc,Recruitment & Promotional,Public Health,"3,793.00",,
3271264,11/04/2017,28/02/2017,3008387,Turning Point Services Limited,Public Health (Hired & Contr - Healthcare),Public Health,"22,700.94",,
3271836,20/04/2017,20/02/2017,3010901,Dorothy Gardner Nursery School,Element 3 - Top-up Funding,Education,"4,966.39",,
3272122,07/04/2017,30/09/2016,3023622,Amion Consulting Ltd,Consultants/Consultation,"Growth, Planning and Housing","3,932.40",,
3272617,21/06/2017,01/01/2017,3012086,Personal detail - redacted,Professional Fees - Specialist support,HRA City West Homes,"8,320.00",,
3272640,03/04/2017,24/02/2017,3008383,Pinsent Masons,Consultancy (Hired & Contr - Consultancy),Community Services,"2,236.50",,
3272641,07/04/2017,24/02/2017,3008383,Pinsent Masons,Legal Fees (C Code),"Growth, Planning and Housing","3,331.50",,
3272852,03/04/2017,27/02/2017,3015115,Icon Building Consultancy,Professional Fees (non-Legal),Community Services,"2,450.00",,
3273111,12/04/2017,27/02/2017,3000014,Frankham Consultancy Group Ltd,Professional Fees (non-Legal),HRA City West Homes,"5,120.00",,
3273146,24/04/2017,27/02/2017,3000008,Pellings LLP,Professional Fees (non-Legal),HRA City West Homes,525,,
3273149,10/04/2017,28/02/2017,3000022,Penna Plc,Recruitment & Promotional,Public Health,"1,323.00",,
3273150,10/04/2017,28/02/2017,3000022,Penna Plc,Recruitment & Promotional,Public Health,"1,436.25",,
3273237,03/04/2017,01/03/2017,3008026,St Giles Trust,Hired and Contracted Services,Public Protection and Licensing,"18,844.50",,
3273569,04/04/2017,13/02/2017,3011106,Vma Global Resourcing Group Ltd,Hired and Contracted Services,"Policy, Performance and Communications","1,440.00",,
3273872,03/04/2017,02/03/2017,3021695,Health Diagnostics Ltd,Public Health (Hired & Contr - Healthcare),Public Health,"10,200.00",,
3273908,25/04/2017,28/02/2017,3011300,Julius Rutherford & Co Ltd,Cleaning Contract -E14,Schools,"2,491.40",,
3274004,03/04/2017,03/03/2017,3005421,Westminster City Council (Council Tax),Council Tax,HRA City West Homes,583.93,,
3274138,04/05/2017,02/03/2017,3016720,Watret & Company Ltd,Contractors,HRA City West Homes,"4,346.25",,
3274172,03/04/2017,02/03/2017,3026912,Coll Associates Ltd,Consultants/Consultation,"Growth, Planning and Housing","5,000.00",,
3274177,03/04/2017,02/03/2017,3026535,Actingworks,Strategic Planning (Hired & Contr - Consultancy),"Policy, Performance and Communications",745,,
3274180,03/04/2017,02/03/2017,3020886,Musicus CIC,Strategic Planning (Hired & Contr - Consultancy),"Policy, Performance and Communications","3,220.00",,
3274183,03/04/2017,02/03/2017,3021188,Lotsa CIC,Subscriptions,Public Protection and Licensing,"1,500.00",,
3274210,03/04/2017,02/03/2017,3005129,St Mungo's Broadway (Grants & General Invoicing),Fees General,Housing Operations,"4,080.79",,
3274210,03/04/2017,02/03/2017,3005129,St Mungo's Broadway (Grants & General Invoicing),Temporary Accommodation,Housing Operations,"39,503.73",,
3274211,03/04/2017,02/03/2017,3005129,St Mungo's Broadway (Grants & General Invoicing),Temporary Accommodation,Housing Operations,"48,254.29",,
3274246,08/06/2017,07/02/2017,3016714,Personal detail - redacted,Advocacy (Legal Fees),Adult Social Care Integrated Care,"1,110.00",,
3274345,03/04/2017,02/03/2017,3001473,Kent County Council (KCS),Placements (Other local authorities),Education,"2,098.00",,
3274495,03/04/2017,03/03/2017,3013429,Able 2 Occupational Therapy Services Ltd,Occupational Therapy Services (Hired & Contr - Healthcare),Adult Social Care Strategic Commissioning and Enterprise,"31,320.52",,
3274523,03/04/2017,03/03/2017,3008387,Turning Point Services Limited,Hired and Contracted Services,Public Protection and Licensing,"124,859.75",,
3274529,03/04/2017,03/03/2017,3008536,Thrive Tribe Ltd,Public Health (Hired & Contr - Healthcare),Public Health,"40,849.00",,
3274542,03/04/2017,02/03/2017,3006096,Creative Futures (UK) Ltd,Strategic Planning (Hired & Contr - Consultancy),"Policy, Performance and Communications","1,713.60",,
3274560,03/04/2017,03/03/2017,3020343,Michael Page International Recruitment Ltd,Hired and Contracted Services,Property Investments and Estates,"2,678.55",,
3274562,03/04/2017,02/03/2017,3020547,Marco 4 Ltd,IT Software Purchase,TB Information Services and Strategy,625,,
3274647,03/04/2017,03/03/2017,3005129,St Mungo's Broadway (Grants & General Invoicing),Hired and Contracted Services,Housing Operations,"56,770.50",,
3274689,27/06/2017,23/02/2017,3000887,Devonshires Solicitors,Legal Services (Legal Fees),HRA City West Homes,958.8,,
3274690,02/05/2017,03/03/2017,3000952,Uk Power Networks(Operations) Ltd,Design and development,City Management and Communities,"2,485.35",,
3274766,04/04/2017,05/03/2017,3023427,Stonely Training & Consultancy Limited,Training & Conferences,Public Protection and Licensing,675,,
3274767,05/04/2017,06/03/2017,3019390,British Telecom (Openreach),Design and development,City Management and Communities,"2,875.20",,
3274768,05/04/2017,06/03/2017,3019390,British Telecom (Openreach),Design and development,City Management and Communities,"2,875.20",,
3274778,05/04/2017,06/03/2017,3019390,British Telecom (Openreach),Design and development,City Management and Communities,"2,875.20",,
3274798,03/04/2017,03/03/2017,3012079,Westminster Citizens Advice Bureau,Financial Servs: Not Elsewhere Classified (Hired & Contr - Fin'l Services),HRA City West Homes,"3,312.00",,
3274799,03/04/2017,03/03/2017,3012087,Heeran Construction Ltd,Electricity (Energy),Property Investments and Estates,"31,901.00",,
3274977,03/04/2017,02/03/2017,3001272,Moore Security Services Ltd,Measuring (Equip Env),HRA City West Homes,"10,780.00",,
3274978,03/04/2017,02/03/2017,3001272,Moore Security Services Ltd,Planned Maintenance,HRA City West Homes,"5,425.20",,
3274980,03/04/2017,03/03/2017,3026959,Orchidvale Consultancy Ltd,Consultancy (Hired & Contr - Consultancy),Community Services,"2,475.00",,
3274991,03/04/2017,03/03/2017,3012087,Heeran Construction Ltd,Electricity (Energy),Property Investments and Estates,"28,695.13",,
3275115,03/04/2017,02/03/2017,3025829,BES Rehab Ltd,Assistive equipment and Technology,Education,"1,056.00",,
3275161,03/04/2017,28/02/2017,3016161,Prevention and Detection (Holdings) Limited,Security (Security),HRA City West Homes,612.8,,
3275175,03/04/2017,02/03/2017,3012336,Alere Limited,Public Health (Hired & Contr - Healthcare),Public Health,"15,000.00",,
3275267,05/04/2017,06/03/2017,3001510,Power Data Associates Ltd,Hired and Contracted Services,Highways Infrastructure & Public Realm,550,,
3275286,07/04/2017,24/02/2017,3011665,Accent Catering Services Ltd,Catering -Service Contract -E25,Schools,"8,076.26",,
3275289,20/04/2017,06/03/2017,3010901,Dorothy Gardner Nursery School,Hired and Contracted Services,Family Services 2,"9,733.45",,
3275300,20/04/2017,06/03/2017,3010901,Dorothy Gardner Nursery School,Hired and Contracted Services,Family Services 2,"12,500.00",,
3275304,03/04/2017,06/03/2017,3009770,Trowers & Hamlins LLP,Legal Fees (C Code),HRA City West Homes,"16,000.00",,
3275610,04/04/2017,07/03/2017,3002297,Veolia Environmental Services,Maintenance (Ground Mtce),Waste and Parks,"50,259.90",,
3275611,04/04/2017,07/03/2017,3002297,Veolia Environmental Services,Maintenance (Ground Mtce),Waste and Parks,"9,971.44",,
3275612,04/04/2017,07/03/2017,3002297,Veolia Environmental Services,Maintenance (Ground Mtce),Waste and Parks,"45,232.59",,
3275614,04/04/2017,07/03/2017,3002297,Veolia Environmental Services,Maintenance (Ground Mtce),Waste and Parks,"37,059.30",,
3275618,03/04/2017,06/03/2017,3002297,Veolia Environmental Services,Trade Waste and Refuse Collection,HRA City West Homes,"9,317.09",,
3275619,03/04/2017,06/03/2017,3002297,Veolia Environmental Services,Maintenance (Ground Mtce),Waste and Parks,"18,936.10",,
3275619,03/04/2017,06/03/2017,3002297,Veolia Environmental Services,Maintenance (Ground Mtce),Waste and Parks,"662,632.34",,
3275619,03/04/2017,06/03/2017,3002297,Veolia Environmental Services,Maintenance (Ground Mtce),Waste and Parks,"919,205.21",,
3275619,03/04/2017,06/03/2017,3002297,Veolia Environmental Services,Maintenance (Ground Mtce),Waste and Parks,"1,682,790.65",,
3275620,03/04/2017,06/03/2017,3002297,Veolia Environmental Services,Maintenance (Ground Mtce),Waste and Parks,"96,600.00",,
3275621,03/04/2017,06/03/2017,3002297,Veolia Environmental Services,Maintenance (Ground Mtce),Public Protection and Licensing,"35,525.58",,
3275624,06/04/2017,07/03/2017,3002039,Smart Parking Ltd,Hired and Contracted Services,Parking,"8,165.34",,
3275638,06/04/2017,07/03/2017,3000127,Bates Office Services Ltd,Stationery: Not Elsewhere Classified (Stationery),Chief of Staff,757.09,,
3275657,06/04/2017,07/03/2017,3019548,Personal detail - redacted,Training & Conferences,Housing Operations,"9,990.00",,
3275659,04/04/2017,07/03/2017,3016286,Personal detail - redacted,Hired and Contracted Services,Education,511.5,,
3275678,18/04/2017,08/03/2017,3012417,Personal detail - redacted,Hire (Transport),Tri-borough Libraries and Archives,"-1,580.84",,
3275691,03/04/2017,03/03/2017,3011974,2 Simple Software Ltd,Educational Software and Hardware - Teaching Purposes  -E20,Schools,"1,200.00",,
3275706,19/04/2017,03/02/2017,3007855,RSP Rail Travel Account,Section 17 Young Persons Support Allowance,Family Services 2,"1,137.90",,
3275751,03/04/2017,06/03/2017,3000336,Judge & Priestley,Legal Services: Not Elsewhere Classified (Legal Fees),HRA City West Homes,886,,
3275752,03/04/2017,06/03/2017,3000336,Judge & Priestley,Legal Services: Not Elsewhere Classified (Legal Fees),HRA City West Homes,718,,
3275762,06/04/2017,07/03/2017,3024683,Metropolis Surveyors LLP,Professional Fees - Specialist support,HRA City West Homes,666.67,,
3275763,06/04/2017,07/03/2017,3024683,Metropolis Surveyors LLP,Professional Fees - Specialist support,HRA City West Homes,541.67,,
3275768,24/04/2017,15/06/2016,3021341,Keyring Living Support Networks,Support & Other Accommodation (Voluntary associations),Housing Operations,"35,100.00",,
3275784,06/04/2017,07/03/2017,3017479,Info Technology Supply Ltd,Consumables (IT Hardware Purch),WAES Director (Principal),967.94,,
3275813,06/04/2017,07/03/2017,3012648,Paddington Development Trust  ,Hired and Contracted Services,Public Protection and Licensing,"7,419.00",,
3275818,04/04/2017,24/11/2016,3011586,Coordination Group Publications Ltd,Teaching Materials -E19,Schools,-617.55,,
3275831,20/04/2017,19/12/2016,3010901,Dorothy Gardner Nursery School,Hired and Contracted Services,Family Services 2,"11,335.72",,
3275853,04/04/2017,07/03/2017,3007710,Phoenix Software Ltd,Software (IT Software Purch),HRA City West Homes,"4,878.00",,
3275855,06/04/2017,07/03/2017,3008340,Hso (High Speed Office),Telecommunications (IT Hardware Purch),HRA City West Homes,"2,075.44",,
3275904,06/04/2017,07/03/2017,3000888,City Of London,Hired and Contracted Services,Public Protection and Licensing,"3,746.00",,
3276092,05/04/2017,08/03/2017,3000119,Keep Britain Tidy,Advertising (Publicity),Waste and Parks,"3,900.00",,
3276100,04/04/2017,07/03/2017,3000066,Personal detail - redacted,Education (Hired & Contr - Educ),Education,"1,225.00",,
3276110,06/04/2017,07/03/2017,3027309,Garnet Consulting Ltd,Consultancy (Hired & Contr - Consultancy),Housing Operations,"3,971.50",,
3276146,05/04/2017,08/03/2017,3016181,London Community Rehabilitation Company,Hired and Contracted Services,Public Protection and Licensing,"12,000.00",,
3276157,04/04/2017,07/03/2017,3013590,ARO Performance Systems Ltd,IT Software Maintenance,HRA City West Homes,"6,629.00",,
3276158,05/04/2017,08/03/2017,3013739,Personal detail - redacted,Repair & Maintenance (Ground Mtce - Plan),Waste and Parks,800,,
3276182,07/04/2017,08/03/2017,3012196,Bowen Partnership,Valuation Fees,HRA City West Homes,600,,
3276187,05/04/2017,06/03/2017,3011752,International Teacher Recruitment Ltd,Bought in professional services- curriculum -E27,Schools,615,,
3276189,06/04/2017,07/03/2017,3012066,Thames Teachers,Agency Supply Staff- curriculum -E27,Schools,"1,180.00",,
3276207,07/04/2017,08/03/2017,3004768,Remata Sports House,Activities and Events,Community Services,600,,
3276283,06/04/2017,07/03/2017,3009855,Nielsen Book Services Ltd,Library Stock Management Charges,Tri-borough Libraries and Archives,"1,638.00",,
3276284,06/04/2017,07/03/2017,3009855,Nielsen Book Services Ltd,Library Stock Management Charges,Tri-borough Libraries and Archives,"1,177.00",,
3276328,07/04/2017,08/03/2017,3021755,Maintec Services Ltd,Contractors - Repairs and Maintenance -E12,Schools,836.8,,
3276329,07/04/2017,08/03/2017,3021755,Maintec Services Ltd,Contractors - Repairs and Maintenance -E12,Schools,513,,
3276330,07/04/2017,08/03/2017,3022051,Centre For Cities,Consultancy (Hired & Contr - Consultancy),Economy,"10,000.00",,
3276413,03/04/2017,06/03/2017,3017002,Anchor Tutors,Grants,Family Services 1,"1,700.00",,
3276451,07/04/2017,08/03/2017,3004858,Protocol Education,Agency Supply Staff- curriculum -E27,Schools,650,,
3276460,07/04/2017,08/03/2017,3004858,Protocol Education,Agency Supply Staff- curriculum -E27,Schools,585,,
3276461,07/04/2017,08/03/2017,3004858,Protocol Education,Agency Supply Staff- curriculum -E27,Schools,650,,
3276462,07/04/2017,08/03/2017,3004858,Protocol Education,Agency Supply Staff- curriculum -E27,Schools,600,,
3276486,01/06/2017,08/03/2017,3002462,Bibliotheca Ltd,Maintenance & Support (IT Hardware Maint),Tri-borough Libraries and Archives,"3,591.00",,
3276487,05/04/2017,06/03/2017,3002166,Muntham House School Ltd,SEN Therapy,Education,"18,811.00",,
3276488,17/05/2017,06/03/2017,3002166,Muntham House School Ltd,SEN Therapy,Education,"18,302.00",,
3276498,05/04/2017,06/03/2017,3002166,Muntham House School Ltd,SEN Therapy,Education,"18,302.00",,
3276549,05/04/2017,08/03/2017,3007920,Personal detail - redacted,Advocacy (Legal Fees),Children's Services Commissioning,650,,
3276565,05/04/2017,08/03/2017,3013747,Prospects Services Ltd,Youth Provision,Children's Services Commissioning,"40,041.00",,
3276573,05/04/2017,06/03/2017,3013477,Vodafone Limited (Voice Services),Design and development,City Management and Communities,"6,000.00",,
3276614,07/04/2017,08/03/2017,3000301,Computer Imprintable Label Systems Ltd,Printing (Printing),Parking,"7,537.00",,
3276632,10/04/2017,07/03/2017,3000022,Penna Plc,Recruitment & Promotional,Public Health,"1,561.25",,
3276633,10/04/2017,07/03/2017,3000022,Penna Plc,Recruitment & Promotional,Public Health,"3,604.30",,
3276634,04/04/2017,07/03/2017,3000022,Penna Plc,Recruitment & Promotional,Public Protection and Licensing,"1,193.00",,
3276724,07/04/2017,10/03/2017,3018138,NOMS Agency,Hired and Contracted Services,Housing Operations,"24,007.00",,
3276728,07/04/2017,10/03/2017,3018138,NOMS Agency,Hired and Contracted Services,Housing Operations,"24,006.83",,
3276750,07/04/2017,09/03/2017,3026959,Orchidvale Consultancy Ltd,Consultancy (Hired & Contr - Consultancy),Community Services,"2,475.00",,
3276755,07/04/2017,09/03/2017,3020343,Michael Page International Recruitment Ltd,Hired and Contracted Services,Property Investments and Estates,"2,678.55",,
3276782,03/04/2017,28/02/2017,3012174,Rider Levett Bucknall Uk Ltd,Professional Fees - Specialist support,"Growth, Planning and Housing","8,985.00",,
3276794,05/04/2017,08/03/2017,3005020,Nsl Limited,Equipment (Parking),Parking,"1,320.00",,
3276860,06/04/2017,28/02/2017,3001917,Continental Landscapes Ltd,Maintenance (Ground Mtce),Waste and Parks,"4,960.53",,
3276885,07/04/2017,09/03/2017,3001272,Moore Security Services Ltd,Security (Security),HRA City West Homes,"17,486.23",,
3276889,03/04/2017,03/03/2017,3027327,Entre-prises (UK) Ltd,Supplies (Equip Educ),Community Services,"35,000.00",,
3276902,05/04/2017,06/03/2017,3025699,GRS Facilities Support Services Ltd,Electricity (Energy),Property Investments and Estates,"6,000.00",,
3276903,05/04/2017,06/03/2017,3025699,GRS Facilities Support Services Ltd,Electricity (Energy),Property Investments and Estates,"9,631.25",,
3276904,05/04/2017,06/03/2017,3025699,GRS Facilities Support Services Ltd,Electricity (Energy),Property Investments and Estates,"9,077.75",,
3276906,07/04/2017,09/03/2017,3023475,Amec Foster Wheeler Environment & Infrastructure Uk Limited,Consultants/Consultation,Housing Operations,"39,900.00",,
3276907,07/04/2017,09/03/2017,3023518,Apropos Training Limited T/a All Things Training,Training & Conferences,Public Protection and Licensing,695,,
3276933,17/05/2017,09/03/2017,3022334,Arun Associates Ltd,Professional Fees - Specialist support,HRA City West Homes,"4,410.00",,
3276975,20/04/2017,01/02/2017,3015412,Asia House Enterprises,Hire of Rooms,Tri-borough Libraries and Archives,"-2,972.25",,
3276996,06/04/2017,09/03/2017,3012848,Personal detail - redacted,Advocacy (Legal Fees),Children's Services Commissioning,760,,
3276998,06/04/2017,09/03/2017,3013303,Forward4Families Llp,Conference Expenses,Family Services 2,"1,350.00",,
3277009,05/04/2017,09/03/2017,3012424,Vibe Teacher Recruitment Ltd,Agency Supply Staff- curriculum -E27,Schools,"2,681.50",,
3277032,07/04/2017,09/03/2017,3011399,Familyplans Ltd,Conference Expenses,Family Services 2,"1,280.00",,
3277039,06/04/2017,09/03/2017,3010651,Communities First,Consultants/Consultation,HRA City West Homes,"2,430.00",,
3277041,05/04/2017,06/03/2017,3011282,Strictly Education Ltd,Caretaking Contract -E14,Schools,"2,091.00",,
3277049,06/04/2017,09/03/2017,3008555,The Connection At St Martin's,Hired and Contracted Services,Housing Operations,"60,000.00",,
3277050,06/04/2017,09/03/2017,3008555,The Connection At St Martin's,Hired and Contracted Services,Housing Operations,"60,000.00",,
3277052,05/04/2017,06/03/2017,3009378,Virgin Media Business,Online Services (Telephony),TB Information Services and Strategy,"37,125.00",,
3277060,06/04/2017,09/03/2017,3008555,The Connection At St Martin's,Hired and Contracted Services,Housing Operations,"60,000.00",,
3277061,06/04/2017,09/03/2017,3006559,AVM Impact Ltd,IT Software Maintenance,"Safeguarding, Review and Quality Assurance",794,,
3277069,03/04/2017,05/03/2017,3006322,Extrastaff Ltd,Schools Transport Payments - Other,Education,"1,530.61",,
3277070,03/04/2017,05/03/2017,3006322,Extrastaff Ltd,Schools Transport Payments - Other,Education,"1,038.16",,
3277083,07/04/2017,09/03/2017,3005529,Gristwood & Toms,Horticultural: Not Elsewhere Classified (Hired & Contr - Horticulture),Waste and Parks,"12,084.21",,
3277098,07/04/2017,08/03/2017,3005099,Agilisys Ltd,Mobile (Telephony),"Policy, Performance and Communications","68,171.08",,
3277099,03/04/2017,21/02/2017,3005099,Agilisys Ltd,Managed service contract (BT),TB Information Services and Strategy,"43,976.97",,
3277145,06/04/2017,07/03/2017,3000261,Streetscene Addiction Recovery,Public Health (Hired & Contr - Healthcare),Public Health,"2,807.20",,
3277149,04/04/2017,05/03/2017,3000434,Trinity Mirror Southern Ltd,Publications (Expenditure),Development Planning,635.96,,
3277188,03/04/2017,03/03/2017,3002516,Westminster Maintenance Services,Refurbishment,Public Protection and Licensing,786.85,,
3277335,11/04/2017,26/01/2017,3000051,BT Global Services,Contractors,Property Investments and Estates,"2,585.00",,
3277338,05/04/2017,08/03/2017,3000066,Personal detail - redacted,Education (Hired & Contr - Educ),Education,875,,
3277341,03/04/2017,09/03/2017,3027322,Personal detail - redacted,SLT Therapy,Education,"6,261.00",,
3277351,24/04/2017,28/02/2017,3025640,Community Catalysts CIC,Hired and Contracted Services,Adult Social Care Strategic Commissioning and Enterprise,"10,892.71",,
3277391,11/04/2017,28/02/2017,3018493,Nifes Projects Ltd T/A NIFES Consulting Group,Professional Fees - Specialist support,HRA City West Homes,"11,018.00",,
3277392,11/04/2017,28/02/2017,3018493,Nifes Projects Ltd T/A NIFES Consulting Group,Professional Fees - Specialist support,HRA City West Homes,"3,684.00",,
3277393,11/04/2017,28/02/2017,3018493,Nifes Projects Ltd T/A NIFES Consulting Group,Professional Fees - Specialist support,HRA City West Homes,"5,040.00",,
3277418,07/04/2017,08/03/2017,3009670,Royal Borough of Kensington and Chelsea (Non-Pension Fund Account),Section 113 Shared Services Charges - Staffing,Adult Social Care Finance and Resources,"287,783.00",,
3277433,06/04/2017,07/03/2017,3005210,Dvip,Hired and Contracted Services,Family Services 2,"16,250.00",,
3277434,17/05/2017,10/03/2017,3005515,Bre,Professional Fees - Specialist support,HRA City West Homes,"12,500.00",,
3277435,17/05/2017,10/03/2017,3005515,Bre,Professional Fees - Specialist support,HRA City West Homes,"10,000.00",,
3277438,07/06/2017,06/02/2017,3002881,City Of Westminster,Catering -Service Contract -E25,Schools,"7,023.00",,
3277444,18/04/2017,09/03/2017,3002231,Dsi Billing Services,Council Tax & Business Rates (Hired & Contr - Fin'l Services),Revenues and Benefits,601.28,,
3277455,18/04/2017,09/03/2017,3002231,Dsi Billing Services,Council Tax & Business Rates (Hired & Contr - Fin'l Services),Revenues and Benefits,"18,028.69",,
3277465,06/04/2017,28/02/2017,3000684,London Hire Ltd,Leasing (Transport),Public Protection and Licensing,"2,870.00",,
3277468,05/04/2017,28/02/2017,3000684,London Hire Ltd,Leasing (Transport),Tri-borough Libraries and Archives,950,,
3277489,12/04/2017,01/03/2017,3001208,Northgate Public Services,IT Software Maintenance,Revenues and Benefits,"40,669.61",,
3277497,05/04/2017,08/03/2017,3001085,G & D Higgins Mechanical Services Ltd,Management (Hired & Contr - Consultancy),HRA City West Homes,"8,571.00",,
3277498,05/04/2017,08/03/2017,3001085,G & D Higgins Mechanical Services Ltd,Management (Hired & Contr - Consultancy),HRA City West Homes,"2,154.25",,
3277499,03/04/2017,03/03/2017,3001086,Hanxin Ltd,Library Materials - Chinese,Tri-borough Libraries and Archives,"1,468.62",,
3277520,08/06/2017,10/03/2017,3000344,Mytime Active Ltd,Public Health (Hired & Contr - Healthcare),Public Health,"11,624.00",,
3277526,17/05/2017,12/07/2016,3000297,Performing Right Society Ltd,Hired and Contracted Services,"Policy, Performance and Communications","1,799.80",,
3277546,07/04/2017,10/03/2017,3000063,Groundwork London,Hired and Contracted Services,"Policy, Performance and Communications","27,487.00",,
3277559,06/04/2017,09/03/2017,3000022,Penna Plc,Printing (Printing),Family Services 2,"1,058.00",,
3277572,07/04/2017,10/03/2017,3026774,Bermondsey Solutions Ltd,Education (Hired & Contr - Educ),Public Health,"4,000.00",,
3277583,03/04/2017,02/03/2017,3026747,University of Sheffield,Activities and Events,Public Health,598,,
3277587,07/04/2017,08/03/2017,3025699,GRS Facilities Support Services Ltd,Electricity (Energy),Property Investments and Estates,"5,201.49",,
3277590,07/04/2017,09/03/2017,3024220,Future Public Ltd,Consultancy (Hired & Contr - Consultancy),Economy,"3,816.50",,
3277599,07/04/2017,08/03/2017,3023918,European Football Academy Ltd,After School Clubs - E24,Schools,900,,
3277605,07/04/2017,10/03/2017,3021999,Our Parks,Activities and Events,Community Services,"1,210.00",,
3277618,05/04/2017,08/03/2017,3018895,Personal detail - redacted,Music Teachers - self employed or peratetic -E27,Schools,"1,200.00",,
3277644,12/04/2017,10/03/2017,3015133,Mitie Property Services (UK) Ltd - Watford Branch Invoices,Contractors,HRA City West Homes,"2,780.65",,
3277645,19/04/2017,10/03/2017,3015133,Mitie Property Services (UK) Ltd - Watford Branch Invoices,Contractors,HRA City West Homes,"15,946.04",,
3277663,07/04/2017,10/03/2017,3013590,ARO Performance Systems Ltd,IT Software Maintenance,HRA City West Homes,"6,374.00",,
3277674,07/04/2017,10/03/2017,3013212,Original Futures Ltd,Consultancy (Hired & Contr - Consultancy),Economy,"18,010.72",,
3277675,07/04/2017,10/03/2017,3013212,Original Futures Ltd,Consultancy (Hired & Contr - Consultancy),Place Shaping,"7,545.24",,
3277685,31/05/2017,10/03/2017,3012796,Personal detail - redacted,Advocacy (Legal Fees),Development Planning,"4,281.25",,
3277688,07/04/2017,10/03/2017,3012086,Personal detail - redacted,Architect (Hired & Contr - Works),Property Investments and Estates,"3,630.00",,
3277704,07/04/2017,10/03/2017,3011485,Nalco Ltd,Water Services,HRA City West Homes,"2,989.08",,
3277715,07/04/2017,10/03/2017,3011378,Koru Medical Ltd,Legal Services (Legal Fees),HRA City West Homes,752.96,,
3277733,03/04/2017,10/03/2017,3009595,Wsp Uk Ltd,Hired and Contracted Services,Highways Infrastructure & Public Realm,"12,000.00",,
3277737,07/04/2017,10/03/2017,3008557,Sanctuary Housing Association,Hired and Contracted Services,Adult Social Care Finance and Resources,"14,294.52",,
3277738,07/04/2017,10/03/2017,3008557,Sanctuary Housing Association,Hired and Contracted Services,Housing Operations,"28,866.00",,
3277740,07/04/2017,10/03/2017,3007710,Phoenix Software Ltd,Software (IT Software Purch),HRA City West Homes,"7,239.96",,
3277750,07/04/2017,10/03/2017,3007710,Phoenix Software Ltd,Software (IT Software Purch),HRA City West Homes,"7,565.72",,
3277751,07/04/2017,10/03/2017,3007710,Phoenix Software Ltd,IT Software Maintenance,HRA City West Homes,"1,122.11",,
3277770,07/04/2017,08/03/2017,3005492,Academics Ltd,Agency Supply Staff- curriculum -E27,Schools,550,,
3277775,07/04/2017,08/03/2017,3005663,ACS Business Supplies Ltd,IT Hardware Purchase,HRA City West Homes,"31,554.95",,
3277790,07/04/2017,08/03/2017,3004934,Paddington Development Trust(Norland House Office),Activities and Events,Community Services,"2,250.00",,
3277805,07/04/2017,10/03/2017,3003875,Avenues Youth Project,Strategic Planning (Hired & Contr - Consultancy),"Policy, Performance and Communications","1,107.31",,
3277805,07/04/2017,10/03/2017,3003875,Avenues Youth Project,Strategic Planning (Hired & Contr - Consultancy),"Policy, Performance and Communications","1,107.31",,
3277809,07/06/2017,16/02/2017,3002881,City Of Westminster,Traded Services - School Effective/SEN -E27,Schools,"1,200.00",,
3277818,04/04/2017,30/09/2016,3001917,Continental Landscapes Ltd,Maintenance (Ground Mtce),Waste and Parks,"77,337.20",,
3277819,17/05/2017,06/03/2017,3001919,Vital Regeneration,Management (Hired & Contr - Consultancy),Economy,"140,830.63",,
3277821,07/04/2017,11/03/2017,3002170,Gal Consulting Ltd,Consultancy (Hired & Contr - Consultancy),Managed Services Framework ICF,576,,
3277824,07/04/2017,09/03/2017,3001722,Ricoh Uk Ltd,Leasing (IT Hardware Purch),Corporate Services Trading,"37,672.54",,
3277825,07/04/2017,09/03/2017,3001722,Ricoh Uk Ltd,Reprographics (Printing),Corporate Services Trading,"10,224.51",,
3277826,07/04/2017,09/03/2017,3001722,Ricoh Uk Ltd,Printing (Printing),Parking,"10,518.43",,
3277833,07/04/2017,09/03/2017,3001722,Ricoh Uk Ltd,Printing (Printing),Parking,"15,908.06",,
3277834,07/04/2017,09/03/2017,3001722,Ricoh Uk Ltd,Leasing (IT Hardware Purch),Corporate Services Trading,"3,559.18",,
3277835,07/04/2017,09/03/2017,3001722,Ricoh Uk Ltd,Leasing (IT Hardware Purch),Corporate Services Trading,"27,671.30",,
3277843,17/05/2017,19/01/2017,3001530,Central Recruitment Services Ltd,Hired and Contracted Services,Adult Social Care Integrated Care,648,,
3277845,17/05/2017,19/01/2017,3001530,Central Recruitment Services Ltd,Hired and Contracted Services,Adult Social Care Integrated Care,648,,
3277849,17/05/2017,26/01/2017,3001530,Central Recruitment Services Ltd,Hired and Contracted Services,Adult Social Care Integrated Care,648,,
3277854,17/05/2017,02/02/2017,3001530,Central Recruitment Services Ltd,Hired and Contracted Services,Adult Social Care Integrated Care,648,,
3277927,20/04/2017,15/03/2017,3010897,Mary Paterson Nursery,Other Payments,Children's Services Commissioning,"30,000.00",,
3277946,20/04/2017,13/03/2017,3010901,Dorothy Gardner Nursery School,Early Years,Children's Services Commissioning,"-9,484.80",,
3277947,20/04/2017,13/03/2017,3010897,Mary Paterson Nursery,Early Years,Children's Services Commissioning,"-3,695.50",,
3277948,20/04/2017,13/03/2017,3009348,Portman Early Childhood Centre,Early Years,Children's Services Commissioning,"-4,434.61",,
3277949,12/04/2017,13/03/2017,3009351,All Souls Ce Primary School,Early Years,Children's Services Commissioning,"-4,206.60",,
3277950,12/04/2017,13/03/2017,3009352,Burdett Coutts Ce School (Imprest Only),Early Years,Children's Services Commissioning,"-4,206.60",,
3277951,12/04/2017,13/03/2017,3009353,Edward Wilson Primary (Imprest Act Only),Early Years,Children's Services Commissioning,"-5,836.80",,
3277953,12/04/2017,13/03/2017,3009376,George Eliot Primary School,Early Years,Children's Services Commissioning,"-6,916.00",,
3277955,12/04/2017,13/03/2017,3009359,Queens Park Primary School,Early Years,Children's Services Commissioning,"-9,728.00",,
3277959,12/04/2017,13/03/2017,3009368,St Mary's Bryanston Sq Ce Primary School,Early Years,Children's Services Commissioning,"-2,017.80",,
3277961,12/04/2017,13/03/2017,3011965,St Josephs Rc School,Early Years,Children's Services Commissioning,"-2,046.30",,
3277962,12/04/2017,13/03/2017,3011945,St Vincent De Paul Rc,Early Years,Children's Services Commissioning,"-3,410.50",,
3277964,12/04/2017,13/03/2017,3012736,Churchill Gardens Primary Academy,Early Years,Children's Services Commissioning,"-7,011.00",,
3277965,11/05/2017,13/03/2017,3009363,Gateway Academy,Early Years,Children's Services Commissioning,"-6,651.90",,
3277966,11/05/2017,13/03/2017,3005802,Ark Atwood Primary Academy,Early Years,Children's Services Commissioning,"-4,434.60",,
3278076,03/04/2017,02/03/2017,3001086,Hanxin Ltd,Library Materials - Chinese,Tri-borough Libraries and Archives,"4,063.20",,
3278086,07/04/2017,09/03/2017,3008533,Central & North West London Mh Nhs Trust,Placements (Health Authorities),Children's Services Commissioning,"141,810.00",,
3278087,07/04/2017,09/03/2017,3008818,Central & North West London Nhs Trust,Placements (Health Authorities),Public Protection and Licensing,"13,246.00",,
3278100,07/04/2017,10/03/2017,3010991,Glemnet Limited,Telecommunications (IT Hardware Purch),HRA City West Homes,"8,122.26",,
3278122,06/04/2017,09/03/2017,3013444,Crawley Luxury,Hire (Transport),Community Services,"5,706.00",,
3278125,04/04/2017,05/03/2017,3013479,West Horsley Dairy,Food & Beverages (Equip Catering),Community Services,510.82,,
3278158,12/04/2017,13/03/2017,3005129,St Mungo's Broadway (Grants & General Invoicing),Support & Other Accommodation (Voluntary associations),Housing Operations,"122,898.00",,
3278160,12/04/2017,13/03/2017,3005529,Gristwood & Toms,Tree Trimming (Hired & Contr - Horticulture),Development Planning,"25,567.98",,
3278161,12/04/2017,13/03/2017,3005529,Gristwood & Toms,Tree Trimming (Hired & Contr - Horticulture),Development Planning,"11,130.26",,
3278172,06/04/2017,07/03/2017,3008087,Talented People Solutions,Activities and Events,Community Services,851.5,,
3278190,12/04/2017,13/03/2017,3019832,London Sport,Activities and Events,Community Services,"5,000.00",,
3278192,24/04/2017,13/03/2017,3020343,Michael Page International Recruitment Ltd,Hired and Contracted Services,Property Investments and Estates,"2,678.55",,
3278195,05/05/2017,13/03/2017,3020531,Archbishop Tenison's School,Element 3 - Top-up Funding,Education,"3,841.33",,
3278198,07/04/2017,09/03/2017,3023075,Sports & Leisure Management Ltd,Activities and Events,Community Services,"14,133.11",,
3278202,07/04/2017,10/03/2017,3027123,City of London Gym Club,Activities and Events,Community Services,"5,376.00",,
3278291,03/04/2017,15/03/2017,3012534,St Edwards Rc Primary (Imprest),Element 3 - Top-up Funding,Education,"7,308.46",,
3278299,03/04/2017,15/03/2017,3017644,Personal detail - redacted,Costs Awarded Against The Council,Education,"25,000.00",,
3279237,13/04/2017,20/03/2017,3015900,Personal detail - redacted,Reimbursement payments/ compensation payments (HRA and non HRA),Revenues and Benefits,637,,
3279288,03/04/2017,20/03/2017,3008536,Thrive Tribe Ltd,Hired and Contracted Services,Public Health,"-107,857.19",,
3279290,03/04/2017,20/03/2017,3008536,Thrive Tribe Ltd,Hired and Contracted Services,Public Health,"107,857.19",,
3281738,19/04/2017,28/03/2017,3008838,Queensmill School,Other Payments,Education,"7,925.00",,
3282103,03/04/2017,29/03/2017,3999999,General Sundry,Reimbursement payments/ compensation payments (HRA and non HRA),Revenues and Benefits,"2,050.00",,
3282260,03/04/2017,03/04/2017,3999999,General Sundry,Professional Fees (non-Legal),HRA City West Homes,"2,400.00",,
3282261,11/04/2017,03/04/2017,3015303,Paypacket Ltd,Adults Community Direct Payments - Managed Accounts,Adult Social Care Integrated Care,972.4,,
3282262,03/04/2017,03/04/2017,3008928,Greater London Authority,Fees General,Chief of Staff,"12,573.67",,
3282263,12/04/2017,03/04/2017,3001870,Sweet Tree Home Care Services,Adults Community Direct Payments - Managed Accounts,Adult Social Care Integrated Care,"1,749.26",,
3282265,12/04/2017,03/04/2017,3001870,Sweet Tree Home Care Services,Adults Community Direct Payments - Managed Accounts,Adult Social Care Integrated Care,"1,741.50",,
3282266,11/04/2017,03/04/2017,3001870,Sweet Tree Home Care Services,Adults Community Direct Payments - Managed Accounts,Adult Social Care Integrated Care,945.75,,
3282267,12/04/2017,03/04/2017,3014982,AK Care Ltd,Adults Community Direct Payments - Managed Accounts,Adult Social Care Integrated Care,"1,703.00",,
3282271,06/04/2017,03/04/2017,3999999,General Sundry,Costs Awarded Against The Council,HRA City West Homes,"11,000.00",,
3282272,11/04/2017,03/04/2017,3001870,Sweet Tree Home Care Services,Adults Community Direct Payments - Managed Accounts,Adult Social Care Integrated Care,517.2,,
3282276,11/04/2017,03/04/2017,3002950,Zocalo Ltd T/as Bluebird Care,Adults Community Direct Payments - Managed Accounts,Adult Social Care Integrated Care,530,,
3282277,03/04/2017,03/04/2017,3001754,Personal detail - redacted,Costs Awarded Against The Council,Housing Operations,"14,000.00",,
3282279,03/04/2017,03/04/2017,3006420,Gillian Radford & Co Solicitors,Costs Awarded Against The Council,Housing Operations,"5,000.00",,
3282280,10/04/2017,03/04/2017,3999999,General Sundry,Compensation Payments,HRA City West Homes,"4,500.00",,
3282282,03/04/2017,03/04/2017,3009871,Personal detail - redacted,Contractors,HRA City West Homes,550,,
3282283,05/04/2017,03/04/2017,3015713,London Borough Of Brent,Council Tax,Housing Operations,"1,108.47",,
3282284,11/04/2017,03/04/2017,3013020,Active Wellness,Adults Community Direct Payments - Managed Accounts,Adult Social Care Integrated Care,"1,472.40",,
3282285,03/04/2017,03/04/2017,3009279,HM Revenue & Customs (Stamp duty),Stamp duty,HRA City West Homes,"46,000.00",,
3282287,11/04/2017,03/04/2017,3003893,Health Vision Uk,Adults Community Direct Payments - Managed Accounts,Adult Social Care Integrated Care,598,,
3282290,04/04/2017,03/04/2017,3999999,General Sundry,Insurances - Premises,Revenues and Benefits,"6,088.28",,
3282295,04/04/2017,01/03/2017,3000027,British Gas,Electricity -E16,Schools,661.67,,
3282296,03/04/2017,08/03/2017,3000027,British Gas,Electricity -E16,Schools,"1,072.06",,
3282297,18/05/2017,06/03/2017,3000051,BT Global Services,Education (IT Software Purch),"Policy, Performance and Communications","1,497.00",,
3282298,11/04/2017,06/03/2017,3000051,BT Global Services,Managed service contract (BT),TB Information Services and Strategy,"2,757.00",,
3282299,04/04/2017,03/04/2017,3999999,General Sundry,Insurances - Premises,Revenues and Benefits,"45,162.29",,
3282300,12/04/2017,09/03/2017,3000051,BT Global Services,Managed service contract (BT),TB Information Services and Strategy,"39,860.00",,
3282301,04/04/2017,09/03/2017,3026200,ISG Fit Out Ltd,Architects,Property Investments and Estates,"257,249.83",,
3282303,12/04/2017,03/04/2017,3003893,Health Vision Uk,Adults Community Direct Payments - Managed Accounts,Adult Social Care Integrated Care,"1,024.20",,
3282304,03/04/2017,01/03/2017,3027176,J G Reeves T/A Jackie Reeves Associates,Education (Hired & Contr - Educ),Public Health,560,,
3282305,12/04/2017,13/03/2017,3027409,Kedron UK Ltd,IT Software Maintenance,HRA City West Homes,"17,335.00",,
3282306,06/04/2017,07/03/2017,3025699,GRS Facilities Support Services Ltd,Electricity (Energy),Property Investments and Estates,"9,688.00",,
3282307,06/04/2017,07/03/2017,3025699,GRS Facilities Support Services Ltd,Electricity (Energy),Property Investments and Estates,"9,688.00",,
3282308,12/04/2017,07/03/2017,3025699,GRS Facilities Support Services Ltd,Electricity (Energy),Property Investments and Estates,"4,416.80",,
3282309,06/04/2017,07/03/2017,3025699,GRS Facilities Support Services Ltd,Electricity (Energy),Property Investments and Estates,"9,688.00",,
3282312,04/04/2017,03/04/2017,3999999,General Sundry,Insurances - Premises,Revenues and Benefits,"25,584.04",,
3282315,07/04/2017,10/03/2017,3025699,GRS Facilities Support Services Ltd,Electricity (Energy),Property Investments and Estates,"9,631.25",,
3282316,07/04/2017,10/03/2017,3025699,GRS Facilities Support Services Ltd,Electricity (Energy),Property Investments and Estates,"3,200.00",,
3282317,07/04/2017,10/03/2017,3025699,GRS Facilities Support Services Ltd,Electricity (Energy),Property Investments and Estates,"9,500.00",,
3282318,07/04/2017,10/03/2017,3025699,GRS Facilities Support Services Ltd,Electricity (Energy),Property Investments and Estates,"5,234.74",,
3282319,12/04/2017,10/03/2017,3025699,GRS Facilities Support Services Ltd,Electricity (Energy),Property Investments and Estates,"1,680.00",,
3282320,12/04/2017,10/03/2017,3025699,GRS Facilities Support Services Ltd,Electricity (Energy),Property Investments and Estates,"9,800.00",,
3282321,03/04/2017,22/02/2017,3022706,Caterlink Ltd,Catering -Service Contract -E25,Schools,"4,843.99",,
3282326,07/04/2017,10/03/2017,3025699,GRS Facilities Support Services Ltd,Electricity (Energy),Property Investments and Estates,"9,077.75",,
3282327,07/04/2017,10/03/2017,3025699,GRS Facilities Support Services Ltd,Electricity (Energy),Property Investments and Estates,"6,000.00",,
3282328,04/04/2017,31/01/2017,3018561,Careworks,IT Software Purchase,Family Services 2,"12,691.00",,
3282329,07/04/2017,10/03/2017,3019086,Osborne Thomas Limited,Recruitment & Promotional,Chief of Staff,"3,000.00",,
3282332,08/05/2017,10/03/2017,3019198,London Business School,Fees General,Property Investments and Estates,"7,069.00",,
3282335,12/04/2017,13/03/2017,3020018,Skola International Community School,Cleaning Contract -E14,Schools,"1,141.44",,
3282336,04/04/2017,08/02/2017,3016305,Dignity Funerals,Funeral Expenses inc equipment,Chief of Staff,"7,728.00",,
3282337,04/04/2017,31/01/2017,3017244,Personal detail - redacted,Activities and Events,Community Services,525,,
3282340,05/04/2017,13/03/2017,3017561,Westminster Community Homes Ltd,Acquisitions,Housing Operations,"500,000.00",,
3282341,03/04/2017,28/02/2017,3017706,Currie & Brown UK Ltd,Consultants/Consultation,HRA City West Homes,"6,750.00",,
3282343,12/04/2017,03/04/2017,3000003,Housing & Care 21,Adults Community Direct Payments - Managed Accounts,Adult Social Care Integrated Care,"1,226.09",,
3282344,04/04/2017,03/04/2017,3999999,General Sundry,Contributions towards expenditure,HRA City West Homes,"1,086.86",,
3282345,04/04/2017,02/03/2017,3013800,Personal detail - redacted,Funeral Expenses inc equipment,Chief of Staff,"4,125.00",,
3282347,04/04/2017,02/02/2017,3013800,Personal detail - redacted,Funeral Expenses inc equipment,Chief of Staff,"5,200.00",,
3282348,10/04/2017,12/02/2017,3013837,Bt Plc,Call Systems (Telephony),Chief of Staff,"2,725.00",,
3282351,04/04/2017,08/02/2017,3016305,Dignity Funerals,Funeral Expenses inc equipment,Chief of Staff,"6,580.00",,
3282353,12/04/2017,13/03/2017,3012087,Heeran Construction Ltd,Electricity (Energy),Property Investments and Estates,"12,561.38",,
3282354,03/04/2017,31/01/2017,3012213,NHS Central London Ccg,Public Health (Hired & Contr - Healthcare),Public Health,"50,000.00",,
3282356,07/04/2017,12/03/2017,3012604,Every City Ltd,IT Software Maintenance,Highways Infrastructure & Public Realm,827,,
3282359,04/04/2017,04/11/2016,3011579,Sayers Croft Field Centre,School Trips - E19,Schools,"4,931.20",,
3282360,04/04/2017,14/11/2016,3011586,Coordination Group Publications Ltd,Teaching Materials -E19,Schools,"1,835.45",,
3282361,03/04/2017,05/01/2017,3011669,Turn It On,Traded Services ICT support - E27,Schools,"1,950.00",,
3282363,12/04/2017,13/03/2017,3012087,Heeran Construction Ltd,Architects,Property Investments and Estates,"196,816.22",,
3282364,12/04/2017,13/03/2017,3012087,Heeran Construction Ltd,Electricity (Energy),Property Investments and Estates,"43,086.06",,
3282365,04/04/2017,07/12/2016,3011224,Teaching Personnel Ltd,Agency Supply Staff- curriculum -E27,Schools,"1,024.65",,
3282368,04/04/2017,01/03/2017,3011293,Artic Building Services Ltd,Contractors R&M ARTIC - E12,Schools,"2,638.83",,
3282369,07/04/2017,09/03/2017,3011399,Familyplans Ltd,Conference Expenses,Family Services 2,692.5,,
3282370,19/04/2017,09/03/2017,3011399,Familyplans Ltd,Conference Expenses,Family Services 2,694,,
3282371,04/04/2017,18/11/2016,3009647,Thames Water Utilities Ltd ,Water and Sewerage -E15,Schools,593.15,,
3282373,10/04/2017,09/03/2017,3009670,Royal Borough of Kensington and Chelsea (Non-Pension Fund Account),Section 113 Shared Services Charges - Staffing,Corporate Finance,"30,274.00",,
3282375,28/04/2017,01/10/2016,3011134,Olympic (South) Ltd T/A Hats,Schools Transport Payments - Other,Education,"5,669.20",,
3282376,07/04/2017,10/03/2017,3011135,Guys & St Thomas Nhs Foundation Trust,Public Health (Hired & Contr - Healthcare),Public Health,"14,926.51",,
3282377,10/04/2017,13/03/2017,3007710,Phoenix Software Ltd,Software (IT Software Purch),HRA City West Homes,972,,
3282378,12/04/2017,13/03/2017,3008424,Ultima Business Solutions Ltd,Software (IT Software Purch),HRA City West Homes,"8,062.83",,
3282383,18/04/2017,03/04/2017,3000115,Westminster Society,Adults Community Direct Payments - Managed Accounts,Adult Social Care Integrated Care,565.76,,
3282385,09/06/2017,09/01/2017,3005135,Notting Hill Housing Trust ,Adult (Hired & Contr - Social CommCare),Adult Social Care Strategic Commissioning and Enterprise,"22,254.75",,
3282386,04/04/2017,23/11/2016,3005397,London Basketball Association,Activities and Events,Community Services,"1,775.00",,
3282387,04/04/2017,02/12/2016,3005413,London Tigers,Activities and Events,Community Services,"6,652.50",,
3282388,03/04/2017,10/03/2017,3006429,GLS Educational Supplies Ltd,Classroom and learning equipment (exclude ICT) -E19,Schools,813.08,,
3282389,03/04/2017,03/04/2017,3009279,HM Revenue & Customs (Stamp duty),Stamp duty,HRA City West Homes,"24,000.00",,
3282391,03/04/2017,01/03/2017,3006766,Kingston Hospital NHS Foundation Trust,Public Health (Hired & Contr - Healthcare),Public Health,"1,117.10",,
3282392,11/04/2017,27/02/2017,3002403,Axis Europe Plc,Contractors,HRA City West Homes,"18,453.32",,
3282393,12/04/2017,13/03/2017,3002845,Parking Associates Ltd,Consultancy (Hired & Contr - Consultancy),Parking,"1,400.00",,
3282395,11/04/2017,03/04/2017,3000003,Housing & Care 21,Adults Community Direct Payments - Managed Accounts,Adult Social Care Integrated Care,"1,590.75",,
3282398,11/04/2017,10/03/2017,3001723,B Hamblett Contractors,Management (Hired & Contr - Consultancy),HRA City West Homes,980,,
3282401,17/05/2017,13/03/2017,3002007,Amey,Refurbishment,Schools,"68,077.70",,
3282402,06/04/2017,03/04/2017,3009279,HM Revenue & Customs (Stamp duty),Stamp duty,Housing Operations,"27,880.00",,
3282403,04/04/2017,13/03/2017,3002007,Amey,Contractors,Property Investments and Estates,"58,029.94",,
3282404,04/04/2017,09/03/2017,3002041,EDF Energy 1 Ltd ,Electricity (Energy),Property Investments and Estates,"80,649.98",,
3282407,11/04/2017,10/03/2017,3001723,B Hamblett Contractors,Management (Hired & Contr - Consultancy),HRA City West Homes,660,,
3282408,11/04/2017,10/03/2017,3001723,B Hamblett Contractors,Management (Hired & Contr - Consultancy),HRA City West Homes,620,,
3282411,04/04/2017,03/04/2017,3999999,General Sundry,Core Training,WAES Director (Principal),720,,
3282412,11/04/2017,10/03/2017,3001723,B Hamblett Contractors,Management (Hired & Contr - Consultancy),HRA City West Homes,960,,
3282413,11/04/2017,13/03/2017,3001085,G & D Higgins Mechanical Services Ltd,Management (Hired & Contr - Consultancy),HRA City West Homes,"7,645.36",,
3282414,12/04/2017,13/03/2017,3001350,Prp Architects Llp,Professional Fees (non-Legal),"Growth, Planning and Housing","20,000.00",,
3282415,04/04/2017,03/04/2017,3009279,HM Revenue & Customs (Stamp duty),Stamp duty,Housing Operations,"21,200.00",,
3282416,12/04/2017,13/03/2017,3001407,Argon Promotions,Public Relations & Image (Publicity),Tri-borough Libraries and Archives,"4,350.00",,
3282417,04/04/2017,05/03/2017,3001437,Adt Fire & Security Plc,Security Patrols and Services(cctv/burglar alarms) -E18,Schools,741.74,,
3282418,15/05/2017,13/03/2017,3001638,One Transport Ltd,Schools Transport Payments - Other,Adult Social Care Integrated Care,"27,866.71",,
3282423,03/04/2017,03/04/2017,3999999,General Sundry,Dwelling Rental Income,HRA City West Homes,"1,311.32",,
3282424,04/04/2017,13/02/2017,3000672,F.M Conway Ltd,Contractors,City Management and Communities,"142,028.75",,
3282425,05/04/2017,03/04/2017,3999999,General Sundry,Acquisitions,HRA City West Homes,"526,688.34",,
3282426,04/04/2017,25/02/2017,3000672,F.M Conway Ltd,Contractors,City Management and Communities,"18,705.00",,
3282432,03/04/2017,03/04/2017,3999999,General Sundry,Dwelling Rental Income,HRA City West Homes,634.62,,
3282433,03/04/2017,03/04/2017,3999999,General Sundry,Dwelling Rental Income,HRA City West Homes,936.99,,
3282434,04/04/2017,03/04/2017,3999999,General Sundry,Recruitment & Promotional,WAES Director (Principal),600,,
3282435,05/04/2017,03/04/2017,3999999,General Sundry,Costs Awarded Against The Council,Housing Operations,"11,000.00",,
3282443,05/04/2017,03/04/2017,3009279,HM Revenue & Customs (Stamp duty),Stamp duty,HRA City West Homes,"22,600.00",,
3282471,04/04/2017,03/04/2017,3999999,General Sundry,Removals,HRA City West Homes,"3,800.00",,
3282472,07/04/2017,03/04/2017,3009279,HM Revenue & Customs (Stamp duty),Stamp duty,HRA City West Homes,"6,525.00",,
3282480,12/04/2017,03/04/2017,3000003,Housing & Care 21,Adults Community Direct Payments - Managed Accounts,Adult Social Care Integrated Care,"1,436.96",,
3282481,11/04/2017,03/04/2017,3000003,Housing & Care 21,Adults Community Direct Payments - Managed Accounts,Adult Social Care Integrated Care,561.7,,
3282484,04/04/2017,03/04/2017,3999999,General Sundry,Compensation Payments,HRA City West Homes,"11,000.00",,
3282485,04/04/2017,14/12/2016,3012424,Vibe Teacher Recruitment Ltd,Agency Supply Staff- curriculum -E27,Schools,714.28,,
3282487,04/04/2017,03/04/2017,3999999,General Sundry,Removals,HRA City West Homes,"5,800.00",,
3282489,04/04/2017,03/04/2017,3999999,General Sundry,Leaseholder charges for Services and Facilities,HRA City West Homes,914.28,,
3282491,04/04/2017,04/04/2016,3011248,Access UK Limited T/a HCSS Educational Ltd,"ICT (non teaching) -Purchase, Hire and Maintenance contracts -E22",Schools,620,,
3282492,04/04/2017,03/04/2017,3999999,General Sundry,Leaseholder charges for Services and Facilities,HRA City West Homes,649.02,,
3282499,04/04/2017,03/04/2017,3999999,General sundry,Reimbursement payments/ compensation payments (HRA and non HRA),Revenues and Benefits,"3,800.00",,
3282510,11/04/2017,03/04/2017,3002950,Zocalo Ltd T/as Bluebird Care,Adults Community Direct Payments - Managed Accounts,Adult Social Care Integrated Care,530,,
3282514,07/04/2017,09/05/2016,3009647,Thames Water Utilities Ltd ,Water Services,Waste and Parks,"1,908.47",,
3282515,07/04/2017,03/04/2017,3999999,General sundry,Reimbursement payments/ compensation payments (HRA and non HRA),Revenues and Benefits,"4,207.00",,
3282521,07/04/2017,07/06/2016,3009647,Thames Water Utilities Ltd ,Water Services,Waste and Parks,521.98,,
3282527,07/04/2017,12/08/2016,3009647,Thames Water Utilities Ltd ,Water Services,Waste and Parks,601.57,,
3282539,07/04/2017,19/10/2016,3009647,Thames Water Utilities Ltd ,Water Services,Waste and Parks,700.09,,
3282540,07/04/2017,19/07/2016,3009647,Thames Water Utilities Ltd ,Water Services,Waste and Parks,692.03,,
3282545,05/04/2017,08/03/2017,3009062,Coram Life Education Trading Ltd,Community Education  benefiting pupils -E24,Schools,900,,
3282546,05/04/2017,13/03/2017,3009356,Essendine Primary Sc (Imprest A/C Only),Education (Hired & Contr - Educ),Education,770,,
3282548,13/04/2017,16/03/2017,3009577,Cloudoku Limited,Hired and Contracted Services,Digital Programme,"2,000.00",,
3282549,06/04/2017,24/02/2017,3009628,Look Ahead Housing & Care Ltd,Temporary Accommodation,Housing Operations,"63,199.34",,
3282551,13/04/2017,17/03/2017,3008945,Tavistock & Portman NHS,Assessment services,Children's Services Commissioning,"22,913.42",,
3282552,28/04/2017,17/03/2017,3008945,Tavistock & Portman NHS,Hired and Contracted Services,Children's Services Commissioning,"14,811.61",,
3282553,23/06/2017,17/03/2017,3008945,Tavistock & Portman NHS,Hired and Contracted Services,Family Services 1,"28,594.54",,
3282559,04/04/2017,24/02/2016,3008464,St Vincents Family Project,Bought in professional services- curriculum -E27,Schools,840,,
3282564,05/05/2017,15/03/2017,3008933,Ealing Council,Subscriptions,Family Services 2,"24,000.00",,
3282567,04/04/2017,28/02/2017,3008383,Pinsent Masons,Legal Services (Legal Fees),Managed Services Framework ICF,"38,422.21",,
3282568,19/04/2017,12/03/2017,3008385,Comensura Ltd,Personnel (Hired & Contr - Consultancy),Corporate Services Trading,"279,178.62",,
3282569,19/04/2017,19/03/2017,3008385,Comensura Ltd,Personnel (Hired & Contr - Consultancy),Corporate Services Trading,"326,691.07",,
3282571,28/04/2017,31/03/2017,3008387,Turning Point Services Limited,Public Health (Hired & Contr - Healthcare),Public Health,"226,759.37",,
3282572,28/04/2017,31/03/2017,3008387,Turning Point Services Limited,Public Health (Hired & Contr - Healthcare),Public Health,"44,762.81",,
3282573,13/04/2017,17/03/2017,3007753,QA Ltd,Pest & Animal Control (Hired & Contr - Environ),HRA City West Homes,"25,000.00",,
3282577,04/04/2017,03/04/2017,3005354,Paddington Academy,Grants,Family Services 1,900,,
3282579,10/04/2017,28/02/2017,3008376,Hays Specialist Recruitment Ltd,Bought In Professional Services - Other E28,Schools,600,,
3282580,04/04/2017,01/09/2016,3006516,Hillcrest Autism Services Ltd,SEN Therapy,Education,"13,485.00",,
3282581,04/04/2017,23/12/2016,3006559,AVM Impact Ltd,Hired and Contracted Services,Chief of Staff,930,,
3282582,04/04/2017,19/01/2017,3006559,AVM Impact Ltd,Hired and Contracted Services,Chief of Staff,"1,430.00",,
3282583,05/04/2017,28/02/2017,3006559,AVM Impact Ltd,Hired and Contracted Services,Chief of Staff,"1,250.00",,
3282585,20/04/2017,12/03/2017,3007735,Prestige Courier Services Ltd,Home to School (Travel),Education,543.7,,
3282590,06/04/2017,13/09/2016,3006429,GLS Educational Supplies Ltd,"Administrative Stationery, Printing and reprographics -E22",Schools,751.29,,
3282592,04/04/2017,01/09/2016,3006516,Hillcrest Autism Services Ltd,SEN Therapy,Education,"13,485.00",,
3282596,06/04/2017,01/09/2016,3006429,GLS Educational Supplies Ltd,"Administrative Stationery, Printing and reprographics -E22",Schools,867.61,,
3282625,06/04/2017,06/01/2017,3027460,Alex Verdan QC,Advocacy (Legal Fees),Children's Services Commissioning,"12,000.00",,
3282626,13/04/2017,15/03/2017,3027466,Parkrun Ltd,Activities and Events,Community Services,"2,500.00",,
3282628,05/04/2017,16/12/2016,3027335,Dr Jeremy Wight,Recruitment & Assessment,Public Health,659,,
3282629,05/04/2017,09/02/2017,3027335,Dr Jeremy Wight,Recruitment & Assessment,Public Health,648.5,,
3282630,05/04/2017,10/01/2017,3027338,Solidspace Ltd,Consultancy (Hired & Contr - Consultancy),Place Shaping,"9,800.00",,
3282635,19/04/2017,20/03/2017,3027103,Foundation for Change,Training & Conferences,Economy,800,,
3282639,05/04/2017,12/02/2017,3027325,Personal detail - redacted,Activities and Events,Family Services 2,550,,
3282640,12/04/2017,13/03/2017,3017650,British Athletics Charitable Trust,Activities and Events,Community Services,"1,920.00",,
3282641,11/04/2017,12/03/2017,3017744,Rootcause Ltd,Hired and Contracted Services,Development Planning,"9,950.00",,
3282643,05/04/2017,31/10/2016,3018117,Buro Happold Ltd,Fees General,"Growth, Planning and Housing","21,910.00",,
3282644,19/04/2017,22/12/2016,3018117,Buro Happold Ltd,Fees General,"Growth, Planning and Housing","3,771.00",,
3282648,06/04/2017,13/01/2017,3017304,Personal detail - redacted,Advocacy (Legal Fees),HRA City West Homes,"8,100.00",,
3282651,13/04/2017,17/03/2017,3017627,Thomas Sinden Construction Ltd,Contractors,HRA City West Homes,"102,194.74",,
3282652,04/04/2017,14/02/2017,3016547,Personal detail - redacted,Post mortem and reports fees,Chief of Staff,900,,
3282656,07/04/2017,16/02/2017,3016902,Norman Rourke Pryme Limited,Contractors,City Management and Communities,"2,795.43",,
3282657,04/04/2017,16/02/2017,3016902,Norman Rourke Pryme Limited,Contractors,City Management and Communities,"2,018.71",,
3282660,13/04/2017,20/03/2017,3016187,BlueFort Security,Security (Security),TB Information Services and Strategy,"9,768.00",,
3282661,04/04/2017,02/02/2017,3016341,The Profile Group UK Ltd,Library Materials - Electronic Resources,Tri-borough Libraries and Archives,"1,500.00",,
3282664,04/04/2017,08/03/2017,3015747,Tyco Fire & Integrated Solutions (UK) Ltd (Cambridge),Service Charges,HRA City West Homes,"2,183.00",,
3282665,05/04/2017,17/03/2017,3015793,Bay Media Ltd,Hired and Contracted Services,"Policy, Performance and Communications","3,200.00",,
3282666,06/04/2017,15/03/2017,3015826,Personal detail - redacted,Advocacy (Legal Fees),Development Planning,"2,675.00",,
3282669,11/04/2017,14/03/2017,3016075,The Elms Sports in Schools,Bought in professional services PE coaching  - E27,Schools,"1,715.00",,
3282670,24/04/2017,14/03/2017,3015412,Asia House Enterprises,Hire of Rooms,Tri-borough Libraries and Archives,"2,454.75",,
3282671,20/04/2017,14/03/2017,3015412,Asia House Enterprises,Hire of Rooms,Tri-borough Libraries and Archives,"4,023.00",,
3282673,04/04/2017,07/02/2017,3015524,Realworld Consulting Ltd,Consultancy (Hired & Contr - Consultancy),Public Health,"12,900.00",,
3282675,13/04/2017,17/03/2017,3015705,Ilx Group Plc,Hired and Contracted Services,TB Information Services and Strategy,"1,220.00",,
3282677,10/04/2017,05/03/2017,3013871,Fergie & Co Ltd,Fees General,Family Services 1,"2,255.00",,
3282678,05/04/2017,11/03/2016,3013983,London Borough Of Islington,Schools Transport Payments - Other,Education,"12,870.00",,
3282679,10/04/2017,01/03/2017,3015047,Crest Manor Ltd,Fees General,Family Services 1,"1,299.60",,
3282680,05/04/2017,06/03/2017,3015144,Overland Health Services,Recruitment & Assessment,Adult Social Care Integrated Care,"3,300.00",,
3282681,04/04/2017,03/02/2017,3015177,Twinkl Ltd,Educational Software and Hardware - Teaching Purposes  -E20,Schools,583.3,,
3282684,11/04/2017,14/03/2017,3013770,R82 UK Ltd,Assistive equipment and Technology,Education,846,,
3282688,18/04/2017,21/03/2017,3013590,ARO Performance Systems Ltd,Measuring (Equip Env),HRA City West Homes,"4,177.24",,
3282689,05/04/2017,21/02/2017,3013599,Life in Balance,Adults Carers Other Payments,Adult Social Care Strategic Commissioning and Enterprise,"1,329.20",,
3282690,05/04/2017,08/03/2017,3013606,Personal detail - redacted,Consultancy (Hired & Contr - Consultancy),Education,"3,000.00",,
3282692,12/04/2017,15/03/2017,3013742,Tendercare Nurseries,Contractors,Waste and Parks,"8,015.75",,
3282693,24/04/2017,15/03/2017,3013743,How Green Nursery,Trees & Shrubs (Equip Hort),Waste and Parks,"4,300.00",,
3282695,12/04/2017,15/03/2017,3013487,Capita Treasury Solutions Ltd,Hired and Contracted Services,Tri-Borough Treasury and Pensions,"7,000.00",,
3282696,11/04/2017,14/03/2017,3013590,ARO Performance Systems Ltd,IT Software Maintenance,HRA City West Homes,"3,465.00",,
3282697,13/04/2017,16/03/2017,3013590,ARO Performance Systems Ltd,IT Software Maintenance,HRA City West Homes,"1,560.00",,
3282698,13/04/2017,20/03/2017,3013590,ARO Performance Systems Ltd,IT Software Maintenance,HRA City West Homes,"3,465.00",,
3282699,18/04/2017,21/03/2017,3013590,ARO Performance Systems Ltd,Measuring (Equip Env),HRA City West Homes,"6,768.59",,
3282703,06/04/2017,28/02/2017,3013472,Searchflow,Property Searches,Legal Services,"1,209.25",,
3282704,04/04/2017,03/03/2017,3013475,The Literacy Tree Ltd,Bought in professional services Literacy - E27,Schools,"1,250.00",,
3282710,20/04/2017,21/03/2017,3013469,Saacke Combustion Services Ltd,Management (Hired & Contr - Consultancy),HRA City West Homes,"2,903.00",,
3282726,20/04/2017,12/03/2017,3006322,Extrastaff Ltd,Schools Transport Payments - Other,Education,"1,458.16",,
3282727,20/04/2017,12/03/2017,3006322,Extrastaff Ltd,Schools Transport Payments - Other,Education,"1,038.16",,
3282728,19/04/2017,20/03/2017,3006333,Family Lives,Support & Other Accommodation (Voluntary associations),Children's Services Commissioning,"23,204.76",,
3282731,11/04/2017,14/03/2017,3006186,DLA Piper UK LLP,Consultancy (Hired & Contr - Consultancy),Economy,"1,677.60",,
3282732,11/04/2017,14/03/2017,3006186,DLA Piper UK LLP,Consultancy (Hired & Contr - Consultancy),Economy,"1,827.40",,
3282733,11/04/2017,14/03/2017,3006186,DLA Piper UK LLP,Consultancy (Hired & Contr - Consultancy),Economy,"2,500.00",,
3282734,04/04/2017,28/02/2017,3006187,Dod's Parliamentary Communications Ltd,Hired and Contracted Services,"Policy, Performance and Communications","1,995.00",,
3282737,13/04/2017,16/03/2017,3022427,C A Telecom UK Ltd,Design and development,City Management and Communities,"18,431.10",,
3282738,13/04/2017,16/03/2017,3022461,Redkey Digital Ltd,Website Development (IT Software Purch) (R Code),Economy,"2,500.00",,
3282740,04/04/2017,22/02/2017,3022706,Caterlink Ltd,Catering -Service Contract -E25,Schools,"4,649.23",,
3282741,13/04/2017,17/03/2017,3005912,BPP Professional Education,Exam Fees,WAES Director (Principal),594,,
3282743,13/04/2017,15/03/2017,3021732,London Metropolitan University,Exam Fees,Procurement Services,683,,
3282744,12/04/2017,13/03/2017,3021999,Our Parks,Activities and Events,Community Services,"2,420.00",,
3282749,24/04/2017,14/03/2017,3020343,Michael Page International Recruitment Ltd,Salaries,HRA City West Homes,"1,092.50",,
3282750,24/04/2017,21/03/2017,3020343,Michael Page International Recruitment Ltd,Salaries,HRA City West Homes,"1,092.50",,
3282752,06/04/2017,04/06/2015,3020759,Personal detail - redacted,Advocacy (Legal Fees),Children's Services Commissioning,675,,
3282754,06/04/2017,30/01/2017,3019519,Media & Marketing With Impact,Activities and Events,"Policy, Performance and Communications","2,950.00",,
3282756,20/04/2017,21/03/2017,3019563,Catch22 Charity Ltd,Element 3 - Top-up Funding,Education,"19,487.18",,
3282757,04/04/2017,27/02/2017,3019582,International Lift Equipment ltd,Contractors,HRA City West Homes,"55,655.00",,
3282759,04/04/2017,01/12/2016,3020224,Virtual Class Ltd T/A Third Space Learning,Course Fees -E19,Schools,"4,380.00",,
3282760,06/04/2017,22/03/2017,3018996,Mountcare Ltd,Fees General,Housing Operations,"3,968.00",,
3282761,05/04/2017,31/01/2017,3019019,Personal detail - redacted,Electricity (Energy),Property Investments and Estates,"6,525.00",,
3282764,05/04/2017,31/01/2017,3019370,Personal detail - redacted,Schools Transport Payments - Other,Education,950,,
3282765,07/04/2017,28/02/2017,3019370,Personal detail - redacted,Schools Transport Payments - Other,Education,850,,
3282766,25/05/2017,09/03/2017,3018441,Tony's Sewing Centre,Course Materials,WAES Director (Principal),844,,
3282767,13/04/2017,17/03/2017,3018572,Bureau Veritas UK Ltd,Professional Fees (non-Legal),Community Services,"1,447.50",,
3282768,13/04/2017,17/03/2017,3018572,Bureau Veritas UK Ltd,Consultants/Consultation,Property Investments and Estates,"1,447.50",,
3282772,06/04/2017,31/10/2016,3027100,Children and Families Law Firm LLP,Advocacy (Legal Fees),Children's Services Commissioning,"1,145.00",,
3282773,12/04/2017,13/03/2017,3018264,Acmed Services Ltd,Hired and Contracted Services,Adult Social Care Integrated Care,"2,433.09",,
3282776,27/04/2017,13/03/2017,3018439,Pulse Healthcare Ltd,Consultancy (Hired & Contr - Consultancy),Public Protection and Licensing,"1,110.00",,
3282779,19/04/2017,20/03/2017,3025836,Everyone Active Admin Services Ltd,Activities and Events,Community Services,"11,700.00",,
3282782,12/04/2017,13/03/2017,3027022,XMA Ltd,Electricity (Energy),Property Investments and Estates,"38,355.00",,
3282783,07/04/2017,16/03/2017,3027040,Personal detail - redacted,Advocacy (Legal Fees),Children's Services Commissioning,"3,000.00",,
3282785,13/04/2017,14/03/2017,3025470,Kate Hart Consulting,Consultancy (Hired & Contr - Consultancy),"Policy, Performance and Communications","1,000.00",,
3282787,11/04/2017,16/02/2017,3025610,KC Controls (UK) LLP,Management (Hired & Contr - Consultancy),HRA City West Homes,"8,047.77",,
3282789,05/04/2017,01/02/2017,3025836,Everyone Active Admin Services Ltd,PE- Hire of pitches and sports facilities -E19,Schools,666.75,,
3282790,10/04/2017,11/03/2017,3024343,Hubspot Ireland Ltd,Activities and Events,Waste and Parks,"5,670.00",,
3282792,13/04/2017,16/03/2017,3024441,Personal detail - redacted,Advocacy (Legal Fees),Adult Social Care Integrated Care,625,,
3282793,12/04/2017,13/03/2017,3024666,Findian CTO Services Ltd,Consultancy (Hired & Contr - Consultancy),Parking,"5,500.00",,
3282795,07/04/2017,21/03/2017,3024805,Personal detail - redacted,Hired and Contracted Services,WAES Director (Principal),510,,
3282796,06/04/2017,20/09/2016,3023652,Blue Pearl Catering Ltd,Food & Beverages (Equip Catering),WCC People Services,796,,
3282797,06/04/2017,23/02/2017,3023652,Blue Pearl Catering Ltd,Food & Beverages (Equip Catering),WCC People Services,"1,103.50",,
3282798,04/04/2017,16/02/2017,3023930,Sue Hill Recruitment & Services Limited,Hired and Contracted Services,Tri-borough Libraries and Archives,705.6,,
3282799,04/04/2017,02/03/2017,3023930,Sue Hill Recruitment & Services Limited,Hired and Contracted Services,Tri-borough Libraries and Archives,705.6,,
3282800,04/04/2017,09/03/2017,3023930,Sue Hill Recruitment & Services Limited,Hired and Contracted Services,Tri-borough Libraries and Archives,705.6,,
3282802,04/04/2017,15/02/2017,3023406,New Combustion Engineering Ltd,Contractors R&M Contractors Electricity -E12,Schools,"1,615.89",,
3282803,04/04/2017,31/01/2017,3023414,Wildstone Media Consulting Ltd,Equipment (Contractors C5700),"Policy, Performance and Communications","81,763.70",,
3282804,05/04/2017,31/01/2017,3023414,Wildstone Media Consulting Ltd,Hired and Contracted Services,"Policy, Performance and Communications","16,360.05",,
3282805,19/04/2017,20/03/2017,3023500,Luke Wreford T/A Mindways,Hired and Contracted Services,WCC People Services,"2,640.00",,
3282808,13/04/2017,14/03/2017,3023075,Sports & Leisure Management Ltd,Refurbishment,Community Services,"8,916.00",,
3282809,13/04/2017,14/03/2017,3023075,Sports & Leisure Management Ltd,Refurbishment,Community Services,"1,394.30",,
3282810,13/04/2017,14/03/2017,3023075,Sports & Leisure Management Ltd,Electricity (Energy),Community Services,"7,525.00",,
3282811,13/04/2017,14/03/2017,3023075,Sports & Leisure Management Ltd,Activities and Events,Community Services,"62,042.00",,
3282814,13/04/2017,15/03/2017,3005663,ACS Business Supplies Ltd,IT Hardware Purchase,HRA City West Homes,"2,817.05",,
3282816,04/04/2017,20/01/2017,3005675,Advanced Legal Solutions Ltd,Hired and Contracted Services,Chief of Staff,"1,980.00",,
3282817,12/04/2017,13/03/2017,3022909,Collaborate Ventures Ltd,Public Health (Hired & Contr - Healthcare),Public Health,"1,210.00",,
3282818,13/04/2017,14/03/2017,3023075,Sports & Leisure Management Ltd,Refurbishment,Community Services,"37,298.00",,
3282819,13/04/2017,14/03/2017,3023075,Sports & Leisure Management Ltd,Refurbishment,Community Services,"4,040.00",,
3282820,28/04/2017,15/03/2017,3005529,Gristwood & Toms,Maintenance (Ground Mtce - Plan),HRA City West Homes,"7,412.15",,
3282822,13/04/2017,14/03/2017,3005663,ACS Business Supplies Ltd,IT Hardware Purchase,HRA City West Homes,"3,449.73",,
3282823,13/04/2017,14/03/2017,3005663,ACS Business Supplies Ltd,IT Hardware Purchase,HRA City West Homes,"39,033.41",,
3282825,25/04/2017,15/03/2017,3005663,ACS Business Supplies Ltd,IT Hardware Purchase,HRA City West Homes,"1,479.95",,
3282826,04/04/2017,01/03/2017,3005492,Academics Ltd,Agency Supply Staff- curriculum -E27,Schools,"1,686.70",,
3282827,05/04/2017,09/06/2015,3005502,Corona Energy Retail 4 Ltd,Gas (Energy),Family Services 2,990.34,,
3282831,04/04/2017,10/02/2017,3005502,Corona Energy Retail 4 Ltd,Gas -E16,Schools,569.4,,
3282832,07/04/2017,08/03/2017,3005492,Academics Ltd,Agency Supply Staff- curriculum -E27,Schools,550,,
3282833,07/04/2017,08/03/2017,3005492,Academics Ltd,Agency Supply Staff- curriculum -E27,Schools,550,,
3282834,06/04/2017,25/01/2017,3005492,Academics Ltd,Agency Supply Staff- curriculum -E27,Schools,"1,686.70",,
3282835,04/04/2017,01/02/2017,3005492,Academics Ltd,Agency Supply Staff- curriculum -E27,Schools,"1,650.00",,
3282836,04/04/2017,18/01/2017,3005492,Academics Ltd,Agency Supply Staff- curriculum -E27,Schools,781,,
3282837,04/04/2017,15/02/2017,3005492,Academics Ltd,Agency Supply Staff- curriculum -E27,Schools,"1,741.90",,
3282838,04/04/2017,03/03/2017,3005097,London Borough Of Hammersmith & Fulham,Section 113 Shared Services Charges - Staffing,Finance and Resources,"6,857.92",,
3282839,06/04/2017,28/02/2017,3005467,Sharpe Pritchard,External Legal - Contract Negotiation,City Management and Communities,"2,266.20",,
3282843,07/04/2017,08/03/2017,3005492,Academics Ltd,Agency Supply Staff- curriculum -E27,Schools,550,,
3282844,13/04/2017,14/03/2017,3005022,Catalyst Housing Ltd,Property Management Fees,Housing Operations,"29,508.24",,
3282845,04/04/2017,24/01/2017,3005046,London Borough Of Hammersmith & Fulham,Hired and Contracted Services,WCC People Services,"7,117.00",,
3282846,04/04/2017,03/03/2017,3005097,London Borough Of Hammersmith & Fulham,Section 113 Shared Services Charges - Staffing,Finance and Resources,"8,583.75",,
3282847,12/04/2017,01/03/2017,3005097,London Borough Of Hammersmith & Fulham,Section 113 Shared Services Charges - Staffing,Adult Social Care Finance and Resources,"66,277.00",,
3282848,12/04/2017,01/03/2017,3005097,London Borough Of Hammersmith & Fulham,Section 113 Shared Services Charges - Staffing,Adult Social Care Finance and Resources,"70,789.00",,
3282849,18/04/2017,01/03/2017,3005097,London Borough Of Hammersmith & Fulham,Section 113 Shared Services Charges - Staffing,Adult Social Care Finance and Resources,"53,668.00",,
3282855,12/04/2017,13/03/2017,3005009,Ruth Wilmott Associates Limited,Professional Fees (non-Legal),Community Services,"3,400.00",,
3282862,16/05/2017,16/03/2017,3004820,Lambert Smith Hampton Group Ltd,Consultants/Consultation,HRA City West Homes,770,,
3282863,04/04/2017,16/03/2017,3004840,A N Contract Service Ltd,Contractors - Repairs and Maintenance -E12,Schools,825,,
3282864,06/04/2017,17/03/2017,3004840,A N Contract Service Ltd,Contractors,Waste and Parks,"4,800.00",,
3282865,19/04/2017,20/03/2017,3004851,Personal detail - redacted,Professional Fees (non-Legal),"Growth, Planning and Housing","3,500.00",,
3282866,13/04/2017,14/03/2017,3004934,Paddington Development Trust(Norland House Office),Consultancy (Hired & Contr - Consultancy),Economy,"4,570.00",,
3282871,04/04/2017,24/11/2016,3004688,3Bm Ltd,"ICT - Purchase, Lease, hire and Maintenance -E20",Schools,"1,912.89",,
3282872,04/04/2017,27/01/2017,3004688,3Bm Ltd,"ICT - Purchase, Lease, hire and Maintenance -E20",Schools,877.39,,
3282882,04/04/2017,19/12/2016,3003655,J A Cornish Ltd,Planned Maintenance,Community Services,"3,900.00",,
3282884,11/04/2017,22/03/2017,3003857,Carers Network Westminster Ltd,Advice & Counselling Services (Hired & Contr - Social CommCare),Adult Social Care Strategic Commissioning and Enterprise,"32,078.67",,
3282886,05/04/2017,13/03/2017,3002901,St Andrews Home & Club,Activities and Events,Community Services,"2,860.00",,
3282887,05/04/2017,01/03/2017,3002913,Abbey Community Association Ltd,Training & Conferences,Housing Operations,"9,900.00",,
3282889,13/04/2017,16/03/2017,3002918,London Diocesan Board For Schools,Printing (Printing),Children's Services Commissioning,"6,750.00",,
3282890,13/04/2017,15/03/2017,3002961,Future Academies T/A Pimlico Academy,Repair & Maintenance (R&M - React),Tri-borough Libraries and Archives,"8,848.47",,
3282891,26/05/2017,14/03/2017,3002880,Central London Community Healthcare,Public Health (Hired & Contr - Healthcare),Public Health,"43,598.00",,
3282892,13/04/2017,14/03/2017,3002880,Central London Community Healthcare,Public Health (Hired & Contr - Healthcare),Public Health,"86,322.00",,
3282893,23/05/2017,14/03/2017,3002880,Central London Community Healthcare,Public Health (Hired & Contr - Healthcare),Public Health,"344,336.00",,
3282894,13/04/2017,14/03/2017,3002880,Central London Community Healthcare,Placements (Health Authorities),Adult Social Care Strategic Commissioning and Enterprise,"91,301.00",,
3282896,07/06/2017,21/12/2015,3002881,City Of Westminster,Traded Services - School Effective/SEN -E27,Schools,"1,150.00",,
3282897,18/04/2017,28/02/2017,3002553,Box-It Ltd,Storage (Hired & Contr - Facilities Mgt),TB Information Services and Strategy,"2,882.88",,
3282898,06/04/2017,28/02/2017,3002571,Action On Addiction,Public Health (Hired & Contr - Healthcare),Public Health,"6,666.67",,
3282899,18/04/2017,17/03/2017,3002877,London Apprenticeship Company,Hired and Contracted Services,Corporate Services Trading,"19,637.55",,
3282900,23/05/2017,14/03/2017,3002880,Central London Community Healthcare,Public Health (Hired & Contr - Healthcare),Public Health,"151,424.00",,
3282901,24/05/2017,14/03/2017,3002880,Central London Community Healthcare,Support & Other Accommodation (Private contractors),Public Health,"9,899.00",,
3282902,24/05/2017,14/03/2017,3002880,Central London Community Healthcare,Public Health (Hired & Contr - Healthcare),Public Health,"17,403.00",,
3282903,20/04/2017,21/03/2017,3002264,London Fire & Emergency Planning Authori,Hired and Contracted Services,Public Protection and Licensing,"28,370.00",,
3282904,05/04/2017,28/02/2017,3002279,Social Care Institute For Excellence,Public Health (Hired & Contr - Healthcare),Public Health,"1,250.00",,
3282905,06/04/2017,20/03/2017,3002437,Cupaz,Electricity (Energy),Property Investments and Estates,"3,249.40",,
3282906,13/04/2017,17/03/2017,3002462,Bibliotheca Ltd,Library Servicing and Binding,Tri-borough Libraries and Archives,557.25,,
3282908,04/04/2017,28/02/2017,3002540,Allstar Business Solutions Ltd,Fuel (Transport),Parking,"1,591.95",,
3282908,04/04/2017,28/02/2017,3002540,Allstar Business Solutions Ltd,Fuel (Transport),Public Protection and Licensing,"1,314.33",,
3282908,04/04/2017,28/02/2017,3002540,Allstar Business Solutions Ltd,Fuel (Transport),Public Protection and Licensing,894.5,,
3282909,13/04/2017,06/02/2017,3002097,Priors Court Foundation,Equipment Maintenance,Education,"13,865.02",,
3282909,13/04/2017,06/02/2017,3002097,Priors Court Foundation,Equipment Maintenance,Family Services 1,"6,922.11",,
3282915,10/04/2017,14/03/2017,3002007,Amey,Building Construction Materials Reactive (R&M - React),Property Investments and Estates,"12,970.30",,
3282916,10/04/2017,22/03/2017,3002007,Amey,Building Construction Materials Reactive (R&M - React),Property Investments and Estates,"39,572.14",,
3282917,05/04/2017,24/11/2016,3002039,Smart Parking Ltd,Hired and Contracted Services,Parking,"7,606.53",,
3282919,05/04/2017,28/12/2016,3002039,Smart Parking Ltd,Hired and Contracted Services,Parking,"7,148.40",,
3282921,06/04/2017,28/02/2017,3001919,Vital Regeneration,Hired and Contracted Services,Housing Operations,"11,645.00",,
3282922,05/04/2017,01/09/2016,3001936,Marylebone Cricket Club,Room Hire (Rent),"Policy, Performance and Communications","3,310.50",,
3282925,19/04/2017,20/03/2017,3001990,Alere Toxicology Plc,Post mortem and reports fees,Family Services 2,945.2,,
3282926,05/04/2017,20/01/2017,3001991,Bookpoint Ltd,Curriculum Books Numeracy  - E19,Schools,810,,
3282927,13/04/2017,14/03/2017,3001917,Continental Landscapes Ltd,Cemetery Maintenance,Waste and Parks,"1,768.53",,
3282928,13/04/2017,14/03/2017,3001917,Continental Landscapes Ltd,Contractors,Waste and Parks,"13,248.00",,
3282929,13/04/2017,14/03/2017,3001917,Continental Landscapes Ltd,Contractors,Waste and Parks,"21,500.00",,
3282930,13/04/2017,14/03/2017,3001917,Continental Landscapes Ltd,Equipment (Contractors C5700),Waste and Parks,"2,665.34",,
3282931,28/04/2017,21/03/2017,3001917,Continental Landscapes Ltd,Maintenance (Ground Mtce - Plan),HRA City West Homes,"17,961.66",,
3282932,28/04/2017,21/03/2017,3001917,Continental Landscapes Ltd,Maintenance (Ground Mtce - Plan),HRA City West Homes,"28,459.58",,
3282933,13/04/2017,14/03/2017,3001917,Continental Landscapes Ltd,Maintenance (Ground Mtce),Waste and Parks,"47,294.24",,
3282934,13/04/2017,14/03/2017,3001917,Continental Landscapes Ltd,Contractors,Waste and Parks,"23,635.00",,
3282935,13/04/2017,14/03/2017,3001917,Continental Landscapes Ltd,Contractors,Waste and Parks,"24,709.66",,
3282936,13/04/2017,14/03/2017,3001917,Continental Landscapes Ltd,Contractors,Waste and Parks,"39,591.20",,
3282937,13/04/2017,14/03/2017,3001917,Continental Landscapes Ltd,Contractors,Waste and Parks,"1,500.00",,
3282938,13/04/2017,14/03/2017,3001917,Continental Landscapes Ltd,Engineers Stuctural,Waste and Parks,"2,750.00",,
3282939,13/04/2017,14/03/2017,3001917,Continental Landscapes Ltd,Maintenance (Ground Mtce),Waste and Parks,"77,337.20",,
3282941,13/04/2017,14/03/2017,3001917,Continental Landscapes Ltd,Maintenance (Ground Mtce),Waste and Parks,"44,867.86",,
3282943,13/04/2017,14/03/2017,3001917,Continental Landscapes Ltd,Maintenance (Ground Mtce),Waste and Parks,954.6,,
3282944,13/04/2017,14/03/2017,3001917,Continental Landscapes Ltd,Maintenance (Ground Mtce),Waste and Parks,"7,823.04",,
3282945,11/04/2017,22/02/2017,3001896,Quintin Kynaston Academy,Element 3 - Top-up Funding,Education,"1,000.00",,
3282946,13/04/2017,14/03/2017,3001917,Continental Landscapes Ltd,Funeral Expenses inc equipment,Waste and Parks,"2,417.43",,
3282947,24/04/2017,14/03/2017,3001917,Continental Landscapes Ltd,Maintenance (Ground Mtce),Waste and Parks,"1,987.97",,
3282948,13/04/2017,14/03/2017,3001917,Continental Landscapes Ltd,Maintenance (Ground Mtce),Waste and Parks,"4,960.48",,
3282949,13/04/2017,14/03/2017,3001917,Continental Landscapes Ltd,Maintenance (Ground Mtce),Waste and Parks,506.49,,
3282950,13/04/2017,14/03/2017,3001917,Continental Landscapes Ltd,Maintenance (Ground Mtce),Waste and Parks,"2,018.00",,
3282951,11/04/2017,22/02/2017,3001896,Quintin Kynaston Academy,Element 3 - Top-up Funding,Education,"1,000.00",,
3282952,11/04/2017,22/02/2017,3001896,Quintin Kynaston Academy,Element 3 - Top-up Funding,Education,"1,000.00",,
3282953,11/04/2017,22/02/2017,3001896,Quintin Kynaston Academy,Element 3 - Top-up Funding,Education,"1,000.00",,
3282954,11/04/2017,22/02/2017,3001896,Quintin Kynaston Academy,Element 3 - Top-up Funding,Education,"1,000.00",,
3282955,11/04/2017,22/02/2017,3001896,Quintin Kynaston Academy,Element 3 - Top-up Funding,Education,"1,000.00",,
3282956,11/04/2017,22/02/2017,3001896,Quintin Kynaston Academy,Element 3 - Top-up Funding,Education,"1,000.00",,
3282957,11/04/2017,22/02/2017,3001896,Quintin Kynaston Academy,Element 3 - Top-up Funding,Education,"1,000.00",,
3282958,11/04/2017,22/02/2017,3001896,Quintin Kynaston Academy,Element 3 - Top-up Funding,Education,"1,000.00",,
3282959,11/04/2017,22/02/2017,3001896,Quintin Kynaston Academy,Element 3 - Top-up Funding,Education,"1,000.00",,
3282960,11/04/2017,22/02/2017,3001896,Quintin Kynaston Academy,Element 3 - Top-up Funding,Education,"1,000.00",,
3282961,11/04/2017,22/02/2017,3001896,Quintin Kynaston Academy,Element 3 - Top-up Funding,Education,"1,000.00",,
3282962,11/04/2017,22/02/2017,3001896,Quintin Kynaston Academy,Element 3 - Top-up Funding,Education,"1,000.00",,
3282963,13/04/2017,15/03/2017,3001751,Maria Fidelis Convent School,SEN Therapy,Education,"5,013.33",,
3282964,13/04/2017,15/03/2017,3001751,Maria Fidelis Convent School,SEN Therapy,Education,"3,583.33",,
3282966,19/04/2017,31/12/2016,3001870,Sweet Tree Home Care Services,Rent paid to Landlords,Adult Social Care Integrated Care,"2,000.00",,
3282967,19/04/2017,31/01/2017,3001870,Sweet Tree Home Care Services,Rent paid to Landlords,Adult Social Care Integrated Care,"2,000.00",,
3282968,19/04/2017,28/02/2017,3001870,Sweet Tree Home Care Services,Rent paid to Landlords,Adult Social Care Integrated Care,"2,000.00",,
3282974,04/04/2017,16/01/2017,3001744,Leisure Net Solutions Ltd,Activities and Events,Community Services,"1,800.00",,
3282977,13/04/2017,15/03/2017,3001684,Loomis Uk Ltd,Hired and Contracted Services,Tri-Borough Treasury and Pensions,809.91,,
3282978,05/04/2017,06/03/2017,3001712,Covergold Ltd,IT Hardware Purchase,TB Information Services and Strategy,"3,260.00",,
3282983,04/04/2017,15/02/2017,3001503,Conservation By Design Ltd,Library Materials - Conservation,Tri-borough Libraries and Archives,977,,
3282984,07/04/2017,08/03/2017,3001503,Conservation By Design Ltd,Library Materials - Conservation,Tri-borough Libraries and Archives,649.7,,
3282986,12/04/2017,13/03/2017,3001535,Leyland Sdm,Hired and Contracted Services,Public Protection and Licensing,"1,371.90",,
3282988,05/04/2017,15/08/2016,3001473,Kent County Council (KCS),Photocopier general - E22,Schools,526.46,,
3282989,13/04/2017,14/03/2017,3001495,Traffic Technology Ltd,Repair & Maintenance (R&M -Plan),Community Services,"2,015.00",,
3282993,04/04/2017,05/03/2017,3001437,Adt Fire & Security Plc,Security CCTV - E18,Schools,"1,084.43",,
3282994,11/04/2017,02/03/2017,3001452,Sodexo Healthcare Services,Community Meals (Private contractors),Adult Social Care Strategic Commissioning and Enterprise,"17,121.52",,
3282995,05/04/2017,14/03/2017,3001473,Kent County Council (KCS),Schools Transport Payments - Other,Education,"14,454.06",,
3283005,20/04/2017,21/03/2017,3001037,Ericsson Ltd,Equipment (Contractors C5700),Property Investments and Estates,"42,734.00",,
3283006,06/04/2017,28/02/2017,3001343,Cranstoun Drug Services,Public Health (Hired & Contr - Healthcare),Public Health,"2,203.08",,
3283010,13/04/2017,16/03/2017,3000888,City Of London,Hired and Contracted Services,Economy,"250,000.00",,
3283011,13/04/2017,09/03/2017,3000919,Wates Living Space,Electricity (Energy),HRA City West Homes,"12,272.78",,
3283012,05/04/2017,03/03/2017,3000941,Personal detail - redacted,Bought in professional services- curriculum -E27,Schools,"1,000.00",,
3283015,13/04/2017,16/03/2017,3000997,Air Monitors Ltd,Hired and Contracted Services,Highways Infrastructure & Public Realm,"1,874.00",,
3283018,06/04/2017,02/03/2017,3000846,City & Guilds Of London Institute,Exam Fees,WAES Director (Principal),"1,860.00",,
3283023,06/04/2017,26/01/2017,3000846,City & Guilds Of London Institute,Exam Fees,WAES Director (Principal),525,,
3283028,24/04/2017,28/02/2017,3000672,F.M Conway Ltd,Contractors,City Management and Communities,"-273,648.57",,
3283030,04/04/2017,28/02/2017,3000684,London Hire Ltd,Leasing (Transport),Public Protection and Licensing,"1,250.00",,
3283032,13/04/2017,14/03/2017,3000707,S P Partnership Arb Services,Contractors,Waste and Parks,"5,610.00",,
3283033,06/04/2017,07/03/2017,3000792,Northern Trust,Hired and Contracted Services,Tri-Borough Treasury and Pensions,"2,244.09",,
3283035,04/04/2017,17/02/2017,3000672,F.M Conway Ltd,Contractors,City Management and Communities,"66,080.00",,
3283036,04/04/2017,17/02/2017,3000672,F.M Conway Ltd,Contractors,City Management and Communities,"429,650.95",,
3283037,04/04/2017,22/02/2017,3000672,F.M Conway Ltd,Fees General,Parking,534,,
3283038,24/04/2017,13/03/2017,3000672,F.M Conway Ltd,Contractors,City Management and Communities,"20,492.34",,
3283039,24/04/2017,28/02/2017,3000672,F.M Conway Ltd,Contractors,City Management and Communities,"14,604.00",,
3283040,24/04/2017,28/02/2017,3000672,F.M Conway Ltd,Contractors,City Management and Communities,"-45,683.00",,
3283045,05/04/2017,08/03/2017,3000523,Equinox,Public Health (Hired & Contr - Healthcare),Public Health,"2,150.00",,
3283047,18/04/2017,19/03/2017,3000434,Trinity Mirror Southern Ltd,Publications (Expenditure),Development Planning,635.96,,
3283053,11/04/2017,12/03/2017,3000434,Trinity Mirror Southern Ltd,Publications (Expenditure),Development Planning,635.95,,
3283059,10/04/2017,13/03/2017,3000336,Judge & Priestley,Legal Services: Not Elsewhere Classified (Legal Fees),HRA City West Homes,"2,225.00",,
3283063,13/04/2017,20/03/2017,3000336,Judge & Priestley,Legal Services: Not Elsewhere Classified (Legal Fees),HRA City West Homes,"1,356.00",,
3283068,13/04/2017,17/03/2017,3000298,Virgin Media Business,Design and development,City Management and Communities,"1,200.00",,
3283069,06/04/2017,01/02/2017,3000313,Mplc Ltd,Subscriptions,Adult Social Care Integrated Care,"4,028.70",,
3283071,04/04/2017,23/01/2017,3000284,Leumi Invoice Finance,Agency Supply Staff- curriculum -E27,Schools,975,,
3283072,06/04/2017,30/01/2017,3000284,Leumi Invoice Finance,Agency Supply Staff- curriculum -E27,Schools,975,,
3283073,04/04/2017,23/01/2017,3000284,Leumi Invoice Finance,Agency Supply Staff- curriculum -E27,Schools,780,,
3283074,04/04/2017,27/02/2017,3000284,Leumi Invoice Finance,Agency Supply Staff- curriculum -E27,Schools,975,,
3283075,07/04/2017,08/03/2017,3000284,Leumi Invoice Finance,Agency Supply Staff- curriculum -E27,Schools,975,,
3283081,18/04/2017,06/01/2017,3000127,Bates Office Services Ltd,Stationery: Not Elsewhere Classified (Stationery),Tri-borough Libraries and Archives,635.87,,
3283082,04/04/2017,07/03/2017,3000132,Barnardo's Service Ltd,Grants,Family Services 3,"6,717.46",,
3283095,20/04/2017,21/03/2017,3013469,Saacke Combustion Services Ltd,Management (Hired & Contr - Consultancy),HRA City West Homes,"1,334.00",,
3283096,07/04/2017,10/03/2017,3000097,Eleanor Martlew Associates,Education (Hired & Contr - Educ),Education,"1,200.00",,
3283097,10/04/2017,13/03/2017,3000099,London Sports Trust,Activities and Events,Community Services,"12,000.00",,
3283101,06/04/2017,18/08/2016,3013380,Personal detail - redacted,Advocacy (Legal Fees),Housing Operations,540,,
3283103,05/04/2017,20/03/2017,3013446,Personal detail - redacted,Conference Expenses,Education,720,,
3283105,22/06/2017,20/12/2016,3013466,Parayhouse School,SEN Therapy,Education,"6,030.00",,
3283106,20/04/2017,21/03/2017,3013469,Saacke Combustion Services Ltd,Management (Hired & Contr - Consultancy),HRA City West Homes,"4,355.00",,
3283109,05/04/2017,22/02/2017,3013305,IC Consultants Ltd (Subsidiary of Imperial College London),Post mortem and reports fees,Chief of Staff,604,,
3283110,13/04/2017,16/03/2017,3013334,Bravo Solution UK Ltd,Hired and Contracted Services,Procurement Services,"5,000.00",,
3283111,13/04/2017,16/03/2017,3013334,Bravo Solution UK Ltd,Software (IT Software Purch),Procurement Services,"5,000.00",,
3283113,05/04/2017,13/02/2017,3013305,IC Consultants Ltd (Subsidiary of Imperial College London),Post mortem and reports fees,Chief of Staff,544,,
3283124,05/04/2017,13/02/2017,3013305,IC Consultants Ltd (Subsidiary of Imperial College London),Post mortem and reports fees,Chief of Staff,620,,
3283130,05/04/2017,09/08/2016,3013305,IC Consultants Ltd (Subsidiary of Imperial College London),Post mortem and reports fees,Chief of Staff,676,,
3283132,05/04/2017,27/01/2017,3013305,IC Consultants Ltd (Subsidiary of Imperial College London),Post mortem and reports fees,Chief of Staff,568,,
3283135,05/04/2017,02/02/2017,3013305,IC Consultants Ltd (Subsidiary of Imperial College London),Post mortem and reports fees,Chief of Staff,672,,
3283141,05/04/2017,24/01/2017,3013305,IC Consultants Ltd (Subsidiary of Imperial College London),Post mortem and reports fees,Chief of Staff,508,,
3283143,06/04/2017,22/02/2017,3012868,Personal detail - redacted,Advocacy (Legal Fees),Children's Services Commissioning,550,,
3283144,12/04/2017,15/03/2017,3012878,Learning Tree International Ltd,Hired and Contracted Services,TB Information Services and Strategy,"1,000.00",,
3283145,18/04/2017,15/03/2017,3012878,Learning Tree International Ltd,Hired and Contracted Services,TB Information Services and Strategy,"1,000.00",,
3283148,05/04/2017,05/12/2016,3013305,IC Consultants Ltd (Subsidiary of Imperial College London),Post mortem and reports fees,Chief of Staff,588,,
3283149,05/04/2017,17/03/2017,3012711,Personal detail - redacted,Hired and Contracted Services,WAES Director (Principal),675.5,,
3283150,13/04/2017,16/03/2017,3012786,Personal detail - redacted,Advocacy (Legal Fees),Children's Services Commissioning,"4,750.00",,
3283151,06/04/2017,24/02/2017,3012790,Personal detail - redacted,Advocacy (Legal Fees),Children's Services Commissioning,"3,624.50",,
3283152,19/04/2017,22/03/2017,3012807,Personal detail - redacted,Advocacy (Legal Fees),Housing Operations,850,,
3283153,06/04/2017,22/02/2017,3012828,Personal detail - redacted,Advocacy (Legal Fees),Children's Services Commissioning,550,,
3283156,07/04/2017,10/03/2017,3012678,Halarose Ltd,IT Software Maintenance,Chief of Staff,520,,
3283157,10/04/2017,13/03/2017,3012678,Halarose Ltd,IT Software Maintenance,Chief of Staff,541.74,,
3283164,05/04/2017,10/02/2017,3012634,Association Of Accounting Technicians,Exam Fees,WAES Director (Principal),843,,
3283165,07/04/2017,10/03/2017,3012634,Association Of Accounting Technicians,Exam Fees,WAES Director (Principal),953,,
3283166,07/04/2017,10/03/2017,3012634,Association Of Accounting Technicians,Exam Fees,WAES Director (Principal),"1,555.00",,
3283169,06/04/2017,15/02/2017,3012543,Personal detail - redacted,Advocacy (Legal Fees),Public Protection and Licensing,"2,355.00",,
3283173,19/04/2017,22/03/2017,3012424,Vibe Teacher Recruitment Ltd,Agency Supply Staff- curriculum -E27,Schools,600,,
3283174,19/04/2017,22/03/2017,3012424,Vibe Teacher Recruitment Ltd,Agency Supply Staff- curriculum -E27,Schools,"1,025.00",,
3283175,19/04/2017,22/03/2017,3012424,Vibe Teacher Recruitment Ltd,Agency Supply Staff- curriculum -E27,Schools,549,,
3283180,10/04/2017,16/03/2017,3012424,Vibe Teacher Recruitment Ltd,Agency Supply Staff- curriculum -E27,Schools,"2,811.05",,
3283181,20/04/2017,16/03/2017,3012424,Vibe Teacher Recruitment Ltd,Agency Supply Staff- curriculum -E27,Schools,"2,681.50",,
3283182,05/04/2017,16/03/2017,3012424,Vibe Teacher Recruitment Ltd,Agency Supply Staff- curriculum -E27,Schools,"3,772.45",,
3283184,19/04/2017,22/03/2017,3012424,Vibe Teacher Recruitment Ltd,Agency Supply Staff- curriculum -E27,Schools,700,,
3283186,19/04/2017,16/03/2017,3012424,Vibe Teacher Recruitment Ltd,Agency Supply Staff- curriculum -E27,Schools,"1,025.00",,
3283187,19/04/2017,16/03/2017,3012424,Vibe Teacher Recruitment Ltd,Agency Supply Staff- curriculum -E27,Schools,549,,
3283191,04/04/2017,28/02/2017,3012423,Egbert H Taylor & Company Ltd,Equipment (VPE C4000),Waste and Parks,"7,164.11",,
3283192,05/04/2017,09/03/2017,3012424,Vibe Teacher Recruitment Ltd,Agency Supply Staff- curriculum -E27,Schools,"3,040.45",,
3283193,04/04/2017,09/03/2017,3012424,Vibe Teacher Recruitment Ltd,Agency Supply Staff- curriculum -E27,Schools,"2,159.66",,
3283195,19/04/2017,16/03/2017,3012424,Vibe Teacher Recruitment Ltd,Agency Supply Staff- curriculum -E27,Schools,560,,
3283196,05/04/2017,16/03/2017,3012424,Vibe Teacher Recruitment Ltd,Agency Supply Staff- curriculum -E27,Schools,600,,
3283198,05/04/2017,14/03/2017,3012303,New West End Company,Hired and Contracted Services,"Policy, Performance and Communications","30,000.00",,
3283200,06/04/2017,09/03/2017,3012331,The Randolph Surgery,Public Health (Hired & Contr - Healthcare),Public Health,"2,520.00",,
3283201,04/04/2017,07/03/2017,3012350,Sjw Design & Build,M&E Maintenance Services,Education,880.36,,
3283202,04/04/2017,07/03/2017,3012350,Sjw Design & Build,M&E Maintenance Services,Education,"9,474.08",,
3283209,19/04/2017,22/03/2017,3012150,The College Of North West London,SEN Therapy,Education,"13,680.90",,
3283215,13/04/2017,14/03/2017,3012066,Thames Teachers,Agency Supply Staff- curriculum -E27,Schools,"1,360.00",,
3283216,20/04/2017,21/03/2017,3012066,Thames Teachers,Agency Supply Staff- curriculum -E27,Schools,"1,900.00",,
3283217,13/04/2017,16/03/2017,3012079,Westminster Citizens Advice Bureau,Hired and Contracted Services,"Policy, Performance and Communications","207,500.00",,
3283218,13/04/2017,14/03/2017,3012087,Heeran Construction Ltd,Electricity (Energy),Finance and Resources,"28,314.63",,
3283219,13/04/2017,14/03/2017,3012087,Heeran Construction Ltd,Electricity (Energy),Property Investments and Estates,"45,346.23",,
3283231,04/04/2017,21/02/2017,3011666,Teachers2Parents Ltd,ICT Contract - E20,Schools,769,,
3283239,04/04/2017,10/03/2017,3000027,British Gas,Electricity -E16,Schools,"1,326.44",,
3283240,04/04/2017,01/03/2017,3000027,British Gas,Electricity -E16,Schools,783.1,,
3283242,11/04/2017,22/02/2017,3000051,BT Global Services,Consumables (IT Hardware Purch),Adult Social Care Finance and Resources,"1,374.00",,
3283243,04/04/2017,03/03/2017,3000082,LABC,Subscriptions,Development Planning,"4,146.09",,
3283244,04/04/2017,28/02/2017,3011458,Northbank Bid Ltd,Highways & Transportation Consultants,Highways Infrastructure & Public Realm,"86,314.00",,
3283245,04/04/2017,01/03/2017,3011458,Northbank Bid Ltd,Highways & Transportation Consultants,Place Shaping,"168,701.00",,
3283246,04/04/2017,14/03/2017,3000002,GVA Grimley Ltd,Consultancy: Not Elsewhere Classified (Hired & Contr - Consultancy),Property Investments and Estates,750,,
3283247,11/04/2017,17/03/2017,3000003,Housing & Care 21,Independent Units,Adult Social Care Strategic Commissioning and Enterprise,"3,197.52",,
3283248,13/04/2017,16/03/2017,3000022,Penna Plc,Recruitment & Promotional,"Policy, Performance and Communications",578,,
3283249,04/04/2017,31/01/2017,3000027,British Gas,Electricity -E16,Schools,822.98,,
3283250,04/04/2017,31/01/2017,3011279,Finefair Management Limited,Temporary Accommodation,Housing Operations,"1,116.00",,
3283251,04/04/2017,28/02/2017,3011279,Finefair Management Limited,Temporary Accommodation,Housing Operations,"1,008.00",,
3283252,04/04/2017,28/02/2017,3011279,Finefair Management Limited,Temporary Accommodation,Housing Operations,"1,116.00",,
3283254,20/04/2017,22/03/2017,3011386,Jpd Cleaning Services Ltd,Cleaning Contract -E14,Schools,"2,257.01",,
3283256,05/04/2017,21/03/2017,3011222,Tavistock Housing Co-Op Ltd,Fees General,HRA City West Homes,"25,669.50",,
3283257,04/04/2017,15/03/2017,3011224,Teaching Personnel Ltd,Agency Supply Staff- curriculum -E27,Schools,"1,380.00",,
3283258,04/04/2017,15/03/2017,3011233,Hide Tower Resident Management Board Ltd,Contractors,HRA City West Homes,"7,894.95",,
3283259,11/04/2017,20/03/2017,3011233,Hide Tower Resident Management Board Ltd,Contractors,HRA City West Homes,"10,884.30",,
3283260,11/04/2017,20/03/2017,3011233,Hide Tower Resident Management Board Ltd,Contractors,HRA City West Homes,"8,377.95",,
3283263,13/04/2017,16/03/2017,3011133,University Of London,Hired and Contracted Services,Family Services 1,"2,984.12",,
3283264,10/04/2017,28/02/2017,3011134,Olympic (South) Ltd T/A Hats,Schools Transport Payments - Other,Education,"8,244.24",,
3283265,12/04/2017,01/03/2017,3011134,Olympic (South) Ltd T/A Hats,Schools Transport Payments - Other,Education,"132,773.35",,
3283266,19/04/2017,01/03/2017,3011134,Olympic (South) Ltd T/A Hats,Schools Transport Payments - Other,Adult Social Care Strategic Commissioning and Enterprise,"9,166.67",,
3283267,28/04/2017,01/03/2017,3011134,Olympic (South) Ltd T/A Hats,Schools Transport Payments - Other,Education,"-10,369.96",,
3283271,05/04/2017,28/02/2017,3011133,University Of London,Hired and Contracted Services,Housing Operations,"7,252.98",,
3283272,13/04/2017,16/03/2017,3011133,University Of London,Hired and Contracted Services,Family Services 1,"1,444.32",,
3283273,13/04/2017,16/03/2017,3011133,University Of London,Hired and Contracted Services,Family Services 1,"1,409.23",,
3283276,04/04/2017,31/01/2017,3010609,Barrie Bookkeeping & Payroll Solutions,Adults Community Direct Payments - Managed Accounts,Adult Social Care Integrated Care,739.55,,
3283277,05/04/2017,01/03/2017,3011112,London Vip Cars,Schools Transport Payments - Other,Education,"10,080.50",,
3283280,13/04/2017,14/03/2017,3010061,Trueform Engineering Ltd,Legal Fees (C Code),City Management and Communities,"19,710.10",,
3283281,13/04/2017,14/03/2017,3010061,Trueform Engineering Ltd,Legal Fees (C Code),City Management and Communities,"1,105.00",,
3283283,13/04/2017,14/03/2017,3010061,Trueform Engineering Ltd,Legal Fees (C Code),City Management and Communities,727.3,,
3283285,13/04/2017,14/03/2017,3010061,Trueform Engineering Ltd,Legal Fees (C Code),City Management and Communities,"1,195.00",,
3283288,13/04/2017,14/03/2017,3010061,Trueform Engineering Ltd,Legal Fees (C Code),City Management and Communities,"1,305.00",,
3283289,13/04/2017,14/03/2017,3010061,Trueform Engineering Ltd,Legal Fees (C Code),City Management and Communities,"1,195.00",,
3283290,13/04/2017,14/03/2017,3010061,Trueform Engineering Ltd,Legal Fees (C Code),City Management and Communities,"3,069.20",,
3283291,13/04/2017,14/03/2017,3010061,Trueform Engineering Ltd,Legal Fees (C Code),City Management and Communities,"5,561.00",,
3283292,19/04/2017,20/03/2017,3009879,Hidetower Residents Assoc(Grant Maint),Maintenance (Ground Mtce - Plan),HRA City West Homes,"1,635.75",,
3283293,04/04/2017,08/02/2017,3009880,Horizon Teachers,Agency Supply Staff- curriculum -E27,Schools,"1,531.64",,
3283294,04/04/2017,25/01/2017,3009880,Horizon Teachers,Agency Supply Staff- curriculum -E27,Schools,800,,
3283295,04/04/2017,01/02/2017,3009880,Horizon Teachers,Agency Supply Staff- curriculum -E27,Schools,"1,531.64",,
3283296,04/04/2017,01/03/2017,3009880,Horizon Teachers,Agency Supply Staff- curriculum -E27,Schools,740,,
3283297,04/04/2017,22/02/2017,3009880,Horizon Teachers,Agency Supply Staff- curriculum -E27,Schools,"3,407.58",,
3283298,13/04/2017,14/03/2017,3009670,Royal Borough of Kensington and Chelsea (Non-Pension Fund Account),Section 113 Shared Services Charges - Non Staffing,Adult Social Care Finance and Resources,"20,423.00",,
3283299,13/04/2017,14/03/2017,3009670,Royal Borough of Kensington and Chelsea (Non-Pension Fund Account),Section 113 Shared Services Charges - Non Staffing,Adult Social Care Finance and Resources,"23,456.00",,
3283300,13/04/2017,14/03/2017,3009670,Royal Borough of Kensington and Chelsea (Non-Pension Fund Account),Section 113 Shared Services Charges - Non Staffing,Adult Social Care Finance and Resources,"4,878.00",,
3283301,04/04/2017,03/03/2017,3009698,London Borough Of Camden,Hired and Contracted Services,Parking,"20,126.62",,
3283310,06/04/2017,23/11/2016,3009647,Thames Water Utilities Ltd ,Water Services,Waste and Parks,"1,121.63",,
3283311,06/04/2017,15/09/2016,3009647,Thames Water Utilities Ltd ,Water Services,Waste and Parks,573.87,,
3283314,06/04/2017,24/08/2016,3009647,Thames Water Utilities Ltd ,Water Services,Waste and Parks,581.69,,
3283317,06/04/2017,22/06/2016,3009647,Thames Water Utilities Ltd ,Water Services,Waste and Parks,635.63,,
3283319,06/04/2017,07/10/2016,3009647,Thames Water Utilities Ltd ,Water Services,Waste and Parks,"1,382.76",,
3283337,06/04/2017,15/09/2016,3009647,Thames Water Utilities Ltd ,Water Services,Waste and Parks,569.69,Look Ahead Housing & Care Ltd,
3283340,06/04/2017,05/01/2017,3009647,Thames Water Utilities Ltd ,Water Services,Waste and Parks,813.28,,
3283344,06/04/2017,01/09/2016,3009647,Thames Water Utilities Ltd ,Water Services,Waste and Parks,866.34,,
3283345,06/04/2017,02/08/2016,3009647,Thames Water Utilities Ltd ,Water Services,Waste and Parks,612.49,,
3283346,06/04/2017,22/11/2016,3009647,Thames Water Utilities Ltd ,Water Services,Waste and Parks,908.17,,
3283349,06/04/2017,12/12/2016,3009647,Thames Water Utilities Ltd ,Water Services,Waste and Parks,520.55,,
3283360,12/04/2017,29/03/2017,3000002,GVA Grimley Ltd,Valuation Fees,Property Investments and Estates,"1,000.00",,
3283362,19/04/2017,30/03/2017,3000002,GVA Grimley Ltd,Valuation Fees,Property Investments and Estates,"7,000.00",,
3283364,19/04/2017,30/03/2017,3000002,GVA Grimley Ltd,Valuation Fees,Property Investments and Estates,"1,000.00",,
3283366,12/04/2017,31/03/2017,3000002,GVA Grimley Ltd,Valuation Fees,Property Investments and Estates,"1,920.00",,
3283367,18/04/2017,31/03/2017,3000002,GVA Grimley Ltd,Valuation Fees,Property Investments and Estates,"1,066.67",,
3283380,05/04/2017,15/02/2017,3000036,Deloitte Llp ,Consultants/Consultation,HRA City West Homes,"30,000.00",,
3283381,26/04/2017,29/03/2017,3000051,BT Global Services,Hired and Contracted Services,Managed Services Framework ICF,"1,151.80",,
3283383,26/04/2017,29/03/2017,3000051,BT Global Services,Hired and Contracted Services,Managed Services Framework ICF,"4,677.20",,
3283386,19/04/2017,22/03/2017,3000051,BT Global Services,Education (IT Software Purch),Tri-borough Libraries and Archives,"1,382.00",,
3283387,19/04/2017,22/03/2017,3000051,BT Global Services,Managed service contract (BT),TB Information Services and Strategy,"52,350.10",,
3283388,19/04/2017,22/03/2017,3000051,BT Global Services,Contractors,TB Information Services and Strategy,"4,554.00",,
3283389,19/04/2017,22/03/2017,3000051,BT Global Services,Design and development,TB Information Services and Strategy,"3,739.68",,
3283396,04/04/2017,26/09/2016,3000061,Hestia Housing & Support,Hired and Contracted Services,"Policy, Performance and Communications","39,250.00",,
3283397,04/04/2017,26/09/2016,3000061,Hestia Housing & Support,Hired and Contracted Services,"Policy, Performance and Communications","39,250.00",,
3283408,28/04/2017,31/03/2017,3000083,SDK Environmental Ltd,Maintenance (Ground Mtce),Waste and Parks,"4,720.00",,
3283413,24/05/2017,30/03/2017,3000095,Kensington And Chelsea Social Council,Public Health (Hired & Contr - Healthcare),Public Health,947.75,,
3283504,28/04/2017,30/03/2017,3000261,Streetscene Addiction Recovery,Public Health (Hired & Contr - Healthcare),Public Health,"1,503.86",,
3283506,12/04/2017,29/03/2017,3000278,Bt Business Direct,Consultancy (Hired & Contr - Consultancy),WAES Director (Principal),931,,
3283508,27/04/2017,28/03/2017,3000280,Change Grow Live,Public Health (Hired & Contr - Healthcare),Public Health,"101,241.80",,
3283517,24/04/2017,27/03/2017,3000336,Judge & Priestley,Legal Services: Not Elsewhere Classified (Legal Fees),HRA City West Homes,"1,038.00",,
3283535,19/04/2017,22/03/2017,3000374,Sustrans Ltd,Road Safety Campaigns,Highways Infrastructure & Public Realm,"7,014.00",,
3283537,28/04/2017,31/03/2017,3000386,Westcliffe House Ltd,Public Health (Hired & Contr - Healthcare),Public Health,"2,665.11",,
3283546,06/04/2017,23/01/2017,3000488,Pearson (Exams/Registrations/Training),Service Specific Training,WAES Director (Principal),650,,
3283548,05/04/2017,08/03/2017,3000523,Equinox,Public Health (Hired & Contr - Healthcare),Public Health,"2,150.00",,
3283549,05/04/2017,08/03/2017,3000523,Equinox,Public Health (Hired & Contr - Healthcare),Public Health,"2,070.00",,
3283550,06/04/2017,08/03/2017,3000523,Equinox,Public Health (Hired & Contr - Healthcare),Public Health,"2,180.00",,
3283552,06/04/2017,08/03/2017,3000523,Equinox,Public Health (Hired & Contr - Healthcare),Public Health,"2,150.00",,
3283597,24/04/2017,28/03/2017,3000672,F.M Conway Ltd,Contractors,City Management and Communities,"-22,473.32",,
3283599,24/04/2017,28/03/2017,3000672,F.M Conway Ltd,Contractors,City Management and Communities,"-4,326.86",,
3283608,07/04/2017,04/04/2017,3999999,General Sundry,Acquisitions,Housing Operations,"370,051.54",,
3283674,07/04/2017,10/03/2017,3000848,Mintel International Group Ltd,Library Materials - Electronic Resources,Tri-borough Libraries and Archives,"14,765.00",,
3283684,07/04/2017,04/04/2017,3015440,Dac Beachcroft Llp Client Account,Reimbursement payments/ compensation payments (HRA and non HRA),Revenues and Benefits,"4,500.00",,
3283692,02/05/2017,28/03/2017,3000919,Wates Living Space,Electricity (Energy),HRA City West Homes,"56,387.22",,
3283693,28/04/2017,29/03/2017,3000919,Wates Living Space,Electricity (Energy),HRA City West Homes,"41,556.85",,
3283694,28/04/2017,30/03/2017,3000919,Wates Living Space,Electricity (Energy),HRA City West Homes,"1,712.65",,
3283697,27/04/2017,30/03/2017,3000948,Star Cars Limited,Schools Transport Payments - Other,Education,"85,879.73",,
3283712,27/04/2017,28/03/2017,3001037,Ericsson Ltd,Mobile (Telephony),TB Information Services and Strategy,933.73,,
3283713,27/04/2017,28/03/2017,3001037,Ericsson Ltd,Mobile (Telephony),TB Information Services and Strategy,"19,092.36",,
3283714,27/04/2017,28/03/2017,3001037,Ericsson Ltd,Mobile (Telephony),TB Information Services and Strategy,"7,863.34",,
3283715,27/04/2017,28/03/2017,3001037,Ericsson Ltd,Mobile (Telephony),TB Information Services and Strategy,"19,084.47",,
3283718,27/04/2017,28/03/2017,3001037,Ericsson Ltd,Call Systems (Telephony),Parking,"1,045.66",,
3283773,20/04/2017,24/02/2017,3001722,Ricoh Uk Ltd,Reprographics (Printing),Corporate Services Trading,"10,078.07",,
3283793,04/04/2017,04/04/2017,3005675,Advanced Legal Solutions Ltd,Hired and Contracted Services,Chief of Staff,"2,090.00",,
3283795,18/04/2017,30/01/2017,3001875,Health Vision Uk,Independent Units,Adult Social Care Integrated Care,"-100,000.00",,
3283802,10/04/2017,22/03/2017,3002007,Amey,Building Construction Materials Reactive (R&M - React),Property Investments and Estates,"4,204.39",,
3283803,12/04/2017,24/03/2017,3002007,Amey,Building Construction Materials Reactive (R&M - React),Property Investments and Estates,"374,699.00",,
3283820,24/04/2017,04/04/2017,3005421,Westminster City Council (Council Tax),Council Tax,HRA City West Homes,"77,014.03",,
3283822,13/04/2017,16/03/2017,3017026,Royal Mail Group Ltd ,Postage (Postage),Revenues and Benefits,"15,604.22",,
3283826,24/04/2017,23/03/2017,3002070,Action Pumps Ltd,Management (Hired & Contr - Consultancy),HRA City West Homes,"1,952.70",,
3283829,10/04/2017,30/12/2016,3002231,Dsi Billing Services,Council Tax & Business Rates (Hired & Contr - Fin'l Services),Revenues and Benefits,"15,721.01",,
3283834,28/04/2017,31/03/2017,3002239,SoloProtect Limited,Application Service Provision (IT Software Maint),Public Protection and Licensing,570,,
3283839,25/04/2017,28/03/2017,3002297,Veolia Environmental Services,Maintenance (Ground Mtce),Waste and Parks,"8,590.00",,
3283840,26/04/2017,29/03/2017,3002297,Veolia Environmental Services,Maintenance (Transport R&M),Waste and Parks,"9,689.00",,
3283841,27/04/2017,30/03/2017,3002297,Veolia Environmental Services,Commercial (Equip Dom Goods),Waste and Parks,"54,947.60",,
3283842,05/04/2017,15/02/2017,3002302,Kings College London,Hired and Contracted Services,"Policy, Performance and Communications","9,000.00",,
3283843,28/04/2017,29/03/2017,3002307,Transport For London Transport,Equipment (Contractors C5700),City Management and Communities,"100,000.00",,
3283864,05/04/2017,28/03/2017,3002403,Axis Europe Plc,Contractors,HRA City West Homes,"76,212.78",,
3283866,08/06/2017,22/03/2017,3002440,Lorensbergs Ltd,Software (IT Software Purch),Tri-borough Libraries and Archives,825,,
3283894,13/04/2017,15/03/2017,3002853,Cipd Enterprises Ltd,Hired and Contracted Services,TB Information Services and Strategy,"1,520.00",,
3283895,13/04/2017,31/03/2017,3002877,London Apprenticeship Company,Hired and Contracted Services,Corporate Services Trading,"22,334.71",,
3283896,24/04/2017,22/03/2017,3002880,Central London Community Healthcare,Hired and Contracted Services,Public Health,"3,500.00",,
3283911,05/04/2017,28/03/2017,3003035,Allen Lane,Consultancy (Hired & Contr - Consultancy),Commercial and Financial Management,"7,980.00",,
3283959,11/04/2017,23/03/2017,3003857,Carers Network Westminster Ltd,Advice & Counselling Services (Hired & Contr - Social CommCare),Adult Social Care Strategic Commissioning and Enterprise,"32,078.67",,
3283960,13/04/2017,14/03/2017,3003875,Avenues Youth Project,Activities and Events,Community Services,"1,200.00",,
3283996,03/05/2017,28/03/2017,3004688,3Bm Ltd,Consultants/Consultation,Schools,"13,333.33",,
3283997,05/04/2017,28/03/2017,3004688,3Bm Ltd,Consultants/Consultation,Schools,"16,666.67",,
3284025,28/04/2017,29/03/2017,3004820,Lambert Smith Hampton Group Ltd,Consultants/Consultation,HRA City West Homes,"11,655.00",,
3284026,28/04/2017,29/03/2017,3004820,Lambert Smith Hampton Group Ltd,Consultants/Consultation,HRA City West Homes,"5,000.00",,
3284028,24/04/2017,22/03/2017,3004851,Personal detail - redacted,Professional Fees (non-Legal),Property Investments and Estates,"20,000.00",,
3284055,12/04/2017,04/04/2017,3001804,Respect Care Services Ltd,Adults Community Direct Payments - Managed Accounts,Adult Social Care Integrated Care,"1,625.60",,
3284062,12/04/2017,04/04/2017,3001804,Respect Care Services Ltd,Adults Community Direct Payments - Managed Accounts,Adult Social Care Integrated Care,"3,251.20",,
3284069,12/04/2017,04/04/2017,3001804,Respect Care Services Ltd,Adults Community Direct Payments - Managed Accounts,Adult Social Care Integrated Care,"2,901.60",,
3284126,05/04/2017,01/03/2017,3005315,Personal detail - redacted,SEN Therapy,Education,510,,
3284127,05/04/2017,01/02/2017,3005315,Personal detail - redacted,SEN Therapy,Education,646,,
3284132,28/04/2017,29/03/2017,3005438,Cipfa,Exam Fees,Corporate Finance,855,,
3284133,28/04/2017,29/03/2017,3005438,Cipfa,Exam Fees,Corporate Finance,"1,945.00",,
3284138,05/04/2017,20/02/2017,3005454,Personal detail - redacted,Occupational Therapy Services (Hired & Contr - Healthcare),Family Services 3,720,,
3284142,27/04/2017,28/03/2017,3005554,Atec Security Ltd,Hired and Contracted Services,Public Protection and Licensing,"8,378.45",,
3284148,24/04/2017,22/03/2017,3005663,ACS Business Supplies Ltd,IT Hardware Purchase,HRA City West Homes,"1,657.24",,
3284179,20/04/2017,19/03/2017,3006322,Extrastaff Ltd,Schools Transport Payments - Other,Education,"1,195.96",,
3284181,20/04/2017,19/03/2017,3006322,Extrastaff Ltd,Schools Transport Payments - Other,Education,"1,038.16",,
3284184,24/04/2017,26/03/2017,3006322,Extrastaff Ltd,Schools Transport Payments - Other,Education,"1,195.96",,
3284185,24/04/2017,26/03/2017,3006322,Extrastaff Ltd,Schools Transport Payments - Other,Education,"1,014.06",,
3284204,05/04/2017,08/02/2017,3006571,Insim News,Library Materials - Periodicals,Tri-borough Libraries and Archives,698.59,,
3284219,10/04/2017,04/04/2017,3013700,The Office of the Immigration Services Commissioner,Licences (Expenditure),Tri-borough Libraries and Archives,575,,
3284229,07/04/2017,04/04/2017,3999999,General Sundry,Acquisitions,Housing Operations,"565,338.90",,
3284258,24/04/2017,24/03/2017,3006868,London North West Healthcare NHS Trust,Public Health (Hired & Contr - Healthcare),Public Health,"1,582.00",,
3284287,24/04/2017,24/03/2017,3008320,Pitney Bowes Software Ltd,IT Software Maintenance,Highways Infrastructure & Public Realm,"1,005.00",,
3284291,19/04/2017,26/03/2017,3008385,Comensura Ltd,Personnel (Hired & Contr - Consultancy),Corporate Services Trading,"324,284.51",,
3284298,24/04/2017,22/03/2017,3008399,Orchard Information Systems Ltd,IT Software Maintenance,HRA City West Homes,"1,113.84",,
3284327,26/04/2017,29/03/2017,3008557,Sanctuary Housing Association,Rent paid to Landlords,Adult Social Care Integrated Care,"70,000.00",,
3284328,26/04/2017,29/03/2017,3008557,Sanctuary Housing Association,Rent paid to Landlords,Adult Social Care Integrated Care,"65,000.00",,
3284338,24/04/2017,18/03/2017,3008818,Central & North West London Nhs Trust,Training & Conferences,Housing Operations,"31,000.00",,
3284346,20/04/2017,23/03/2017,3008928,Greater London Authority,Support & Other Accommodation (Voluntary associations),Housing Operations,583.33,,
3284347,28/04/2017,21/03/2017,3008945,Tavistock & Portman NHS,Hired and Contracted Services,Family Services 1,"13,414.69",,
3284351,18/04/2017,21/03/2017,3008967,Imperial College Healthcare Nhs Trust,Public Health (Hired & Contr - Healthcare),Public Health,"34,682.00",,
3284352,18/04/2017,21/03/2017,3008967,Imperial College Healthcare Nhs Trust,Public Health (Hired & Contr - Healthcare),Public Health,"181,329.00",,
3284356,07/04/2017,21/02/2017,3009372,St Vincent'S Rc Primary School (Imprest),Technical Equipment (Equip Env),Children's Services Commissioning,"4,453.44",,
3284357,05/04/2017,06/03/2017,3009381,Bidvest Food Service(BFS Group),Food & Beverages (Equip Catering),Community Services,566.19,,
3284359,06/04/2017,03/03/2017,3009381,Bidvest Food Service(BFS Group),Food & Beverages (Equip Catering),Community Services,665.26,,
3284394,24/04/2017,24/03/2017,3009670,Royal Borough of Kensington and Chelsea (Non-Pension Fund Account),Hired and Contracted Services,Adult Social Care Strategic Commissioning and Enterprise,"50,719.20",,
3284395,05/04/2017,06/02/2017,3009670,Royal Borough of Kensington and Chelsea (Non-Pension Fund Account),Section 113 Shared Services Charges - Non Staffing,Adult Social Care Business,"20,820.37",,
3284408,20/04/2017,30/03/2017,3009764,Kier Highways Ltd,Planned Maintenance,Highways Infrastructure & Public Realm,"13,385.01",,
3284420,05/04/2017,14/03/2017,3010043,Millbank Estate Management Organisation,Contractors,HRA City West Homes,"6,718.00",,
3284421,05/04/2017,14/03/2017,3010043,Millbank Estate Management Organisation,Contractors,HRA City West Homes,"13,575.29",,
3284422,05/04/2017,14/03/2017,3010043,Millbank Estate Management Organisation,Contractors,HRA City West Homes,"6,524.29",,
3284423,05/04/2017,14/03/2017,3010043,Millbank Estate Management Organisation,Contractors,HRA City West Homes,"10,571.56",,
3284425,28/04/2017,30/03/2017,3010061,Trueform Engineering Ltd,Legal Fees (C Code),City Management and Communities,721.26,,
3284427,28/04/2017,30/03/2017,3010061,Trueform Engineering Ltd,Legal Fees (C Code),City Management and Communities,"1,534.60",,
3284436,24/04/2017,24/03/2017,3010618,Gresswell Ltd,Office Furniture (Equip Furn),Tri-borough Libraries and Archives,"1,147.10",,
3284437,28/04/2017,31/03/2017,3010629,Aberta Ltd,Post mortem and reports fees,TB Information Services and Strategy,648,,
3284446,06/04/2017,20/02/2017,3011106,Vma Global Resourcing Group Ltd,Recruitment & Promotional,"Policy, Performance and Communications","9,000.00",,
3284447,13/04/2017,16/03/2017,3011112,London Vip Cars,Schools Transport Payments - Other,Education,"7,237.50",,
3284454,19/04/2017,22/03/2017,3011246,Personal detail - redacted,Non contract Building Maintenace - E12,Schools,519.3,,
3284455,28/04/2017,30/03/2017,3011287,Morleys Electrical Ltd,Contractors,HRA City West Homes,"71,225.49",,
3284456,05/05/2017,30/03/2017,3011300,Julius Rutherford & Co Ltd,Cleaning Contract -E14,Schools,"2,491.40",,
3284473,20/04/2017,31/03/2017,3012008,Personal detail - redacted,Bought in professional services- curriculum -E27,Schools,"1,800.00",,
3284474,27/04/2017,28/03/2017,3012066,Thames Teachers,Agency Supply Staff- curriculum -E27,Schools,"1,720.00",,
3284475,28/04/2017,30/03/2017,3012079,Westminster Citizens Advice Bureau,Financial Servs: Not Elsewhere Classified (Hired & Contr - Fin'l Services),HRA City West Homes,"3,312.00",,
3284477,28/04/2017,31/03/2017,3012086,Personal detail - redacted,Consultants/Consultation,HRA City West Homes,"44,240.40",,
3284497,06/04/2017,17/02/2017,3012213,NHS Central London Ccg,Adults Nursing Placements,ASC Procurement and Business Intelligence,"39,785.00",,
3284504,20/04/2017,23/03/2017,3012424,Vibe Teacher Recruitment Ltd,Agency Supply Staff- curriculum -E27,Schools,"2,903.29",,
3284505,10/04/2017,23/03/2017,3012424,Vibe Teacher Recruitment Ltd,Agency Supply Staff- curriculum -E27,Schools,"2,811.06",,
3284517,24/04/2017,28/03/2017,3012424,Vibe Teacher Recruitment Ltd,Agency Supply Staff- curriculum -E27,Schools,735.72,,
3284518,20/04/2017,29/03/2017,3012424,Vibe Teacher Recruitment Ltd,Agency Supply Staff- curriculum -E27,Schools,"2,354.80",,
3284519,19/04/2017,29/03/2017,3012424,Vibe Teacher Recruitment Ltd,Agency Supply Staff- curriculum -E27,Schools,700,,
3284520,19/04/2017,29/03/2017,3012424,Vibe Teacher Recruitment Ltd,Agency Supply Staff- curriculum -E27,Schools,"1,025.00",,
3284521,19/04/2017,29/03/2017,3012424,Vibe Teacher Recruitment Ltd,Agency Supply Staff- curriculum -E27,Schools,732,,
3284523,19/04/2017,29/03/2017,3012424,Vibe Teacher Recruitment Ltd,Agency Supply Staff- curriculum -E27,Schools,"1,117.50",,
3284524,12/04/2017,29/03/2017,3012424,Vibe Teacher Recruitment Ltd,Agency Supply Staff- curriculum -E27,Schools,"1,025.45",,
3284541,24/04/2017,23/03/2017,3012541,Browns Pharmacy,Public Health (Hired & Contr - Healthcare),Adult Social Care Strategic Commissioning and Enterprise,979.94,,
3284548,07/04/2017,01/03/2017,3012690,Chelsea & Westminster Hospital NHS Foundation Trust,Public Health (Hired & Contr - Healthcare),Public Health,"174,126.92",,
3284549,07/04/2017,31/03/2017,3012711,Personal detail - redacted,Hired and Contracted Services,WAES Director (Principal),731,,
3284550,07/04/2017,22/03/2017,3012714,Personal detail - redacted,Hired and Contracted Services,WAES Director (Principal),604.59,,
3284551,06/04/2017,31/01/2017,3012723,Personal detail - redacted,Hired and Contracted Services,WAES Director (Principal),920,,
3284554,06/04/2017,26/03/2017,3012751,Personal detail - redacted,Hired and Contracted Services,WAES Director (Principal),"1,435.00",,
3284561,06/04/2017,28/03/2017,3012761,Personal detail - redacted,Hired and Contracted Services,WAES Director (Principal),525,,
3284566,24/04/2017,27/03/2017,3012802,Personal detail - redacted,Advocacy (Legal Fees),Children's Services Commissioning,"1,140.00",,
3284568,24/04/2017,24/03/2017,3012807,Personal detail - redacted,Advocacy (Legal Fees),Housing Operations,"1,000.00",,
3284569,09/05/2017,29/03/2017,3012807,Personal detail - redacted,General Support (Legal Fees),Housing Operations,"1,500.00",,
3284571,31/05/2017,29/03/2017,3012807,Personal detail - redacted,Advocacy (Legal Fees),Housing Operations,"1,400.00",,
3284572,08/05/2017,29/03/2017,3012807,Personal detail - redacted,Advocacy (Legal Fees),Housing Operations,"2,200.00",,
3284573,22/05/2017,29/03/2017,3012807,Personal detail - redacted,Advocacy (Legal Fees),Housing Operations,"1,275.00",,
3284575,26/04/2017,29/03/2017,3012807,Personal detail - redacted,Advocacy (Legal Fees),Housing Operations,850,,
3284576,31/05/2017,30/03/2017,3012807,Personal detail - redacted,Legal Services (Legal Fees),Housing Operations,"1,500.00",,
3284600,28/04/2017,30/03/2017,3013261,The Frederick Hugh Trust,SEN Therapy,Education,"13,316.66",,
3284614,02/05/2017,01/04/2017,3013434,Behavioural Educational Services,SEN Therapy,Education,"2,975.00",,
3284615,02/05/2017,01/04/2017,3013434,Behavioural Educational Services,SEN Therapy,Education,"3,395.00",,
3284616,02/05/2017,01/04/2017,3013434,Behavioural Educational Services,SEN Therapy,Education,"2,960.00",,
3284617,02/05/2017,01/04/2017,3013434,Behavioural Educational Services,SEN Therapy,Education,"1,970.00",,
3284622,24/04/2017,23/03/2017,3013472,Searchflow,Property Searches,Legal Services,"2,203.01",,
3284623,24/04/2017,24/03/2017,3013472,Searchflow,Property Searches,Legal Services,590.89,,
3284638,24/04/2017,24/03/2017,3013590,ARO Performance Systems Ltd,IT Software Maintenance,HRA City West Homes,"5,287.00",,
3284640,25/05/2017,21/03/2017,3013620,Student Employment Services,Legal Services (Legal Fees),Legal Services,"1,641.60",,
3284653,29/06/2017,01/04/2017,3013761,Royal Free London NHS Foundation Trust,Public Health (Hired & Contr - Healthcare),Public Health,"6,769.00",,
3284655,24/04/2017,24/03/2017,3013775,W A Products (UK) Ltd,Hired and Contracted Services,Public Protection and Licensing,"1,258.70",,
3284659,28/04/2017,02/04/2017,3013882,Personal detail - redacted,Post mortem and reports fees,Chief of Staff,"1,258.40",,
3284660,28/04/2017,02/04/2017,3013882,Personal detail - redacted,Post mortem and reports fees,Chief of Staff,"1,548.80",,
3284668,06/04/2017,23/03/2017,3015086,Chandos House Treatment For Addiction CIC,Public Health (Hired & Contr - Healthcare),Public Health,"2,767.20",,
3284669,26/04/2017,29/03/2017,3015100,Synergy Speaking ltd,SEN Therapy,Education,"3,250.00",,
3284670,28/04/2017,31/03/2017,3015115,Icon Building Consultancy,Professional Fees (non-Legal),Community Services,"1,200.00",,
3284672,26/04/2017,29/03/2017,3015159,Shaftesbury Young People,Element 3 - Top-up Funding,Education,"6,726.00",,
3284673,26/04/2017,29/03/2017,3015159,Shaftesbury Young People,Element 3 - Top-up Funding,Education,"6,206.00",,
3284676,19/05/2017,16/12/2016,3015466,Personal detail - redacted,Post mortem and reports fees,Public Protection and Licensing,"2,850.00",,
3284706,05/04/2017,29/03/2017,3016215,Hands Free Computing Ltd,Building Construction Materials Reactive (R&M - React),Family Services 2,"2,641.14",,
3284708,06/04/2017,30/09/2016,3016235,PRCA (Public Relations Consultants Ass),Hired and Contracted Services,"Policy, Performance and Communications","2,380.00",,
3284711,28/04/2017,31/03/2017,3016302,Latymer Upper School,Element 3 - Top-up Funding,Education,"5,030.97",,
3284721,26/04/2017,29/03/2017,3016941,The Pace Centre,SEN Therapy,Education,"10,160.94",,
3284722,26/04/2017,29/03/2017,3016941,The Pace Centre,SEN Therapy,Education,"2,686.60",,
3284727,26/04/2017,29/03/2017,3017048,Learning Curve Group t/a Learning at work Ltd,Hired and Contracted Services,WAES Director (Principal),770,,
3284728,28/04/2017,31/03/2017,3017048,Learning Curve Group t/a Learning at work Ltd,Hired and Contracted Services,WAES Director (Principal),525,,
3284729,20/04/2017,23/03/2017,3017114,Barnet Southgate College,SEN Therapy,Education,"37,222.00",,
3284730,20/04/2017,23/03/2017,3017114,Barnet Southgate College,SEN Therapy,Education,"32,452.00",,
3284734,11/04/2017,24/03/2017,3017268,Nicholson McBride Ltd,Consultancy (Hired & Contr - Consultancy),Chief of Staff,"9,200.00",,
3284755,27/04/2017,28/03/2017,3017862,Personal detail - redacted,Consultancy (Hired & Contr - Consultancy),WCC People Services,"2,775.00",,
3284766,28/04/2017,30/03/2017,3018396,BTU Installation & Maintenance Ltd,Contractors,HRA City West Homes,"15,878.62",,
3284767,28/04/2017,30/03/2017,3018396,BTU Installation & Maintenance Ltd,Contractors,HRA City West Homes,"12,617.62",,
3284769,24/04/2017,22/03/2017,3018439,Pulse Healthcare Ltd,Consultancy (Hired & Contr - Consultancy),Public Protection and Licensing,971.25,,
3284772,24/04/2017,24/03/2017,3018493,Nifes Projects Ltd T/A NIFES Consulting Group,Professional Fees - Specialist support,HRA City West Homes,"1,157.76",,
3284774,24/04/2017,24/03/2017,3018493,Nifes Projects Ltd T/A NIFES Consulting Group,Professional Fees - Specialist support,HRA City West Homes,"11,412.50",,
3284775,24/04/2017,24/03/2017,3018493,Nifes Projects Ltd T/A NIFES Consulting Group,Professional Fees - Specialist support,HRA City West Homes,"1,471.00",,
3284776,28/04/2017,31/03/2017,3018493,Nifes Projects Ltd T/A NIFES Consulting Group,Engineers Heating,Education,"5,774.00",,
3284790,24/04/2017,24/03/2017,3019408,WSP UK Ltd  ,Consultancy (Hired & Contr - Consultancy),Property Investments and Estates,"12,383.44",,
3284791,26/04/2017,27/03/2017,3019499,Cooltherm (UK) Ltd,Electricity (Energy),Property Investments and Estates,"1,199.00",,
3284803,28/04/2017,30/03/2017,3019869,Personal detail - redacted,Hired and Contracted Services,WAES Director (Principal),505,,
3284806,27/04/2017,28/03/2017,3019959,Westminster Arts,Respite Placements (Voluntary associations),Adult Social Care Strategic Commissioning and Enterprise,"9,625.00",,
3284809,26/04/2017,27/03/2017,3020018,Skola International Community School,Cleaning Contract -E14,Schools,"1,204.50",,
3284811,06/04/2017,28/03/2017,3020091,RBKC - Staff Sports and Social Club,Food & Beverages (Equip Catering),Education,707.02,,
3284814,02/05/2017,01/04/2017,3020262,Personal detail - redacted,Service Charges to Landlords,HRA City West Homes,565.2,,
3284815,24/04/2017,23/03/2017,3020343,Michael Page International Recruitment Ltd,Hired and Contracted Services,Property Investments and Estates,"3,214.26",,
3284816,27/04/2017,28/03/2017,3020343,Michael Page International Recruitment Ltd,Salaries,HRA City West Homes,948.75,,
3284817,28/04/2017,31/03/2017,3020343,Michael Page International Recruitment Ltd,Hired and Contracted Services,Property Investments and Estates,"3,749.97",,
3284828,27/04/2017,28/03/2017,3020649,Niblock Builders Ltd,Contractors,HRA City West Homes,"28,522.36",,
3284839,06/04/2017,28/02/2017,3021170,Working Transitions,Hired and Contracted Services,WCC People Services,620,,
3284845,05/04/2017,21/03/2017,3021277,Verizon UK Ltd,Design and development,City Management and Communities,"24,117.01",,
3284857,27/04/2017,28/03/2017,3021826,The Comedy School Ltd,Publications (Expenditure),Highways Infrastructure & Public Realm,"5,000.00",,
3284858,27/04/2017,28/03/2017,3021826,The Comedy School Ltd,Specialist Training,Highways Infrastructure & Public Realm,"2,500.00",,
3284871,20/04/2017,22/02/2017,3022706,Caterlink Ltd,Catering -Service Contract -E25,Schools,"5,240.20",,
3284872,18/04/2017,22/02/2017,3022706,Caterlink Ltd,Catering -Service Contract -E25,Schools,673.55,,
3284875,24/04/2017,28/02/2017,3023117,Ellwood and Atfield Limited,Hired and Contracted Services,"Policy, Performance and Communications","5,808.00",,
3284876,26/04/2017,27/03/2017,3023117,Ellwood and Atfield Limited,Hired and Contracted Services,"Policy, Performance and Communications","6,072.00",,
3284905,28/04/2017,30/03/2017,3024209,St Andrews Club,Hired and Contracted Services,Public Protection and Licensing,"4,250.00",,
3284906,28/04/2017,29/03/2017,3024327,Kenmal Limited,Service Charges to Landlords,HRA City West Homes,600,,
3284922,28/04/2017,31/03/2017,3024666,Findian CTO Services Ltd,Consultancy (Hired & Contr - Consultancy),Parking,"5,500.00",,
3284925,24/04/2017,24/03/2017,3024692,Long & Partners Ltd,Professional Fees - Specialist support,Property Investments and Estates,"1,000.00",,
3284931,06/04/2017,24/02/2017,3025019,Personal detail - redacted,Hired and Contracted Services,"Policy, Performance and Communications","2,055.50",,
3284932,06/04/2017,03/03/2017,3025019,Personal detail - redacted,Hired and Contracted Services,"Policy, Performance and Communications",741,,
3284938,13/04/2017,17/03/2017,3025836,Everyone Active Admin Services Ltd,Activities and Events,Community Services,525.54,,
3284941,05/04/2017,01/11/2016,3025836,Everyone Active Admin Services Ltd,School Trips Swimming - E19,Schools,827.5,,
3284959,13/04/2017,17/03/2017,3026774,Bermondsey Solutions Ltd,Education (Hired & Contr - Educ),Public Health,"8,000.00",,
3284966,19/04/2017,20/03/2017,3027022,XMA Ltd,Electricity (Energy),Property Investments and Estates,"26,079.00",,
3284967,24/04/2017,23/03/2017,3027022,XMA Ltd,Electricity (Energy),Property Investments and Estates,"21,732.50",,
3284968,07/04/2017,27/02/2017,3027032,Timberlake Consultants Ltd,Training & Conferences,Public Health,"2,605.00",,
3284969,06/04/2017,10/03/2017,3027044,Personal detail - redacted,Hired and Contracted Services,WAES Director (Principal),"1,024.99",,
3284977,13/04/2017,16/03/2017,3027241,Marshall Survey Associates Ltd,Professional Fees (non-Legal),"Growth, Planning and Housing","9,353.00",,
3284980,06/04/2017,16/12/2016,3027267,Personal detail - redacted,Property Management Fees,Community Education,"11,985.10",,
3284991,24/04/2017,24/03/2017,3027455,Metropolitan Workshop LLP,Consultants/Consultation,HRA City West Homes,"52,177.03",,
3285035,28/04/2017,29/03/2017,3000919,Wates Living Space,Contractors,HRA City West Homes,"15,963.50",,
3285055,28/04/2017,31/03/2017,3002571,Action On Addiction,Public Health (Hired & Contr - Healthcare),Public Health,"6,666.63",,
3285057,05/04/2017,01/02/2017,3002798,Personal detail - redacted,Public Health (Hired & Contr - Healthcare),Public Health,685.54,,
3285058,05/04/2017,01/02/2017,3002798,Personal detail - redacted,Public Health (Hired & Contr - Healthcare),Public Health,"1,806.65",,
3285059,02/05/2017,01/04/2017,3002798,Personal detail - redacted,Public Health (Hired & Contr - Healthcare),Public Health,"1,469.18",,
3285064,05/04/2017,03/04/2017,3003035,Allen Lane,Consultancy (Hired & Contr - Consultancy),Commercial and Financial Management,"2,520.00",,
3285079,06/04/2017,10/03/2017,3005502,Corona Energy Retail 4 Ltd,Gas -E16,Schools,"1,151.53",,
3285085,05/04/2017,03/03/2017,3005962,Care-Ex Services Ltd,Hired and Contracted Services,WAES Director (Principal),"1,538.32",,
3285103,28/04/2017,31/03/2017,3008429,Elliott Group Ltd,Public Coveniences,Waste and Parks,"8,500.00",,
3285115,03/05/2017,03/04/2017,3009798,Playle & Partners Llp,Professional Fees - Specialist support,HRA City West Homes,"10,460.00",,
3285145,03/05/2017,03/04/2017,3012196,Bowen Partnership,Valuation Fees,HRA City West Homes,"2,400.00",,
3285146,03/05/2017,03/04/2017,3012196,Bowen Partnership,Professional Fees - Specialist support,Housing Operations,"1,200.00",,
3285147,05/04/2017,05/04/2017,3999999,General Sundry,Compensation Payments,HRA City West Homes,"3,500.00",,
3285169,11/04/2017,05/04/2017,3002950,Zocalo Ltd T/as Bluebird Care,Adults Community Direct Payments - Managed Accounts,Adult Social Care Integrated Care,530,,
3285179,24/04/2017,22/03/2017,3024600,Westaways School Improvement Consultancy Ltd,Bought in professional services- curriculum -E27,Schools,650,,
3285182,28/04/2017,30/03/2017,3025070,Education Child Protection Ltd,Agency Supply Staff- curriculum -E27,Schools,650,,
3285188,06/04/2017,22/03/2017,3012424,Vibe Teacher Recruitment Ltd,Agency Supply Staff- curriculum -E27,Schools,"2,491.45",,
3285189,13/04/2017,30/03/2017,3012424,Vibe Teacher Recruitment Ltd,Agency Supply Staff- curriculum -E27,Schools,"3,040.45",,
3285192,10/04/2017,31/03/2017,3012741,Cas Training Limited,Hired and Contracted Services,WAES Director (Principal),"4,800.00",,
3285194,02/05/2017,03/04/2017,3012872,Personal detail - redacted,Advocacy (Legal Fees),Children's Services Commissioning,951,,
3285199,11/04/2017,29/03/2017,3013806,Lynch Insulation Ltd,Management (Hired & Contr - Consultancy),HRA City West Homes,"3,660.00",,
3285201,24/04/2017,27/03/2017,3014041,King's College Hospital NHS Foundation Trust,Public Health (Hired & Contr - Healthcare),Public Health,795,,
3285202,24/04/2017,27/03/2017,3014041,King's College Hospital NHS Foundation Trust,Public Health (Hired & Contr - Healthcare),Public Health,759,,
3285213,19/06/2017,23/03/2017,3017054,St George's University Hospitals NHS Foundation Trust,Public Health (Hired & Contr - Healthcare),Public Health,746.7,,
3285214,03/05/2017,03/04/2017,3017154,Site Training Inspection & Compliance Service Limited,Professional Fees (non-Legal),HRA City West Homes,"6,012.50",,
3285220,03/05/2017,03/04/2017,3020343,Michael Page International Recruitment Ltd,Salaries,HRA City West Homes,"1,035.00",,
3285222,02/05/2017,01/04/2017,3020854,Urgent Detergent Ltd,Cleaning Contract -E14,Schools,"2,350.00",,
3285227,06/04/2017,05/04/2017,3999999,General Sundry,Dwelling Rental Income,HRA City West Homes,"1,248.98",,
3285228,12/04/2017,06/02/2017,3023057,SDS Consultants Ltd,Professional Fees - Specialist support,HRA City West Homes,"2,346.18",,
3285229,12/04/2017,06/02/2017,3023057,SDS Consultants Ltd,Professional Fees - Specialist support,HRA City West Homes,"2,835.00",,
3285230,12/04/2017,06/02/2017,3023057,SDS Consultants Ltd,Professional Fees - Specialist support,HRA City West Homes,"2,640.00",,
3285231,12/04/2017,06/02/2017,3023057,SDS Consultants Ltd,Professional Fees - Specialist support,HRA City West Homes,"1,800.00",,
3285234,12/04/2017,05/04/2017,3001804,Respect Care Services Ltd,Adults Community Direct Payments - Managed Accounts,Adult Social Care Integrated Care,"1,402.80",,
3285237,12/04/2017,05/04/2017,3001804,Respect Care Services Ltd,Adults Community Direct Payments - Managed Accounts,Adult Social Care Integrated Care,"1,870.40",,
3285239,07/04/2017,14/02/2017,3025836,Everyone Active Admin Services Ltd,Hire of Rooms,Chief of Staff,"1,500.95",,
3285241,19/04/2017,20/03/2017,3025836,Everyone Active Admin Services Ltd,Hire of Rooms,Chief of Staff,"1,500.00",,
3285244,12/04/2017,05/04/2017,3001804,Respect Care Services Ltd,Adults Community Direct Payments - Managed Accounts,Adult Social Care Integrated Care,"1,870.40",,
3285247,11/04/2017,05/04/2017,3001804,Respect Care Services Ltd,Adults Community Direct Payments - Managed Accounts,Adult Social Care Integrated Care,"1,870.40",,
3285248,28/04/2017,30/03/2017,3027022,XMA Ltd,Electricity (Energy),Property Investments and Estates,"26,430.00",,
3285250,11/04/2017,05/04/2017,3001804,Respect Care Services Ltd,Adults Community Direct Payments - Managed Accounts,Adult Social Care Integrated Care,"1,870.40",,
3285251,10/04/2017,05/04/2017,3027710,Husain Bulman Property Services,Homelessness Prev-Deposits,Housing Operations,"4,500.00",,
3285254,06/04/2017,05/04/2017,3027689,Dluxestates Ltd,Homelessness Prev-Deposits,Housing Operations,"2,000.00",,
3285263,11/04/2017,05/04/2017,3018018,Personal detail - redacted,Adults Community Direct Payments - Managed Accounts,Adult Social Care Integrated Care,"1,161.40",,
3285265,28/04/2017,05/04/2017,3999999,General Sundry,Compensation Payments,HRA City West Homes,"6,810.00",,
3285283,10/04/2017,05/04/2017,3999999,General Sundry,Acquisitions,HRA City West Homes,"395,923.08",,
3285294,06/04/2017,05/04/2017,3006152,Department for Communities & Local Government,Section 31 Grant - Business Rate Multiplier Cap,Corporate Finance,"658,760.00",,
3285309,06/04/2017,21/07/2015,3000297,Performing Right Society Ltd,Hired and Contracted Services,"Policy, Performance and Communications","1,785.35",,
3285312,25/04/2017,28/03/2017,3000336,Judge & Priestley,Legal Services: Not Elsewhere Classified (Legal Fees),HRA City West Homes,675,,
3285313,25/04/2017,26/03/2017,3000434,Trinity Mirror Southern Ltd,Publications (Expenditure),Development Planning,635.96,,
3285315,28/04/2017,31/03/2017,3000434,Trinity Mirror Southern Ltd,Publications (Expenditure),Development Planning,635.96,,
3285329,13/04/2017,14/03/2017,3000847,Prospero Recruitment Ltd,Agency Supply Staff- curriculum -E27,Schools,825,,
3285330,28/04/2017,30/03/2017,3000919,Wates Living Space,Contractors,HRA City West Homes,970,,
3285333,28/04/2017,31/03/2017,3001003,Nelson Trust,Public Health (Hired & Contr - Healthcare),Public Health,"1,198.32",,
3285334,11/04/2017,28/02/2017,3001026,Fleet Education Services Ltd T/a Fleet Tutors,Grants,Family Services 1,"4,045.51",,
3285368,28/04/2017,31/03/2017,3001917,Continental Landscapes Ltd,Funeral Expenses inc equipment,Waste and Parks,"2,859.30",,
3285371,12/04/2017,13/03/2017,3002147,Eileen Say Catering Equipment Ltd,Equipment & Utensils (Equip Catering),Children's Services Commissioning,670,,
3285377,11/04/2017,31/03/2017,3002403,Axis Europe Plc,Contractors,HRA City West Homes,"41,398.87",,
3285392,07/06/2017,21/03/2017,3002881,City Of Westminster,Rates (NNDR) -E17,Schools,"2,507.78",,
3285397,12/04/2017,21/03/2017,3003003,Polyglobe Ltd,Removals,HRA City West Homes,"-2,786.40",,
3285398,02/05/2017,04/04/2017,3003655,J A Cornish Ltd,Planned Maintenance,Community Services,"3,900.00",,
3285403,07/04/2017,03/04/2017,3004615,Hammersmith Community Gardens Assoc,Consultants/Consultation,HRA City West Homes,"7,300.00",,
3285405,10/04/2017,03/04/2017,3004840,A N Contract Service Ltd,Repair & Maintenance (Ground Mtce - Plan),"Policy, Performance and Communications","7,227.00",,
3285406,10/04/2017,03/04/2017,3004840,A N Contract Service Ltd,Contractors,Waste and Parks,"1,859.00",,
3285407,10/04/2017,03/04/2017,3004840,A N Contract Service Ltd,Repair & Maintenance (Ground Mtce - Plan),"Policy, Performance and Communications","6,650.00",,
3285408,10/04/2017,03/04/2017,3004840,A N Contract Service Ltd,Repair & Maintenance (Ground Mtce - Plan),"Policy, Performance and Communications","1,405.00",,
3285410,11/04/2017,31/12/2016,3004915,Manor Lodge Hotel,Temporary Accommodation,Housing Operations,"8,488.50",,
3285411,20/04/2017,23/03/2017,3005020,Nsl Limited,Parking Enforcement Contract,Parking,"23,968.36",,
3285412,28/04/2017,31/03/2017,3005020,Nsl Limited,Equipment (Parking),Parking,"5,559.30",,
3285413,28/04/2017,31/03/2017,3005020,Nsl Limited,Parking Enforcement Contract,Parking,"41,380.91",,
3285414,28/04/2017,31/03/2017,3005020,Nsl Limited,Parking Enforcement Contract,Parking,"318,442.48",,
3285415,28/04/2017,31/03/2017,3005020,Nsl Limited,Equipment (Parking),Parking,"1,430.00",,
3285416,28/04/2017,31/03/2017,3005020,Nsl Limited,Equipment (Parking),Parking,"9,350.00",,
3285418,12/04/2017,15/03/2017,3005020,Nsl Limited,Equipment (Parking),Parking,"1,293.60",,
3285419,11/04/2017,14/03/2017,3005020,Nsl Limited,Hired and Contracted Services,Parking,835.19,,
3285425,06/04/2017,10/03/2017,3005502,Corona Energy Retail 4 Ltd,Gas -E16,Schools,588.94,,
3285433,31/05/2017,16/03/2017,3006240,EDF Energy Customers PLC,Electricity (Energy),HRA City West Homes,"2,306.67",,
3285436,07/06/2017,10/03/2017,3006862,London Borough Of Sutton,Assessment services,Family Services 3,"8,250.00",,
3285437,25/04/2017,28/03/2017,3006868,London North West Healthcare NHS Trust,Public Health (Hired & Contr - Healthcare),Public Health,"1,582.00",,
3285445,02/05/2017,31/03/2017,3008320,Pitney Bowes Software Ltd,Application Service Provision (IT Software Maint),TB Information Services and Strategy,"20,400.00",,
3285460,11/05/2017,21/03/2017,3008535,London Borough Of Ealing  ,IT Software Purchase,Adult Social Care Finance and Resources,"1,944.33",,
3285462,06/04/2017,09/03/2017,3008560,Genesis (Sp Grant),Hired and Contracted Services,Housing Operations,"120,834.00",,
3285464,13/04/2017,16/03/2017,3008818,Central & North West London Nhs Trust,Public Health (Hired & Contr - Healthcare),Public Health,"33,272.45",,
3285466,03/05/2017,03/04/2017,3008818,Central & North West London Nhs Trust,Public Health (Hired & Contr - Healthcare),Public Health,"12,500.00",,
3285468,07/04/2017,31/10/2016,3008890,Cygnet Health Care Ltd,Element 3 - Top-up Funding,Education,"2,220.00",,
3285469,07/04/2017,30/11/2016,3008890,Cygnet Health Care Ltd,Element 3 - Top-up Funding,Education,"3,108.00",,
3285470,07/04/2017,31/12/2016,3008890,Cygnet Health Care Ltd,Element 3 - Top-up Funding,Education,"1,184.00",,
3285471,07/04/2017,31/01/2017,3008890,Cygnet Health Care Ltd,Element 3 - Top-up Funding,Education,"1,628.00",,
3285512,03/05/2017,07/03/2017,3010121,Pders Key Lifts,Contractors,HRA City West Homes,"491,888.84",,
3285515,03/05/2017,03/04/2017,3010637,Manifest Associates Ltd,IT Software Maintenance,HRA City West Homes,"14,450.00",,
3285523,03/05/2017,03/04/2017,3011133,University Of London,Hired and Contracted Services,Adult Social Care Integrated Care,"1,818.72",,
3285524,03/05/2017,03/04/2017,3011133,University Of London,Hired and Contracted Services,Family Services 1,"1,369.44",,
3285525,03/05/2017,03/04/2017,3011133,University Of London,Hired and Contracted Services,Adult Social Care Integrated Care,"1,830.31",,
3285526,03/05/2017,03/04/2017,3011133,University Of London,Hired and Contracted Services,Housing Operations,"1,778.72",,
3285527,06/04/2017,03/04/2017,3011219,Personal detail - redacted,Fees General,HRA City West Homes,"34,355.25",,
3285529,06/04/2017,03/04/2017,3011234,Odhams Walk Resident(Quarterly Allowance,Fees General,HRA City West Homes,"28,995.25",,
3285531,02/05/2017,01/04/2017,3011484,Unique International Recoveries Llc,Hired and Contracted Services,Tri-borough Libraries and Archives,589,,
3285539,13/04/2017,15/03/2017,3011752,International Teacher Recruitment Ltd,Agency Supply Staff- curriculum -E27,Schools,615,,
3285540,20/04/2017,21/03/2017,3011752,International Teacher Recruitment Ltd,Agency Supply Staff- curriculum -E27,Schools,820,,
3285565,02/05/2017,04/04/2017,3012807,Personal detail - redacted,Advocacy (Legal Fees),Housing Operations,750,,
3285579,01/06/2017,16/03/2017,3013604,Soho Housing Association,Hired and Contracted Services,Housing Operations,"14,192.00",,
3285580,20/04/2017,28/02/2017,3013620,Student Employment Services,Hired and Contracted Services,Legal Services,"2,446.90",,
3285599,07/04/2017,16/01/2017,3016293,Nfer (National Foundation for Educational Research),Teaching Materials -E19,Schools,766.4,,
3285604,07/04/2017,20/01/2017,3016625,Personal detail - redacted,Post mortem and reports fees,Chief of Staff,509.3,,
3285613,13/04/2017,04/04/2017,3016720,Watret & Company Ltd,Contractors,HRA City West Homes,"170,243.84",,
3285614,24/04/2017,04/04/2017,3016720,Watret & Company Ltd,Contractors,HRA City West Homes,"5,700.00",,
3285616,04/05/2017,20/12/2016,3016893,Farney Close School Ltd,SEN Therapy,Education,"20,627.00",,
3285619,02/05/2017,04/04/2017,3017002,Anchor Tutors,Grants,Family Services 1,793.5,,
3285620,02/05/2017,04/04/2017,3017002,Anchor Tutors,Grants,Family Services 1,"2,712.50",,
3285621,02/05/2017,04/04/2017,3017002,Anchor Tutors,Grants,Family Services 1,"1,750.00",,
3285622,02/05/2017,04/04/2017,3017002,Anchor Tutors,Grants,Family Services 1,"1,093.50",,
3285625,07/04/2017,03/04/2017,3017035,Personal detail - redacted,Hired and Contracted Services,WCC People Services,"3,750.00",,
3285626,06/04/2017,29/09/2016,3017101,Personal detail - redacted,Consultants/Consultation,HRA City West Homes,"1,600.00",,
3285632,06/04/2017,24/10/2016,3017936,Personal detail - redacted,Consultants/Consultation,HRA City West Homes,"3,577.76",,
3285636,07/04/2017,09/03/2017,3018328,Tavistock Centre For Couple Relationship,Hired and Contracted Services,Family Services 2,"1,500.00",,
3285637,10/04/2017,23/02/2017,3018399,Mergus Consulting Ltd,Hired and Contracted Services,"Policy, Performance and Communications","5,525.00",,
3285638,24/04/2017,24/03/2017,3018399,Mergus Consulting Ltd,Hired and Contracted Services,"Policy, Performance and Communications","5,850.00",,
3285639,24/04/2017,24/03/2017,3018399,Mergus Consulting Ltd,Hired and Contracted Services,"Policy, Performance and Communications","2,600.00",,
3285649,06/04/2017,28/02/2017,3021694,PSL Print Management Ltd,Printing (Printing),HRA City West Homes,"1,446.00",,
3285652,04/05/2017,04/04/2017,3022461,Redkey Digital Ltd,Website Development (IT Software Purch) (R Code),Economy,"7,500.00",,
3285659,07/04/2017,28/11/2016,3023075,Sports & Leisure Management Ltd,Refurbishment,Community Services,"2,866.50",,
3285662,05/06/2017,31/01/2017,3023254,SBP Law,Consultants/Consultation,HRA City West Homes,"1,500.00",,
3285747,06/04/2017,02/12/2016,3023918,European Football Academy Ltd,After School Clubs - E24,Schools,900,,
3285756,13/04/2017,17/03/2017,3025695,Inspiring Insights Ltd,Training & Conferences,WCC People Services,"6,000.00",,
3285765,28/04/2017,31/03/2017,3026959,Orchidvale Consultancy Ltd,Consultancy (Hired & Contr - Consultancy),Community Services,"2,475.00",,
3285766,24/04/2017,24/03/2017,3026959,Orchidvale Consultancy Ltd,Consultancy (Hired & Contr - Consultancy),Community Services,"2,475.00",,
3285767,13/04/2017,17/03/2017,3026959,Orchidvale Consultancy Ltd,Consultancy (Hired & Contr - Consultancy),Community Services,"2,475.00",,
3285770,28/04/2017,31/03/2017,3027455,Metropolitan Workshop LLP,Consultants/Consultation,HRA City West Homes,"66,133.19",,
3285802,28/04/2017,31/03/2017,3000014,Frankham Consultancy Group Ltd,Professional Fees - Specialist support,HRA City West Homes,"6,880.00",,
3285803,25/04/2017,04/04/2017,3000015,Capita Business Services Ltd,Software (IT Software Purch),HRA City West Homes,"19,483.98",,
3285807,11/04/2017,27/10/2016,3000051,BT Global Services,Contractors,TB Information Services and Strategy,"6,144.00",,
3285830,25/04/2017,20/02/2017,3000319,Posturite (Uk) Ltd,Office Furniture (Equip Furn),TB Information Services and Strategy,-595.85,,
3285831,25/04/2017,20/02/2017,3000319,Posturite (Uk) Ltd,Office Furniture (Equip Furn),TB Information Services and Strategy,-670.55,,
3285839,06/04/2017,31/10/2016,3000853,Service Point Uk,Reprographics (Printing),Development Planning,529,,
3285845,28/04/2017,31/03/2017,3001343,Cranstoun Drug Services,Public Health (Hired & Contr - Healthcare),Public Health,"2,400.00",,
3285865,07/04/2017,11/01/2017,3002147,Eileen Say Catering Equipment Ltd,Equipment & Utensils (Equip Catering),Children's Services Commissioning,"1,578.00",,
3285866,07/04/2017,11/01/2017,3002147,Eileen Say Catering Equipment Ltd,Equipment & Utensils (Equip Catering),Children's Services Commissioning,"6,998.00",,
3285868,07/04/2017,11/01/2017,3002147,Eileen Say Catering Equipment Ltd,Equipment & Utensils (Equip Catering),Children's Services Commissioning,"5,733.00",,
3285869,07/04/2017,11/01/2017,3002147,Eileen Say Catering Equipment Ltd,Equipment & Utensils (Equip Catering),Children's Services Commissioning,"1,395.00",,
3285870,07/04/2017,11/01/2017,3002147,Eileen Say Catering Equipment Ltd,Equipment & Utensils (Equip Catering),Children's Services Commissioning,"1,570.00",,
3285874,10/04/2017,30/12/2016,3002231,Dsi Billing Services,Council Tax & Business Rates (Hired & Contr - Fin'l Services),Revenues and Benefits,651.1,,
3285916,13/04/2017,20/03/2017,3005020,Nsl Limited,Parking Enforcement Contract,Parking,"23,348.18",,
3285919,11/04/2017,15/12/2016,3005129,St Mungo's Broadway (Grants & General Invoicing),Hired and Contracted Services,Housing Operations,"19,328.00",,
3285920,24/04/2017,25/03/2017,3005315,Personal detail - redacted,SEN Therapy,Education,612,,
3285921,10/04/2017,21/03/2017,3005397,London Basketball Association,Activities and Events,Community Services,"1,200.00",,
3285925,28/04/2017,31/03/2017,3005883,Bglobal Metering Ltd,Utilities: Not Elsewhere Classified (Energy),HRA City West Homes,"1,874.97",,
3285949,08/06/2017,31/03/2017,3008443,Pohwer,Advice & Counselling Services (Hired & Contr - Social CommCare),Adult Social Care Integrated Care,"22,120.00",,
3285954,07/04/2017,28/02/2017,3008890,Cygnet Health Care Ltd,Element 3 - Top-up Funding,Education,"1,628.00",,
3285962,27/04/2017,28/03/2017,3009060,Welfare Call (Looked After Children) Ltd,Grants,Family Services 1,"7,575.75",,
3285964,10/04/2017,31/03/2017,3009322,Altwood Housing Limited,Temporary Accommodation,Family Services 2,"2,393.00",,
3285981,07/04/2017,06/04/2017,3999999,General Sundry,Removals,HRA City West Homes,"5,800.00",,
3285983,11/04/2017,01/03/2017,3011092,Residential Management Group,Fees General,Housing Operations,"-8,268.25",,
3285990,07/04/2017,06/04/2017,3999999,General Sundry,Compensation Payments,HRA City West Homes,"6,000.00",,
3285995,10/04/2017,17/11/2016,3012424,Vibe Teacher Recruitment Ltd,Agency Supply Staff- curriculum -E27,Schools,"1,025.45",,
3286004,07/04/2017,06/04/2017,3999999,General Sundry,Grants,Family Services 1,662,,
3286005,18/04/2017,04/04/2017,3012424,Vibe Teacher Recruitment Ltd,Agency Supply Staff- curriculum -E27,Schools,"1,025.45",,
3286010,20/04/2017,04/04/2017,3012424,Vibe Teacher Recruitment Ltd,Agency Supply Staff- curriculum -E27,Schools,"2,496.06",,
3286020,05/05/2017,05/04/2017,3013429,Able 2 Occupational Therapy Services Ltd,Occupational Therapy Services (Hired & Contr - Healthcare),Adult Social Care Strategic Commissioning and Enterprise,"29,170.80",,
3286023,11/04/2017,27/02/2017,3013882,Personal detail - redacted,Post mortem and reports fees,Chief of Staff,"1,355.20",,
3286026,07/04/2017,06/04/2017,3999999,General Sundry,Service Charges,HRA City West Homes,"1,631.96",,
3286029,25/04/2017,28/03/2017,3015097,Ethos Communication Solutions Ltd,Photocopier lease - E22,Schools,"1,202.85",,
3286030,11/04/2017,13/11/2016,3015717,Personal detail - redacted,Post mortem and reports fees,Chief of Staff,"2,244.00",,
3286032,11/04/2017,14/03/2017,3016075,The Elms Sports in Schools,Before and After School Clubs -Expenses -E24,Schools,560,,
3286039,07/04/2017,06/04/2017,3999999,General Sundry,Service Charges,HRA City West Homes,"11,937.34",,
3286046,28/04/2017,31/03/2017,3019415,T-Three Public Sector Consulting Ltd,Training & Conferences,WCC People Services,633,,
3286060,10/04/2017,06/04/2017,3015377,Hampstead Estate London Limited,PSL Incentive Payment,Housing Operations,"2,000.00",,
3286065,07/04/2017,06/11/2016,3020405,Citrix Online UK Ltd,Software (IT Software Purch),HRA City West Homes,"1,092.00",,
3286067,26/04/2017,27/03/2017,3020576,33 Warwick Avenue Management Ltd,Service Charges to Landlords,HRA City West Homes,"1,316.37",,
3286070,10/04/2017,06/04/2017,3027690,Personal detail - redacted,PSL Incentive Payment,Housing Operations,"4,000.00",,
3286076,10/04/2017,06/04/2017,3015377,Hampstead Estate London Limited,PSL Incentive Payment,Housing Operations,"1,500.00",,
3286077,10/04/2017,13/12/2016,3023075,Sports & Leisure Management Ltd,Refurbishment,Community Services,"9,315.40",,
3286078,10/04/2017,28/11/2016,3023075,Sports & Leisure Management Ltd,Refurbishment,Community Services,"9,953.70",,
3286079,10/04/2017,12/12/2016,3023075,Sports & Leisure Management Ltd,Refurbishment,Community Services,"140,235.00",,
3286080,10/04/2017,12/12/2016,3023075,Sports & Leisure Management Ltd,Refurbishment,Community Services,"5,500.00",,
3286082,10/04/2017,12/12/2016,3023075,Sports & Leisure Management Ltd,Refurbishment,Community Services,"9,712.45",,
3286083,10/04/2017,12/12/2016,3023075,Sports & Leisure Management Ltd,Refurbishment,Community Services,"9,968.85",,
3286084,10/04/2017,12/12/2016,3023075,Sports & Leisure Management Ltd,Refurbishment,Community Services,"9,503.30",,
3286085,10/04/2017,28/11/2016,3023075,Sports & Leisure Management Ltd,Refurbishment,Community Services,"5,426.00",,
3286086,10/04/2017,06/04/2017,3027713,Personal detail - redacted,PSL Incentive Payment,Housing Operations,"3,000.00",,
3286091,07/04/2017,11/11/2016,3023443,Personal detail - redacted,Advocacy (Legal Fees),HRA City West Homes,593.75,,
3286093,10/04/2017,06/04/2017,3025165,General Accommadation Estates Ltd,PSL Incentive Payment,Housing Operations,"2,000.00",,
3286095,07/04/2017,06/04/2017,3999999,General Sundry,Reimbursement payments/ compensation payments (HRA and non HRA),Revenues and Benefits,967.23,,
3286096,12/04/2017,13/03/2017,3023670,R Company 3 Ltd,Portable Building Hire (Rent),HRA City West Homes,"19,728.75",,
3286099,19/04/2017,20/03/2017,3024327,Kenmal Limited,Service Charges to Landlords,HRA City West Homes,600,,
3286106,24/04/2017,22/03/2017,3025414,Castle Water Ltd,Water and Sewerage -E15,Schools,"1,323.13",,
3286110,10/04/2017,18/12/2016,3025695,Inspiring Insights Ltd,Training & Conferences,WCC People Services,"9,542.50",,
3286113,07/04/2017,04/01/2017,3026709,Personal detail - redacted,Advocacy (Legal Fees),Children's Services Commissioning,"1,950.00",,
3286114,25/04/2017,20/03/2017,3026913,Potter Raper Partnership,Consultants/Consultation,"Growth, Planning and Housing","11,282.50",,
3286115,11/04/2017,02/03/2017,3027348,Fontain Ltd,Printing (Printing),"Policy, Performance and Communications","1,352.00",,
3286116,07/04/2017,06/04/2017,3999999,General Sundry,Service Charges,HRA City West Homes,"1,321.52",,
3286118,11/04/2017,06/04/2017,3000003,Housing & Care 21,Adults Community Direct Payments - Managed Accounts,Adult Social Care Integrated Care,948.35,,
3286120,11/04/2017,06/04/2017,3000003,Housing & Care 21,Adults Community Direct Payments - Managed Accounts,Adult Social Care Integrated Care,"1,023.32",,
3286122,11/04/2017,06/04/2017,3000003,Housing & Care 21,Adults Community Direct Payments - Managed Accounts,Adult Social Care Integrated Care,"1,052.98",,
3286128,19/04/2017,06/04/2017,3019356,Gateway Qualifications,Exam Fees,WAES Director (Principal),"2,088.00",,
3286130,07/04/2017,06/04/2017,3999999,General Sundry,Service Charges,HRA City West Homes,735.52,,
3286131,10/04/2017,06/04/2017,3023172,Fixed Rent Ltd,PSL Incentive Payment,Housing Operations,"2,000.00",,
3286132,28/04/2017,31/03/2017,3005020,Nsl Limited,Parking Enforcement Contract,Parking,"541,559.03",,
3286134,10/04/2017,23/02/2017,3005302,Royal Borough of Kensington & Chelsea ,Tri-borough Music Hub - E27,Schools,"1,621.00",,
3286135,12/04/2017,13/03/2017,3005325,Renegades Girls Club,Activities and Events,Community Services,"1,339.00",,
3286140,07/04/2017,06/04/2017,3999999,General Sundry,Dwelling Rental Income,HRA City West Homes,"1,058.96",,
3286143,11/04/2017,31/03/2016,3003901,Octavia,Independent Units,Adult Social Care Strategic Commissioning and Enterprise,"68,222.40",,
3286145,11/04/2017,28/02/2017,3003901,Octavia,Independent Units,Adult Social Care Strategic Commissioning and Enterprise,"12,469.40",,
3286146,11/04/2017,31/03/2016,3003901,Octavia,Independent Units,Adult Social Care Strategic Commissioning and Enterprise,"13,437.60",,
3286147,10/04/2017,31/10/2016,3003901,Octavia,Independent Units,Adult Social Care Strategic Commissioning and Enterprise,"13,137.20",,
3286155,11/04/2017,23/09/2014,3003901,Octavia,Independent Units,Adult Social Care Strategic Commissioning and Enterprise,"11,663.04",,
3286156,11/04/2017,31/10/2016,3003901,Octavia,Independent Units,Adult Social Care Strategic Commissioning and Enterprise,"15,679.00",,
3286157,11/04/2017,28/02/2017,3003901,Octavia,Independent Units,Adult Social Care Strategic Commissioning and Enterprise,"12,135.00",,
3286158,28/04/2017,31/03/2017,3002571,Action On Addiction,Public Health (Hired & Contr - Healthcare),Public Health,-640.8,,
3286172,28/04/2017,30/03/2017,3000888,City Of London,Subscriptions,Place Shaping,"40,000.00",,
3286179,10/04/2017,09/01/2017,3000792,Northern Trust,Hired and Contracted Services,Tri-Borough Treasury and Pensions,"4,398.29",,
3286183,20/04/2017,02/03/2017,3000582,RWA Security Ltd,Personnel (Hired & Contr - Consultancy),Public Protection and Licensing,828,,
3286184,20/04/2017,02/03/2017,3000582,RWA Security Ltd,Personnel (Hired & Contr - Consultancy),Public Protection and Licensing,736,,
3286185,11/04/2017,05/03/2017,3000582,RWA Security Ltd,Personnel (Hired & Contr - Consultancy),Public Protection and Licensing,828,,
3286186,11/04/2017,05/03/2017,3000582,RWA Security Ltd,Personnel (Hired & Contr - Consultancy),Public Protection and Licensing,552,,
3286192,02/05/2017,03/04/2017,3000336,Judge & Priestley,Legal Services: Not Elsewhere Classified (Legal Fees),HRA City West Homes,656.4,,
3286194,27/04/2017,28/03/2017,3000455,Stopford Information Systems Ltd,Education (IT Software Purch),TB Information Services and Strategy,600,,
3286207,10/04/2017,06/04/2017,3015900,Personal detail - redacted,Reimbursement payments/ compensation payments (HRA and non HRA),Revenues and Benefits,"2,428.30",,
3286213,10/04/2017,06/04/2017,3015900,Personal detail - redacted,Reimbursement payments/ compensation payments (HRA and non HRA),Revenues and Benefits,"1,072.50",,
3286234,07/04/2017,13/12/2016,3024174,Personal detail - redacted,Post mortem and reports fees,Chief of Staff,650,,
3286240,28/04/2017,29/03/2017,3022706,Caterlink Ltd,Catering -Service Contract -E25,Schools,"5,990.97",,
3286241,28/04/2017,29/03/2017,3022706,Caterlink Ltd,Catering -Service Contract -E25,Schools,"6,672.72",,
3286242,05/05/2017,29/03/2017,3022706,Caterlink Ltd,Catering -Service Contract -E25,Schools,"5,528.75",,
3286243,28/04/2017,29/03/2017,3022706,Caterlink Ltd,Catering -Service Contract -E25,Schools,904.57,,
3286248,28/04/2017,31/03/2017,3022008,Wigmore Hall,Hired and Contracted Services,Adult Social Care Strategic Commissioning and Enterprise,"4,750.00",,
3286249,28/04/2017,29/03/2017,3022706,Caterlink Ltd,Catering -Service Contract -E25,Schools,"6,093.80",,
3286250,28/04/2017,29/03/2017,3022706,Caterlink Ltd,Catering -Service Contract -E25,Schools,"5,432.54",,
3286251,28/04/2017,29/03/2017,3022706,Caterlink Ltd,Catering -Service Contract -E25,Schools,"14,314.07",,
3286254,05/05/2017,05/04/2017,3020343,Michael Page International Recruitment Ltd,Hired and Contracted Services,Property Investments and Estates,"3,214.26",,
3286255,24/04/2017,05/04/2017,3020343,Michael Page International Recruitment Ltd,Hired and Contracted Services,Property Investments and Estates,"-3,214.26",,
3286256,24/04/2017,05/04/2017,3020343,Michael Page International Recruitment Ltd,Hired and Contracted Services,Property Investments and Estates,"-3,749.97",,
3286260,07/04/2017,05/11/2015,3017287,Personal detail - redacted,Legal Services (Legal Fees),Development Planning,600,,
3286264,10/04/2017,13/03/2017,3015524,Realworld Consulting Ltd,Education (Hired & Contr - Educ),Public Health,"4,200.00",,
3286265,20/04/2017,13/03/2017,3015524,Realworld Consulting Ltd,Education (Hired & Contr - Educ),Public Health,"7,050.00",,
3286269,08/05/2017,31/03/2017,3016161,Prevention and Detection (Holdings) Limited,Security (Security),HRA City West Homes,"1,103.04",,
3286271,02/05/2017,04/04/2017,3013384,Personal detail - redacted,Training & Conferences,Family Services 2,665,,
3286274,02/05/2017,04/04/2017,3013590,ARO Performance Systems Ltd,IT Software Maintenance,HRA City West Homes,765,,
3286280,07/04/2017,21/09/2016,3013328,Approved Inspector Services Ltd,Hired and Contracted Services,Development Planning,"1,600.00",,
3286282,19/04/2017,04/04/2017,3012424,Vibe Teacher Recruitment Ltd,Agency Supply Staff- curriculum -E27,Schools,"1,117.50",,
3286288,31/05/2017,03/04/2017,3012304,Grand Union Health Centre,Public Health (Hired & Contr - Healthcare),Public Health,"1,820.00",,
3286289,10/04/2017,15/12/2016,3012424,Vibe Teacher Recruitment Ltd,Agency Supply Staff- curriculum -E27,Schools,"2,171.42",,
3286290,19/04/2017,04/04/2017,3012424,Vibe Teacher Recruitment Ltd,Agency Supply Staff- curriculum -E27,Schools,700,,
3286291,19/04/2017,04/04/2017,3012424,Vibe Teacher Recruitment Ltd,Agency Supply Staff- curriculum -E27,Schools,600,,
3286292,19/04/2017,04/04/2017,3012424,Vibe Teacher Recruitment Ltd,Agency Supply Staff- curriculum -E27,Schools,"1,025.00",,
3286293,19/04/2017,04/04/2017,3012424,Vibe Teacher Recruitment Ltd,Agency Supply Staff- curriculum -E27,Schools,549,,
3286297,13/04/2017,14/03/2017,3012195,Van Vynck Environmental Services Ltd,Cleaning Materials (Cleaning),HRA City West Homes,994,,
3286300,07/04/2017,01/04/2017,3011216,Lilestone Tenants & Residents,Fees General,HRA City West Homes,"25,545.00",,
3286302,07/04/2017,04/04/2017,3011218,Abc Housing Co-Operative Ltd,Fees General,HRA City West Homes,"23,668.25",,
3286303,07/04/2017,04/04/2017,3011230,Thurso Dundee Co-Op(Quarterly),Fees General,HRA City West Homes,"25,367.50",,
3286305,04/05/2017,04/04/2017,3012066,Thames Teachers,Agency Supply Staff- curriculum -E27,Schools,"1,540.00",,
3286307,10/04/2017,03/02/2017,3009371,St Stephens School (Imprest),Education (Hired & Contr - Educ),Education,998.28,,
3286310,07/04/2017,04/04/2017,3010043,Millbank Estate Management Organisation,Fees General,HRA City West Homes,"137,455.75",,
3286313,19/04/2017,02/04/2017,3008385,Comensura Ltd,Personnel (Hired & Contr - Consultancy),Corporate Services Trading,"301,141.57",,
3286314,18/04/2017,09/03/2017,3008533,Central & North West London Mh Nhs Trust,Placements (Health Authorities),Children's Services Commissioning,"6,762.00",,
3286316,19/05/2017,14/03/2017,3008900,EDF Energy Holdings Ltd,Electricity (Energy),HRA City West Homes,651.57,,
3286317,11/05/2017,06/09/2016,3008906,Oxford University Press,Curriculum Books Literacy - E19,Schools,921.61,,
3286328,07/06/2017,31/03/2017,3006236,ECD Architects Ltd,Professional Fees (non-Legal),HRA City West Homes,"47,506.50",,
3286331,30/05/2017,30/03/2017,3000465,Pinnacle Housing,Repairs,HRA City West Homes,980.93,,
3286332,30/05/2017,30/03/2017,3000465,Pinnacle Housing,Repairs,HRA City West Homes,"1,020.00",,
3286333,17/05/2017,30/03/2017,3000465,Pinnacle Housing,Cleaning & Janitorial: Not Elsewhere Classified (Cleaning),HRA City West Homes,580,,
3286339,30/05/2017,30/03/2017,3000465,Pinnacle Housing,Repairs,HRA City West Homes,"3,980.67",,
3286340,30/05/2017,30/03/2017,3000465,Pinnacle Housing,Repairs,HRA City West Homes,"4,017.28",,
3286341,30/05/2017,30/03/2017,3000465,Pinnacle Housing,Repairs,HRA City West Homes,"2,058.97",,
3286359,13/04/2017,20/03/2017,3000084,Schindler Ltd,Contractors R&M Lift Maintenance - E12,Schools,579.87,,
3286384,28/04/2017,31/03/2017,3026796,Willmott Partnership Homes Ltd  ,Professional Fees (non-Legal),Housing Operations,"1,105,531.80",,
3286385,03/05/2017,03/04/2017,3027022,XMA Ltd,Electricity (Energy),Property Investments and Estates,"31,962.50",,
3286387,05/05/2017,05/04/2017,3027309,Garnet Consulting Ltd,Consultancy (Hired & Contr - Consultancy),Housing Operations,"3,740.10",,
3286390,10/04/2017,23/12/2016,3024938,Low Carbon Exchange Ltd,Professional Fees - Specialist support,HRA City West Homes,"2,921.94",,
3286391,24/04/2017,22/03/2017,3025297,PMB Services Ltd,Education (Hired & Contr - Educ),Education,750,,
3286393,13/04/2017,30/03/2017,3026200,ISG Fit Out Ltd,Architects,Property Investments and Estates,"223,412.61",,
3286398,18/04/2017,13/03/2017,3023117,Ellwood and Atfield Limited,Hired and Contracted Services,"Policy, Performance and Communications","4,800.00",,
3286399,20/04/2017,21/03/2017,3023117,Ellwood and Atfield Limited,Hired and Contracted Services,"Policy, Performance and Communications","4,800.00",,
3286400,28/04/2017,31/03/2017,3023117,Ellwood and Atfield Limited,Hired and Contracted Services,"Policy, Performance and Communications","4,968.00",,
3286406,10/04/2017,24/02/2016,3022795,Veryan Software Ltd,Conference Expenses,Education,"3,495.00",,
3286407,13/04/2017,16/03/2017,3022795,Veryan Software Ltd,Conference Expenses,Education,"3,695.00",,
3286414,10/04/2017,20/03/2017,3015653,IBS Office Solutions Ltd,Photocopier general - E22,Schools,"1,494.38",,
3286415,07/04/2017,04/04/2017,3015826,Personal detail - redacted,Advocacy (Legal Fees),Development Planning,"2,500.00",,
3286429,24/04/2017,22/03/2017,3013092,Underbelly Ltd,Hired and Contracted Services,"Policy, Performance and Communications","100,000.00",,
3286437,28/04/2017,31/03/2017,3012305,Fitzrovia Medical Centre,Public Health (Hired & Contr - Healthcare),Public Health,950,,
3286439,11/04/2017,14/03/2017,3011669,Turn It On,Educational Software/Hardware IT - E20,Schools,"2,927.78",,
3286440,28/04/2017,01/04/2017,3011996,Absence Insurance Services,Other Insurance Premiums -E23,Schools,"3,798.22",,
3286442,28/04/2017,31/03/2017,3012174,Rider Levett Bucknall Uk Ltd,Professional Fees - Specialist support,"Growth, Planning and Housing","8,985.00",,
3286445,11/04/2017,01/04/2017,3011092,Residential Management Group,Fees General,Housing Operations,"354,520.99",,
3286446,10/04/2017,22/03/2017,3011224,Teaching Personnel Ltd,Agency Supply Staff- curriculum -E27,Schools,"1,380.00",,
3286447,12/04/2017,29/03/2017,3011224,Teaching Personnel Ltd,Agency Supply Staff- curriculum -E27,Schools,"1,380.00",,
3286448,19/04/2017,22/03/2017,3011276,Beanstalk,Bought in professional services volunteer reading - E27,Schools,"1,284.00",,
3286452,07/04/2017,28/02/2017,3009855,Nielsen Book Services Ltd,Library Stock Management Charges,Tri-borough Libraries and Archives,"2,284.00",,
3286456,18/04/2017,21/03/2017,3009017,Westminster City Council (Business Rates,Rates (NNDR) -E17,Schools,"17,065.80",,
3286458,10/04/2017,01/03/2017,3009378,Virgin Media Business,Equipment (Contractors C5700),Property Investments and Estates,"1,520.00",,
3286459,13/04/2017,14/03/2017,3009378,Virgin Media Business,ICT: Not Elsewhere Classified (Hired & Contr - ICT),Property Investments and Estates,"1,284.54",,
3286475,19/04/2017,05/04/2017,3008210,Urban Lynx Limited,Consultancy (Hired & Contr - Consultancy),WAES Director (Principal),"2,400.00",,
3286489,13/04/2017,10/03/2017,3005502,Corona Energy Retail 4 Ltd,Gas (Energy),HRA City West Homes,"134,310.21",,
3286490,07/04/2017,10/03/2017,3005502,Corona Energy Retail 4 Ltd,Gas -E16,Schools,694.74,,
3286492,28/04/2017,31/03/2017,3003901,Octavia,Adults Extra Care,Adult Social Care Strategic Commissioning and Enterprise,"113,251.25",,
3286498,13/04/2017,16/03/2017,3002917,Grow Education Partners Ltd,Course Fees -E19,Schools,702,,
3286522,28/04/2017,31/03/2017,3001870,Sweet Tree Home Care Services,Rent paid to Landlords,Adult Social Care Integrated Care,"2,000.00",,
3286529,24/04/2017,26/03/2017,3001644,Ann Short Education Ltd,Education (Hired & Contr - Educ),Education,900,,
3286533,28/04/2017,29/03/2017,3001722,Ricoh Uk Ltd,Leasing (IT Hardware Purch),Corporate Services Trading,"3,060.00",,
3286541,07/04/2017,28/02/2017,3000807,Financial Data Management Ltd,Postage (Postage),Chief of Staff,"1,144.61",,
3286552,07/04/2017,07/04/2017,3999999,General Sundry,Dwelling Rental Income,HRA City West Homes,600,,
3286554,07/04/2017,07/04/2017,3999999,General Sundry,Professional Fees (non-Legal),HRA City West Homes,"8,484.00",,
3286556,11/04/2017,07/04/2017,3014982,AK Care Ltd,Adults Community Direct Payments - Managed Accounts,Adult Social Care Integrated Care,"2,730.00",,
3286561,11/04/2017,07/04/2017,3001804,Respect Care Services Ltd,Adults Community Direct Payments - Managed Accounts,Adult Social Care Integrated Care,812.8,,
3286564,11/04/2017,07/04/2017,3001804,Respect Care Services Ltd,Adults Community Direct Payments - Managed Accounts,Adult Social Care Integrated Care,898,,
3286573,10/04/2017,07/04/2017,3009279,HM Revenue & Customs (Stamp duty),Stamp duty,Housing Operations,543,,
3286574,11/04/2017,07/04/2017,3001867,Independent Care Solution,Adults Community Direct Payments - Managed Accounts,Adult Social Care Integrated Care,"4,200.00",,
3286576,11/04/2017,07/04/2017,3001867,Independent Care Solution,Adults Community Direct Payments - Managed Accounts,Adult Social Care Integrated Care,"3,193.00",,
3286578,11/04/2017,07/04/2017,3001867,Independent Care Solution,Adults Community Direct Payments - Managed Accounts,Adult Social Care Integrated Care,605.13,,
3286579,11/04/2017,07/04/2017,3001867,Independent Care Solution,Adults Community Direct Payments - Managed Accounts,Adult Social Care Integrated Care,806,,
3286582,10/04/2017,07/04/2017,3999999,General Sundry,Dwelling Rental Income,HRA City West Homes,"3,000.00",,
3286587,10/04/2017,07/04/2017,3999999,General Sundry,Dwelling Rental Income,HRA City West Homes,"1,811.34",,
3286593,18/04/2017,07/04/2017,3006674,Johnson Austin Partnership LLP,Reimbursement payments/ compensation payments (HRA and non HRA),Revenues and Benefits,"2,000.00",,
3286596,10/04/2017,07/04/2017,3999999,General Sundry,Dwelling Rental Income,HRA City West Homes,"1,000.00",,
3286601,11/04/2017,07/04/2017,3002581,The Royal Bank of Scotland Plc,Bank Charges,Revenues and Benefits,"63,375.00",,
3286614,28/04/2017,31/03/2017,3012305,Fitzrovia Medical Centre,Public Health (Hired & Contr - Healthcare),Public Health,"1,000.00",,
3286629,05/05/2017,06/04/2017,3011392,Pield Heath House Rc School,SEN Therapy,Education,"10,750.00",,
3286634,13/04/2017,16/03/2017,3011133,University Of London,Activities and Events,Community Services,"4,294.40",,
3286635,20/04/2017,21/03/2017,3011217,Pgl Travel Ltd,School Trips and Educational Vsits -E19,Schools,"1,500.00",,
3286640,27/04/2017,06/04/2017,3010640,Applications Ltd,Hired and Contracted Services,Highways Infrastructure & Public Realm,"4,400.00",,
3286656,20/04/2017,21/03/2017,3009381,Bidvest Food Service(BFS Group),Food & Beverages (Equip Catering),Community Services,580.78,,
3286664,15/05/2017,01/04/2017,3009378,Virgin Media Business,Online Services (Telephony),TB Information Services and Strategy,"68,673.27",,
3286665,27/04/2017,28/03/2017,3009381,Bidvest Food Service(BFS Group),Food & Beverages (Equip Catering),Community Services,778.05,,
3286666,12/04/2017,13/03/2017,3009381,Bidvest Food Service(BFS Group),Food & Beverages (Equip Catering),Community Services,811.36,,
3286691,07/06/2017,27/10/2016,3007529,Nabarro LLP,Legal Fees (C Code),"Growth, Planning and Housing","12,273.50",,
3286692,04/05/2017,06/04/2017,3007710,Phoenix Software Ltd,Software (IT Software Purch),HRA City West Homes,"6,098.00",,
3286695,04/05/2017,06/04/2017,3008056,Street Tree Care Ltd,Repair & Maintenance (Ground Mtce - Plan),Development Planning,575,,
3286698,28/04/2017,02/04/2017,3006322,Extrastaff Ltd,Schools Transport Payments - Other,Education,"1,080.33",,
3286701,13/04/2017,16/03/2017,3006571,Insim News,Library Materials - Periodicals,Tri-borough Libraries and Archives,691.78,,
3286708,28/04/2017,02/04/2017,3006322,Extrastaff Ltd,Schools Transport Payments - Other,Education,979.06,,
3286715,11/04/2017,09/01/2015,3005502,Corona Energy Retail 4 Ltd,Gas (Energy),Property Investments and Estates,856.9,,
3286717,12/04/2017,09/11/2013,3005502,Corona Energy Retail 4 Ltd,Gas (Energy),Property Investments and Estates,503.87,,
3286718,10/04/2017,10/03/2017,3005502,Corona Energy Retail 4 Ltd,Gas (Energy),Community Services,"1,910.89",,
3286722,12/04/2017,10/12/2013,3005502,Corona Energy Retail 4 Ltd,Gas (Energy),Property Investments and Estates,775.4,,
3286723,12/04/2017,09/01/2014,3005502,Corona Energy Retail 4 Ltd,Gas (Energy),Property Investments and Estates,837.66,,
3286724,11/04/2017,10/02/2014,3005502,Corona Energy Retail 4 Ltd,Gas (Energy),Property Investments and Estates,870.23,,
3286725,11/04/2017,10/03/2014,3005502,Corona Energy Retail 4 Ltd,Gas (Energy),Property Investments and Estates,789.34,,
3286726,11/04/2017,09/04/2014,3005502,Corona Energy Retail 4 Ltd,Gas (Energy),Property Investments and Estates,717.49,,
3286727,04/05/2017,04/04/2017,3001452,Sodexo Healthcare Services,Community Meals (Private contractors),Adult Social Care Strategic Commissioning and Enterprise,"19,142.74",,
3286730,12/04/2017,13/03/2017,3001477,Kent Frozen Foods Ltd,Food & Beverages (Equip Catering),Community Services,"1,113.15",,
3286746,10/05/2017,03/04/2017,3001330,London Grid For Learning Trust,Subscriptions,Education,"12,017.00",,
3286751,28/04/2017,31/03/2017,3001031,Nda Consulting Ltd,Professional Fees (non-Legal),HRA City West Homes,"1,925.00",,
3286752,02/05/2017,04/04/2017,3001208,Northgate Public Services,Printing (Printing),Parking,864.85,,
3286763,02/05/2017,01/04/2017,3000980,Ogilvie Fleet,Leasing (Transport),Revenues and Benefits,"5,058.36",,
3286769,25/04/2017,28/03/2017,3000887,Devonshires Solicitors,Legal Services (Legal Fees),Housing Operations,"2,035.80",,
3286773,27/04/2017,28/03/2017,3000919,Wates Living Space,Contractors,HRA City West Homes,"476,998.05",,
3286774,24/04/2017,22/03/2017,3000980,Ogilvie Fleet,Leasing (Transport),Legal Services,"2,509.08",,
3286776,10/04/2017,07/03/2017,3000847,Prospero Recruitment Ltd,Grants,Family Services 1,841,,
3286777,10/04/2017,28/02/2017,3000847,Prospero Recruitment Ltd,Grants,Family Services 1,696,,
3286780,19/04/2017,17/02/2017,3000887,Devonshires Solicitors,Legal Services (Legal Fees),Housing Operations,"1,365.50",,
3286786,24/04/2017,23/03/2017,3000847,Prospero Recruitment Ltd,Grants,Family Services 1,"1,160.00",,
3286787,10/04/2017,04/04/2017,3000523,Equinox,Public Health (Hired & Contr - Healthcare),Public Health,"3,010.00",,
3286788,24/04/2017,17/02/2017,3000672,F.M Conway Ltd,Contractors,City Management and Communities,"96,354.46",,
3286791,10/04/2017,03/03/2017,3000715,British Telecommunications Plc,Call Systems (Telephony),HRA City West Homes,"17,803.98",,
3286792,10/04/2017,03/03/2017,3000715,British Telecommunications Plc,Call Systems (Telephony),HRA City West Homes,"8,731.89",,
3286797,18/04/2017,04/04/2017,3000523,Equinox,Public Health (Hired & Contr - Healthcare),Public Health,"2,365.00",,
3286798,18/04/2017,04/04/2017,3000523,Equinox,Public Health (Hired & Contr - Healthcare),Public Health,"3,010.00",,
3286801,05/05/2017,06/04/2017,3000298,Virgin Media Business,Design and development,City Management and Communities,"25,958.31",,
3286802,05/05/2017,06/04/2017,3000298,Virgin Media Business,Design and development,City Management and Communities,"34,106.10",,
3286803,05/05/2017,06/04/2017,3000319,Posturite (Uk) Ltd,Training & Conferences,WCC People Services,"3,750.00",,
3286823,11/04/2017,28/03/2017,3000106,Shepherds Bush Housing Association Ltd,Temporary Accommodation,Housing Operations,"9,707.96",,
3286824,11/04/2017,28/03/2017,3000106,Shepherds Bush Housing Association Ltd,Temporary Accommodation,Housing Operations,"8,768.48",,
3286834,25/04/2017,31/03/2017,3000087,Medequip Assistive Technology Ltd,Assistive equipment and Technology,Adult Social Care Strategic Commissioning and Enterprise,"188,439.80",,
3286836,10/04/2017,17/03/2017,3000003,Housing & Care 21,Advice & Counselling Services (Hired & Contr - Social CommCare),Adult Social Care Strategic Commissioning and Enterprise,"18,995.92",,
3286841,11/04/2017,09/06/2013,3005502,Corona Energy Retail 4 Ltd,Gas (Energy),Property Investments and Estates,503.08,,
3286843,11/04/2017,09/06/2015,3005502,Corona Energy Retail 4 Ltd,Gas (Energy),Property Investments and Estates,"2,573.66",,
3286848,10/04/2017,13/03/2017,3005413,London Tigers,Activities and Events,Community Services,"6,000.00",,
3286849,28/04/2017,30/03/2017,3005418,ATG Access Limited,Hired and Contracted Services,Parking,"3,206.14",,
3286851,11/04/2017,09/03/2013,3005502,Corona Energy Retail 4 Ltd,Gas (Energy),Property Investments and Estates,585.82,,
3286852,11/04/2017,10/05/2013,3005502,Corona Energy Retail 4 Ltd,Gas (Energy),Property Investments and Estates,711.16,,
3286861,05/05/2017,06/04/2017,3004820,Lambert Smith Hampton Group Ltd,Design and development,Education,"1,000.00",,
3286866,24/04/2017,22/03/2017,3003901,Octavia,Refurbishment,Public Protection and Licensing,"1,089.50",,
3286871,10/04/2017,06/02/2017,3003647,Garvey Bros Builders,Refurbishment,Public Protection and Licensing,"3,129.00",,
3286872,10/04/2017,23/02/2017,3003819,Freeway Lift Services Ltd,Refurbishment,Public Protection and Licensing,"5,105.00",,
3286877,12/04/2017,29/03/2017,3003003,Polyglobe Ltd,Temporary Accommodation,HRA City West Homes,845.83,,
3286881,24/05/2017,24/02/2017,3003598,Monson Engineering Ltd,Hired and Contracted Services,Development Planning,"1,575.00",,
3286882,08/05/2017,02/03/2017,3003600,Vector Resourcing Ltd,Website Development (IT Software Purch) (R Code),"Policy, Performance and Communications","9,000.00",,
3286886,05/06/2017,30/03/2017,3002900,St Matthews Conference Centre Ltd,Hired and Contracted Services,"Policy, Performance and Communications",550.4,,
3286887,12/04/2017,31/10/2016,3002913,Abbey Community Association Ltd,Hired and Contracted Services,"Policy, Performance and Communications","40,125.00",,
3286888,12/04/2017,01/04/2017,3002913,Abbey Community Association Ltd,Hired and Contracted Services,"Policy, Performance and Communications","38,625.00",,
3286890,10/04/2017,31/03/2017,3002540,Allstar Business Solutions Ltd,Fuel (Transport),Parking,"1,677.33",,
3286890,10/04/2017,31/03/2017,3002540,Allstar Business Solutions Ltd,Fuel (Transport),Public Protection and Licensing,921.72,,
3286890,10/04/2017,31/03/2017,3002540,Allstar Business Solutions Ltd,Fuel (Transport),Public Protection and Licensing,950.49,,
3286899,13/04/2017,18/03/2017,3002516,Westminster Maintenance Services,Refurbishment,Public Protection and Licensing,"1,258.20",,
3286900,24/04/2017,22/03/2017,3002516,Westminster Maintenance Services,Refurbishment,Public Protection and Licensing,978.14,,
3286901,27/04/2017,30/03/2017,3017026,Royal Mail Group Ltd ,Postage (Postage),Revenues and Benefits,"1,500.00",,
3286902,27/04/2017,30/03/2017,3017026,Royal Mail Group Ltd ,Postage (Postage),Revenues and Benefits,"1,500.00",,
3286918,10/04/2017,14/03/2017,3001926,Marylebone Bangladesh Society Ltd,Hired and Contracted Services,Public Protection and Licensing,"4,250.00",,
3286920,26/04/2017,27/03/2017,3027624,Personal detail - redacted,Hired and Contracted Services,Adult Social Care Integrated Care,924.3,,
3286921,10/04/2017,08/12/2016,3001530,Central Recruitment Services Ltd,Hired and Contracted Services,Adult Social Care Integrated Care,648,,
3286942,11/04/2017,26/02/2017,3027067,Personal detail - redacted,Training & Conferences,Economy,816.35,,
3286951,12/04/2017,24/02/2017,3025011,Kaerin-Lyn ICT Management Ltd,Professional Fees - Specialist support,HRA City West Homes,"2,100.00",,
3286961,28/04/2017,31/03/2017,3020860,The Sensory Smart Child Ltd,Occupational Therapy Services (Hired & Contr - Healthcare),Family Services 3,560,,
3286966,02/05/2017,01/04/2017,3022425,By Development Ltd,Professional Fees (non-Legal),"Growth, Planning and Housing","1,220,000.00",,
3286967,28/04/2017,30/03/2017,3020310,Elite Foodservice,Food & Beverages (Equip Catering),Community Services,581.61,,
3286968,24/04/2017,07/03/2017,3020343,Michael Page International Recruitment Ltd,Salaries,HRA City West Homes,"1,150.00",,
3286978,28/04/2017,29/03/2017,3020310,Elite Foodservice,Food & Beverages (Equip Catering),Community Services,768.09,,
3286982,08/05/2017,04/04/2017,3018439,Pulse Healthcare Ltd,Consultancy (Hired & Contr - Consultancy),Public Protection and Licensing,"1,831.50",,
3286983,19/05/2017,04/04/2017,3018439,Pulse Healthcare Ltd,Consultancy (Hired & Contr - Consultancy),Public Protection and Licensing,971.25,,
3286984,10/05/2017,13/03/2017,3018928,Personal detail - redacted,Consultants/Consultation,"Growth, Planning and Housing","5,000.00",,
3286987,25/04/2017,06/04/2017,3017680,Personal detail - redacted,Professional Fees - Specialist support,Housing Operations,600,,
3286988,25/04/2017,06/04/2017,3017680,Personal detail - redacted,Professional Fees - Specialist support,Housing Operations,600,,
3286992,05/05/2017,06/04/2017,3018200,Primeglen Design Ltd,Management (Hired & Contr - Consultancy),HRA City West Homes,"4,740.00",,
3287000,04/05/2017,06/04/2017,3017002,Anchor Tutors,Grants,Family Services 1,"2,125.00",,
3287001,05/05/2017,07/04/2017,3017002,Anchor Tutors,Grants,Family Services 1,"2,000.00",,
3287002,19/06/2017,29/07/2015,3017054,St George's University Hospitals NHS Foundation Trust,Hired and Contracted Services,Public Health,"-1,505.81",,
3287010,10/04/2017,01/02/2017,3016767,Rowland Tysoe (Cranleigh) Ltd,Repair & Maintenance (R&M -Plan),Community Services,"1,601.23",,
3287022,10/04/2017,02/03/2017,3015956,Linden Lodge School,SEN Therapy,Education,"2,100.00",,
3287024,10/04/2017,13/03/2017,3016322,Swiss Cottage School,SEN Therapy,Education,"20,710.00",,
3287028,18/04/2017,20/08/2016,3015728,Q Park Ltd,Electricity (Energy),Property Investments and Estates,660,,
3287030,24/04/2017,20/08/2016,3015728,Q Park Ltd,Electricity (Energy),Property Investments and Estates,530,,
3287031,20/04/2017,24/02/2017,3015107,Gva,Professional Fees (non-Legal),"Growth, Planning and Housing","9,000.00",,
3287039,10/04/2017,27/03/2017,3013822,Transworld Couriers Logistics Ltd,Publications (Expenditure),"Policy, Performance and Communications","5,037.14",,
3287040,11/04/2017,13/03/2017,3013826,SG Path Ltd,Post mortem and reports fees,Chief of Staff,595.9,,
3287041,12/04/2017,01/02/2017,3014005,Press Association Ltd,Subscriptions,"Policy, Performance and Communications","5,134.67",,
3287043,05/05/2017,05/04/2017,3013469,Saacke Combustion Services Ltd,Management (Hired & Contr - Consultancy),HRA City West Homes,"5,284.56",,
3287045,25/04/2017,26/03/2017,3013479,West Horsley Dairy,Food & Beverages (Equip Catering),Community Services,528.3,,
3287047,24/04/2017,23/03/2017,3013481,Wightman & Parrish,Laundry,Community Services,573.11,,
3287049,10/04/2017,31/10/2016,3013449,G & S Smirthwaite Ltd,Equipment Maintenance,Education,"2,686.00",,
3287058,10/04/2017,14/02/2017,3013442,Coldnet Refrigeration,Supplies (Equip Educ),Community Services,"5,867.20",,
3287059,13/04/2017,16/03/2017,3013442,Coldnet Refrigeration,Repair & Maintenance (R&M - React),Community Services,746,,
3287060,11/04/2017,14/03/2017,3013444,Crawley Luxury,Hire (Transport),Community Services,"8,388.00",,
3287062,11/04/2017,10/03/2017,3013090,Ashpri Ltd,Hired and Contracted Services,Adult Social Care Integrated Care,"1,958.12",,
3287066,11/04/2017,27/02/2017,3013347,Clyde & Co,Insurance - Loss Adjustors,Revenues and Benefits,"1,995.00",,
3287247,11/04/2017,10/04/2017,3001867,Independent Care Solution,Adults Community Direct Payments - Managed Accounts,Adult Social Care Integrated Care,"4,200.00",,
3287256,10/04/2017,10/04/2017,3999999,General Sundry,Costs Awarded Against The Council,Housing Operations,"6,000.00",,
3287258,10/04/2017,10/04/2017,3999999,General Sundry,Dwelling Rental Income,HRA City West Homes,948.03,,
3287262,18/04/2017,10/04/2017,3999999,General Sundry,Reimbursement payments/ compensation payments (HRA and non HRA),Revenues and Benefits,"1,786.00",,
3287263,18/04/2017,10/04/2017,3999999,General Sundry,Reimbursement payments/ compensation payments (HRA and non HRA),Revenues and Benefits,"2,865.00",,
3287265,11/04/2017,10/04/2017,3015303,Paypacket Ltd,Adults Community Direct Payments - Managed Accounts,Adult Social Care Integrated Care,"12,526.81",,
3287269,11/04/2017,10/04/2017,3015303,Paypacket Ltd,Adults Community Direct Payments - Managed Accounts,Adult Social Care Integrated Care,"4,562.48",,
3287278,11/04/2017,10/04/2017,3010609,Barrie Bookkeeping & Payroll Solutions,Adults Community Direct Payments - Managed Accounts,Adult Social Care Integrated Care,"29,947.44",,
3287279,18/04/2017,17/03/2017,3000003,Housing & Care 21,Independent Units,Adult Social Care Strategic Commissioning and Enterprise,"6,544.41",,
3287288,28/04/2017,31/03/2017,3027612,Personal detail - redacted,Education (Hired & Contr - Educ),Education,"1,140.00",,
3287295,26/04/2017,05/04/2017,3020085,Haven Power Ltd,Electricity (Energy),HRA City West Homes,"1,016.10",,
3287296,26/04/2017,05/04/2017,3020085,Haven Power Ltd,Electricity (Energy),HRA City West Homes,"1,279.90",,
3287297,26/04/2017,05/04/2017,3020085,Haven Power Ltd,Electricity (Energy),HRA City West Homes,"2,124.03",,
3287298,26/04/2017,05/04/2017,3020085,Haven Power Ltd,Electricity (Energy),HRA City West Homes,"1,383.89",,
3287303,08/06/2017,29/03/2017,3018612,Personal detail - redacted,Hired and Contracted Services,"Policy, Performance and Communications","12,238.00",,
3287306,26/04/2017,05/04/2017,3020085,Haven Power Ltd,Electricity (Energy),HRA City West Homes,"1,006.50",,
3287307,26/04/2017,05/04/2017,3020085,Haven Power Ltd,Electricity (Energy),HRA City West Homes,611.72,,
3287311,18/04/2017,04/04/2017,3015706,Imperial College Medical Partnership,Public Health (Hired & Contr - Healthcare),Public Health,748.5,,
3287315,11/04/2017,12/01/2017,3012327,Cet Safehouse Ltd,Insurance - Loss Adjustors,Revenues and Benefits,761,,
3287319,28/04/2017,31/03/2017,3013590,ARO Performance Systems Ltd,IT Software Maintenance,HRA City West Homes,"1,290.00",,
3287320,12/04/2017,10/10/2016,3010121,Pders Key Lifts,Contractors,HRA City West Homes,"1,067.79",,
3287333,13/04/2017,20/03/2017,3006109,Cunningham Lindsey UK,Insurance - Loss Adjustors,Revenues and Benefits,528,,
3287335,27/04/2017,06/04/2017,3008278,Willmott Dixon Holdings Limited ,Construction - new development,"Growth, Planning and Housing","695,102.00",,
3287338,11/04/2017,13/05/2014,3005502,Corona Energy Retail 4 Ltd,Gas (Energy),Property Investments and Estates,501.57,,
3287340,18/04/2017,20/09/2016,3005606,Proquest Llc,Library Materials - Electronic Resources,Tri-borough Libraries and Archives,"3,980.00",,
3287350,08/05/2017,03/04/2017,3003600,Vector Resourcing Ltd,Website Development (IT Software Purch) (R Code),"Policy, Performance and Communications","9,900.00",,
3287354,28/04/2017,31/03/2017,3005020,Nsl Limited,Hired and Contracted Services,Parking,"13,589.94",,
3287355,11/04/2017,09/12/2014,3005502,Corona Energy Retail 4 Ltd,Gas (Energy),Property Investments and Estates,682.3,,
3287358,12/04/2017,05/04/2017,3003003,Polyglobe Ltd,Temporary Accommodation,Housing Operations,"3,833.33",,
3287359,12/04/2017,05/04/2017,3003003,Polyglobe Ltd,Temporary Accommodation,HRA City West Homes,845.83,,
3287360,12/04/2017,05/04/2017,3003003,Polyglobe Ltd,Temporary Accommodation,HRA City West Homes,-845.83,,
3287361,12/04/2017,05/04/2017,3003003,Polyglobe Ltd,Temporary Accommodation,HRA City West Homes,845.83,,
3287365,12/04/2017,13/03/2017,3002429,Cambridge Motor Repairs,Insurance - Loss Adjustors,Revenues and Benefits,"1,909.20",,
3287366,19/04/2017,20/03/2017,3002462,Bibliotheca Ltd,Library Materials - eBooks,Tri-borough Libraries and Archives,"15,000.00",,
3287367,11/04/2017,01/03/2017,3002569,Thomson Reuters,Subscriptions,Public Protection and Licensing,"1,470.00",,
3287372,11/04/2017,22/02/2017,3001896,Quintin Kynaston Academy,Element 3 - Top-up Funding,Education,"1,000.00",,
3287373,11/04/2017,22/02/2017,3001896,Quintin Kynaston Academy,Element 3 - Top-up Funding,Education,"1,000.00",,
3287381,07/06/2017,07/03/2017,3019764,Axis Telecom Ltd,Gas (Energy),Property Investments and Estates,660.8,,
3287382,07/06/2017,03/02/2017,3019764,Axis Telecom Ltd,Gas (Energy),Property Investments and Estates,672.65,,
3287384,02/05/2017,02/11/2016,3020378,Personal detail - redacted,Advocacy (Legal Fees),Children's Services Commissioning,"1,550.00",,
3287385,02/05/2017,05/10/2016,3020378,Personal detail - redacted,Advocacy (Legal Fees),Children's Services Commissioning,"1,000.00",,
3287387,11/04/2017,04/01/2017,3019370,Personal detail - redacted,Schools Transport Payments - Other,Education,950,,
3287388,05/05/2017,07/04/2017,3019390,British Telecom (Openreach),Design and development,City Management and Communities,"21,777.13",,
3287389,28/04/2017,31/03/2017,3019391,CHE Lettings Ltd,Temporary Accommodation,Housing Operations,"2,640.00",,
3287395,12/04/2017,10/03/2017,3018945,Icasework Ltd,IT Software Maintenance,TB Information Services and Strategy,"20,000.00",,
3287396,07/06/2017,21/12/2015,3019117,Personal detail - redacted,Service Charges to Landlords,HRA City West Homes,648.49,,
3287404,11/04/2017,07/04/2017,3017021,Personal detail - redacted,Advocacy (Legal Fees),Housing Operations,"1,500.00",,
3287406,24/04/2017,27/03/2017,3017026,Royal Mail Group Ltd ,Postage (Postage),Revenues and Benefits,692.64,,
3287410,24/04/2017,04/04/2017,3016448,Personal detail - redacted,Coroner's Expenses,Chief of Staff,"1,439.80",,
3287411,11/04/2017,10/03/2017,3016490,Personal detail - redacted,Post mortem and reports fees,Chief of Staff,"4,840.00",,
3287412,11/04/2017,16/03/2017,3016490,Personal detail - redacted,Post mortem and reports fees,Chief of Staff,"1,562.50",,
3287415,30/05/2017,28/03/2017,3015136,Nexus PSL Ltd,Document Archiving & Storage (Hired & Contr - Facilities Mgt),Property Investments and Estates,"1,143.87",,
3287417,11/04/2017,09/03/2017,3015805,Histapathology Private Fees Fund,Post mortem and reports fees,Chief of Staff,"2,701.60",,
3287435,24/04/2017,31/01/2017,3013620,Student Employment Services,Hired and Contracted Services,Legal Services,"5,053.26",,
3287438,11/04/2017,13/11/2016,3013837,Bt Plc,Call Systems (Telephony),Chief of Staff,"2,725.00",,
3287441,11/04/2017,22/03/2017,3013305,IC Consultants Ltd (Subsidiary of Imperial College London),Post mortem and reports fees,Chief of Staff,600,,
3287453,11/04/2017,01/03/2017,3013305,IC Consultants Ltd (Subsidiary of Imperial College London),Post mortem and reports fees,Chief of Staff,564,,
3287454,15/05/2017,06/03/2017,3013305,IC Consultants Ltd (Subsidiary of Imperial College London),Post mortem and reports fees,Chief of Staff,-556,,
3287459,11/04/2017,20/02/2017,3013305,IC Consultants Ltd (Subsidiary of Imperial College London),Post mortem and reports fees,Chief of Staff,552,,
3287472,18/04/2017,07/04/2017,3012711,Personal detail - redacted,Hired and Contracted Services,WAES Director (Principal),790.6,,
3287475,18/04/2017,13/01/2017,3012304,Grand Union Health Centre,Public Health (Hired & Contr - Healthcare),Public Health,"3,575.00",,
3287476,13/04/2017,20/12/2016,3012324,Personal detail - redacted,Public Health (Hired & Contr - Healthcare),Public Health,"1,330.00",,
3287487,04/05/2017,06/04/2017,3011415,Lloyd Williamson School,SEN Therapy,Education,"4,735.80",,
3287498,16/05/2017,30/03/2017,3011300,Julius Rutherford & Co Ltd,Cleaning Contract -E14,Schools,640,,
3287500,24/04/2017,27/01/2017,3000961,Ashfords Llp,Advocacy (Legal Fees),Property Investments and Estates,"6,467.60",,
3287507,12/04/2017,03/02/2017,3000712,Bibliographic Data Services Ltd,Library Stock Management Charges,Tri-borough Libraries and Archives,"12,245.00",,
3287513,01/06/2017,30/03/2017,3000465,Pinnacle Housing,Maintenance (Ground Mtce - Plan),HRA City West Homes,"1,980.00",,
3287517,24/04/2017,22/03/2017,3000172,Oclc (UK) Ltd,Inter Library Loan Costs,Tri-borough Libraries and Archives,"2,197.73",,
3287535,18/04/2017,07/04/2017,3002288,Liral Veget Training and Recruitment Ltd,Hired and Contracted Services,WAES Director (Principal),"23,262.57",,
3287537,12/04/2017,24/03/2017,3003003,Polyglobe Ltd,Temporary Accommodation,Housing Operations,"1,400.00",,
3287541,11/04/2017,20/12/2016,3001917,Continental Landscapes Ltd,Maintenance (Ground Mtce - Plan),HRA City West Homes,"1,748.00",,
3287542,11/04/2017,20/12/2016,3001917,Continental Landscapes Ltd,Maintenance (Ground Mtce - Plan),HRA City West Homes,"1,426.00",,
3287545,20/04/2017,23/03/2017,3017026,Royal Mail Group Ltd ,Postage (Postage),Revenues and Benefits,"26,823.47",,
3287552,11/04/2017,20/12/2016,3001917,Continental Landscapes Ltd,Maintenance (Ground Mtce - Plan),HRA City West Homes,828,,
3287556,13/04/2017,16/03/2017,3001530,Central Recruitment Services Ltd,Hired and Contracted Services,Adult Social Care Integrated Care,648,,
3287573,12/04/2017,21/01/2017,3000127,Bates Office Services Ltd,Stationery: Not Elsewhere Classified (Stationery),Chief of Staff,760.4,,
3287584,11/04/2017,31/10/2016,3027525,John Larking Verbatim Reporters,Advocacy (Legal Fees),Children's Services Commissioning,540,,
3287585,11/04/2017,04/07/2016,3027697,Dr May Cahill,Post mortem and reports fees,Chief of Staff,688,,
3287593,25/04/2017,20/02/2017,3027460,Alex Verdan QC,Advocacy (Legal Fees),Children's Services Commissioning,"85,750.00",,
3287595,13/04/2017,14/03/2017,3027267,Personal detail - redacted,Consultancy (Hired & Contr - Consultancy),Community Education,"6,951.70",,
3287624,05/05/2017,07/04/2017,3007733,Premier People Solutions Limited T/A Premier Partnership,Training & Conferences,WCC People Services,"4,057.20",,
3287625,05/05/2017,23/03/2017,3007774,Personal detail - redacted,Advocacy (Legal Fees),Children's Services Commissioning,"1,025.00",,
3287641,28/04/2017,30/03/2017,3005675,Advanced Legal Solutions Ltd,Hired and Contracted Services,Chief of Staff,"2,090.00",,
3287661,18/04/2017,07/04/2017,3024805,Personal detail - redacted,Hired and Contracted Services,WAES Director (Principal),815,,
3287667,19/05/2017,01/04/2017,3021828,Periscopix Ltd,Activities and Events,Waste and Parks,"3,354.16",,
3287674,13/04/2017,22/02/2017,3021495,RSM Risk Assurance Services LLP,Training & Conferences,WCC People Services,"1,500.00",,
3287675,31/05/2017,31/03/2017,3021694,PSL Print Management Ltd,Hired and Contracted Services,HRA City West Homes,"2,095.00",,
3287678,12/04/2017,11/04/2017,3010609,Barrie Bookkeeping & Payroll Solutions,Adults Community Direct Payments - Managed Accounts,Adult Social Care Integrated Care,"4,746.80",,
3287679,12/04/2017,11/04/2017,3010609,Barrie Bookkeeping & Payroll Solutions,Adults Community Direct Payments - Managed Accounts,Adult Social Care Integrated Care,"31,512.71",,
3287681,12/04/2017,11/04/2017,3005562,Sevacare (Uk) Ltd,Adults Community Direct Payments - Managed Accounts,Adult Social Care Integrated Care,893.76,,
3287684,12/04/2017,11/04/2017,3005562,Sevacare (Uk) Ltd,Adults Community Direct Payments - Managed Accounts,Adult Social Care Integrated Care,735.54,,
3287688,12/04/2017,11/04/2017,3005562,Sevacare (Uk) Ltd,Adults Community Direct Payments - Managed Accounts,Adult Social Care Integrated Care,802.83,,
3287696,12/04/2017,11/04/2017,3005562,Sevacare (Uk) Ltd,Adults Community Direct Payments - Managed Accounts,Adult Social Care Integrated Care,"1,645.32",,
3287697,11/04/2017,11/04/2017,3999999,General Sundry,Dwelling Rental Income,HRA City West Homes,"2,427.82",,
3287700,11/04/2017,11/04/2017,3999999,General Sundry,Dwelling Rental Income,HRA City West Homes,773.75,,
3287703,12/04/2017,11/04/2017,3005562,Sevacare (Uk) Ltd,Adults Community Direct Payments - Managed Accounts,Adult Social Care Integrated Care,"1,431.36",,
3287706,12/04/2017,11/04/2017,3005562,Sevacare (Uk) Ltd,Adults Community Direct Payments - Managed Accounts,Adult Social Care Integrated Care,"1,518.30",,
